TRANS.No,Service Area Categorisation,Service Division Categorisation,Responsible Unit,Unit Code,Expenses Type,Expenses Sub Type,Expense Code,Narrative,Amount,Invoice Date,CAPITAL/REVENUE,SupplierName
1,Adult Social Care,OP 65&Over Resi Care Placement,OP Hosp - Residential Care Ext,W2LF55,Third Party Payments          ,Private Contractors           ,EH01,Miscellaneous Agency Services           ,523.6,29/04/2014,REV,ABBEYFIELD PEABODY S.LOND.LTD 
2,Adult Social Care,OP 65&Over Resi Care Placement,OP Hosp - Residential Care Ext,W2LF55,Third Party Payments          ,Private Contractors           ,EH01,Miscellaneous Agency Services           ,523.6,29/04/2014,REV,ABBEYFIELD PEABODY S.LOND.LTD 
3,Adult Social Care,OP 65&Over Resi Care Placement,OP Hosp - Residential Care Ext,W2LF55,Third Party Payments          ,Private Contractors           ,EH01,Miscellaneous Agency Services           ,523.6,29/04/2014,REV,ABBEYFIELD PEABODY S.LOND.LTD 
4,Adult Social Care,MH u65 Residentl Care Placemnt,MH ResidentialCare Ext-Morden,W2HB55,Third Party Payments          ,Private Contractors           ,EH01,Miscellaneous Agency Services           ,500,28/04/2014,REV,ABBEY HOUSE RESIDENTIAL HOMES 
5,Adult Social Care,MH u65 Residentl Care Placemnt,MH ResidentialCare Ext-Morden,W2HB55,Third Party Payments          ,Private Contractors           ,EH01,Miscellaneous Agency Services           ,500,28/04/2014,REV,ABBEY HOUSE RESIDENTIAL HOMES 
6,Adult Social Care,MH u65 Residentl Care Placemnt,MH ResidentialCare Ext-Morden,W2HB55,Third Party Payments          ,Private Contractors           ,EH01,Miscellaneous Agency Services           ,500,28/04/2014,REV,ABBEY HOUSE RESIDENTIAL HOMES 
7,Adult Social Care,MH u65 Residentl Care Placemnt,MH ResidentialCare Ext-Morden,W2HB55,Third Party Payments          ,Private Contractors           ,EH01,Miscellaneous Agency Services           ,600,28/04/2014,REV,ABBEY HOUSE RESIDENTIAL HOMES 
8,Adult Social Care,MH u65 Residentl Care Placemnt,MH ResidentialCare Ext-Morden,W2HB55,Third Party Payments          ,Private Contractors           ,EH01,Miscellaneous Agency Services           ,600,28/04/2014,REV,ABBEY HOUSE RESIDENTIAL HOMES 
9,Adult Social Care,MH u65 Residentl Care Placemnt,MH ResidentialCare Ext-Morden,W2HB55,Third Party Payments          ,Private Contractors           ,EH01,Miscellaneous Agency Services           ,500,28/04/2014,REV,ABBEY HOUSE RESIDENTIAL HOMES 
10,Adult Social Care,MH u65 Residentl Care Placemnt,MH ResidentialCare Ext-Morden,W2HB55,Third Party Payments          ,Private Contractors           ,EH01,Miscellaneous Agency Services           ,600,28/04/2014,REV,ABBEY HOUSE RESIDENTIAL HOMES 
11,Adult Social Care,MH u65 Residentl Care Placemnt,MH ResidentialCare Ext-Morden,W2HB55,Third Party Payments          ,Private Contractors           ,EH01,Miscellaneous Agency Services           ,600,28/04/2014,REV,ABBEY HOUSE RESIDENTIAL HOMES 
12,Adult Social Care,MH u65 Residentl Care Placemnt,MH ResidentialCare Ext - Wim,W2HC55,Third Party Payments          ,Private Contractors           ,EH01,Miscellaneous Agency Services           ,500.05,28/04/2014,REV,ABBEY HOUSE RESIDENTIAL HOMES 
13,Adult Social Care,MH u65 Residentl Care Placemnt,MH ResidentialCare Ext - Wim,W2HC55,Third Party Payments          ,Private Contractors           ,EH01,Miscellaneous Agency Services           ,500.05,28/04/2014,REV,ABBEY HOUSE RESIDENTIAL HOMES 
14,Adult Social Care,MH u65 Residentl Care Placemnt,MH ResidentialCare Ext - Wim,W2HC55,Third Party Payments          ,Private Contractors           ,EH01,Miscellaneous Agency Services           ,500.05,28/04/2014,REV,ABBEY HOUSE RESIDENTIAL HOMES 
15,Adult Social Care,MH u65 Residentl Care Placemnt,MH ResidentialCare Ext - Wim,W2HC55,Third Party Payments          ,Private Contractors           ,EH01,Miscellaneous Agency Services           ,500.05,28/04/2014,REV,ABBEY HOUSE RESIDENTIAL HOMES 
16,Adult Social Care,OP 65&Over Resi Care Placement,OP Hosp - Residential Care Ext,W2LF55,Third Party Payments          ,Private Contractors           ,EH01,Miscellaneous Agency Services           ,550,28/04/2014,REV,ABBEY HOUSE RESIDENTIAL HOMES 
17,Adult Social Care,OP 65&Over Resi Care Placement,OP Hosp - Residential Care Ext,W2LF55,Third Party Payments          ,Private Contractors           ,EH01,Miscellaneous Agency Services           ,550,28/04/2014,REV,ABBEY HOUSE RESIDENTIAL HOMES 
18,Adult Social Care,OP 65&Over Resi Care Placement,OP Hosp - Residential Care Ext,W2LF55,Third Party Payments          ,Private Contractors           ,EH01,Miscellaneous Agency Services           ,550,28/04/2014,REV,ABBEY HOUSE RESIDENTIAL HOMES 
19,Adult Social Care,OP 65&Over Resi Care Placement,OP Hosp - Residential Care Ext,W2LF55,Third Party Payments          ,Private Contractors           ,EH01,Miscellaneous Agency Services           ,550,28/04/2014,REV,ABBEY HOUSE RESIDENTIAL HOMES 
20,Adult Social Care,OP 65&Over Resi Care Placement,OP Hosp - Residential Care Ext,W2LF55,Third Party Payments          ,Private Contractors           ,EH01,Miscellaneous Agency Services           ,550,28/04/2014,REV,ABBEY HOUSE RESIDENTIAL HOMES 
21,Adult Social Care,OP 65&Over Resi Care Placement,OP Hosp - Residential Care Ext,W2LF55,Third Party Payments          ,Private Contractors           ,EH01,Miscellaneous Agency Services           ,550,28/04/2014,REV,ABBEY HOUSE RESIDENTIAL HOMES 
22,Adult Social Care,OP 65&Over Resi Care Placement,OP Hosp - Residential Care Ext,W2LF55,Third Party Payments          ,Private Contractors           ,EH01,Miscellaneous Agency Services           ,550,28/04/2014,REV,ABBEY HOUSE RESIDENTIAL HOMES 
23,Adult Social Care,OP 65&Over Resi Care Placement,OP Hosp - Residential Care Ext,W2LF55,Third Party Payments          ,Private Contractors           ,EH01,Miscellaneous Agency Services           ,550,28/04/2014,REV,ABBEY HOUSE RESIDENTIAL HOMES 
24,Adult Social Care,Other - Other Adult Services,Fixed & Variable Client Paymen,W6AA65,Third Party Payments          ,Private Contractors           ,EH01,Miscellaneous Agency Services           ,"25,969.43",29/04/2014,REV,ABILITY HOUSING ASSOCIATION   
25,Adult Social Care,Other - Other Adult Services,Fixed & Variable Client Paymen,W6AA65,Third Party Payments          ,Private Contractors           ,EH01,Miscellaneous Agency Services           ,"10,267.21",29/04/2014,REV,ABILITY HOUSING ASSOCIATION   
26,Adult Social Care,Other - Other Adult Services,Fixed & Variable Client Paymen,W6AA65,Third Party Payments          ,Private Contractors           ,EH01,Miscellaneous Agency Services           ,558,29/04/2014,REV,ABILITY HOUSING ASSOCIATION   
27,Adult Social Care,LD u65 Home Care,LD Home Care External,W2KB49,Third Party Payments          ,Private Contractors           ,EH01,Miscellaneous Agency Services           ,521.25,29/04/2014,REV,ABLE COMMUNITY CARE LTD       
28,Adult Social Care,LD u65 Home Care,LD Home Care External,W2KB49,Third Party Payments          ,Private Contractors           ,EH01,Miscellaneous Agency Services           ,689.25,14/05/2014,REV,ABLE COMMUNITY CARE LTD       
29,Adult Social Care,LD u65 Home Care,LD Home Care External,W2KB49,Third Party Payments          ,Private Contractors           ,EH01,Miscellaneous Agency Services           ,700,14/05/2014,REV,ABLE COMMUNITY CARE LTD       
30,Adult Social Care,LD u65 Home Care,LD Home Care External,W2KB49,Third Party Payments          ,Private Contractors           ,EH01,Miscellaneous Agency Services           ,528,29/04/2014,REV,ABLE COMMUNITY CARE LTD       
31,Adult Social Care,LD u65 Home Care,LD Home Care External,W2KB49,Third Party Payments          ,Private Contractors           ,EH01,Miscellaneous Agency Services           ,521.25,14/05/2014,REV,ABLE COMMUNITY CARE LTD       
32,Adult Social Care,LD u65 Home Care,LD Home Care External,W2KB49,Third Party Payments          ,Private Contractors           ,EH01,Miscellaneous Agency Services           ,528,14/05/2014,REV,ABLE COMMUNITY CARE LTD       
33,Adult Social Care,LD u65 Home Care,LD Home Care External,W2KB49,Third Party Payments          ,Private Contractors           ,EH01,Miscellaneous Agency Services           ,700,29/04/2014,REV,ABLE COMMUNITY CARE LTD       
34,Adult Social Care,LD u65 Home Care,LD Home Care External,W2KB49,Third Party Payments          ,Private Contractors           ,EH01,Miscellaneous Agency Services           ,689.25,29/04/2014,REV,ABLE COMMUNITY CARE LTD       
35,Cultural Env Reg&Plan Services,Outdoor Sports & Rec,Wmbldn Sailing Base,P09120,Supplies & Services           ,Expenses                      ,DH11,Outings VAT Exempt                      ,"2,000.00",11/05/2014,REV,ACTIVE TRAVEL LTD             
36,Childrens & Education Services,Statutory & Regulatory Duties,Central Administration,K01008,Supplies & Services           ,Grants and Subscriptions      ,DJ04,Subscriptions                           ,"1,567.50",01/04/2014,REV,ADCS                          
37,Housing Services,Bed / breakfast accommodation,Homelessness Prevention,N47171,Transfer Payments             ,Housing Benefits              ,FA12,Rent Deposits                           ,"1,000.00",08/05/2014,REV,REDACTED
38,Childrens & Education Services,Family - Other Services,CS CWD - NRTPF                          ,W1CF39,Third Party Payments          ,Private Contractors           ,EH04,Accommodation Based Support             ,514.32,23/05/2014,REV,ADMINLAND LTD                 
39,Childrens & Education Services,Family - Other Services,CS CWD - NRTPF                          ,W1CF39,Third Party Payments          ,Private Contractors           ,EH04,Accommodation Based Support             ,-514.32,23/05/2014,REV,ADMINLAND LTD                 
40,Childrens & Education Services,Family - Other Services,CS CWD - NRTPF                          ,W1CF39,Third Party Payments          ,Private Contractors           ,EH04,Accommodation Based Support             ,514.32,23/05/2014,REV,ADMINLAND LTD                 
41,Cultural Env Reg&Plan Services,Mgt & Sup (Cult),Tree Safety (Schools),P18320,Premises Related Expenditure  ,Ground Maintenance Costs      ,BL50,NATURE CONSERVATION                     ,787.5,11/04/2014,REV,ADVANCED TREE SERVICES LTD    
42,Cultural Env Reg&Plan Services,Mgt & Sup (Cult),Tree Safety (Schools),P18320,Premises Related Expenditure  ,Ground Maintenance Costs      ,BL50,NATURE CONSERVATION                     ,787.5,15/04/2014,REV,ADVANCED TREE SERVICES LTD    
43,Cultural Env Reg&Plan Services,Mgt & Sup (Cult),Tree Safety (Schools),P18320,Premises Related Expenditure  ,Ground Maintenance Costs      ,BL50,NATURE CONSERVATION                     ,"1,575.00",11/04/2014,REV,ADVANCED TREE SERVICES LTD    
44,Adult Social Care,SS Management & Administration,SP Direct Payments,W3VA08,Supplies & Services           ,Prntng Stnry Gen Off Exp      ,DE03,Stationery                              ,774.95,17/02/2014,REV,ADVANCED PAYMENT SOLUTIONS LTD
45,Adult Social Care,SS Management & Administration,SP Direct Payments,W3VA08,Supplies & Services           ,Prntng Stnry Gen Off Exp      ,DE03,Stationery                              ,982,21/08/2013,REV,ADVANCED PAYMENT SOLUTIONS LTD
46,Childrens & Education Services,CS - Commiss'ing & Social Work,SD Finance & Admin,W1BE02,Supplies & Services           ,Services                      ,DF56,Bank and Giro Charges                   ,664.46,14/05/2014,REV,ADVANCED PAYMENT SOLUTIONS LTD
47,Childrens & Education Services,CS - Commiss'ing & Social Work,SD Finance & Admin,W1BE02,Supplies & Services           ,Services                      ,DF56,Bank and Giro Charges                   ,"5,438.85",30/04/2014,REV,ADVANCED PAYMENT SOLUTIONS LTD
48,Childrens & Education Services,CS - Commiss'ing & Social Work,SD Finance & Admin,W1BE02,Supplies & Services           ,Services                      ,DF56,Bank and Giro Charges                   ,815.97,23/04/2014,REV,ADVANCED PAYMENT SOLUTIONS LTD
49,Childrens & Education Services,CS - Commiss'ing & Social Work,SD Finance & Admin,W1BE02,Supplies & Services           ,Services                      ,DF56,Bank and Giro Charges                   ,"3,926.99",14/05/2014,REV,ADVANCED PAYMENT SOLUTIONS LTD
50,Childrens & Education Services,CS - Commiss'ing & Social Work,SD Finance & Admin,W1BE02,Supplies & Services           ,Services                      ,DF56,Bank and Giro Charges                   ,"1,562.33",30/04/2014,REV,ADVANCED PAYMENT SOLUTIONS LTD
51,Childrens & Education Services,CS - Commiss'ing & Social Work,SD Finance & Admin,W1BE02,Supplies & Services           ,Services                      ,DF56,Bank and Giro Charges                   ,"2,649.00",23/04/2014,REV,ADVANCED PAYMENT SOLUTIONS LTD
52,Childrens & Education Services,CS - Commiss'ing & Social Work,SD Finance & Admin,W1BE02,Supplies & Services           ,Services                      ,DF56,Bank and Giro Charges                   ,"3,964.69",14/05/2014,REV,ADVANCED PAYMENT SOLUTIONS LTD
53,Childrens & Education Services,CS - Commiss'ing & Social Work,SD Finance & Admin,W1BE02,Supplies & Services           ,Services                      ,DF56,Bank and Giro Charges                   ,"1,086.85",14/05/2014,REV,ADVANCED PAYMENT SOLUTIONS LTD
54,Childrens & Education Services,CS - Commiss'ing & Social Work,SD Finance & Admin,W1BE02,Supplies & Services           ,Services                      ,DF56,Bank and Giro Charges                   ,"2,690.94",28/05/2014,REV,ADVANCED PAYMENT SOLUTIONS LTD
55,CS -Oth Operating Inc & Expend,T/A Vehicle Maintenance etc,Transport-Contract Hire,J01374,Transport Related Expenditure ,Contract Hire and Op Leasing  ,CC67,HIRING TRANSPORT H&SS CAB ADULTS        ,800,01/05/2014,REV,AERIAL CAR SERVICES LTD       
56,Housing Services,Bed / breakfast accommodation,Homelessness Prevention,N47171,Transfer Payments             ,Housing Benefits              ,FA12,Rent Deposits                           ,"4,000.00",21/05/2014,REV,REDACTED
58,Childrens & Education Services,Family - Other Services,CS SWD Personal support                 ,W1CF49,Third Party Payments          ,Private Contractors           ,EH01,Miscellaneous Contrct Services          ,-819.01,15/04/2014,REV,AMBITION RECRUITMENT          
59,Childrens & Education Services,Family - Other Services,CS SWD Personal support                 ,W1CF49,Third Party Payments          ,Private Contractors           ,EH01,Miscellaneous Contrct Services          ,"4,101.06",15/04/2014,REV,AMBITION RECRUITMENT          
60,Childrens & Education Services,Family - Other Services,CS SWD Personal support                 ,W1CF49,Third Party Payments          ,Private Contractors           ,EH01,Miscellaneous Contrct Services          ,"4,101.06",30/04/2014,REV,AMBITION RECRUITMENT          
61,Childrens & Education Services,Family - Other Services,CS SWD Personal support                 ,W1CF49,Third Party Payments          ,Private Contractors           ,EH01,Miscellaneous Contrct Services          ,"-1,298.44",30/04/2014,REV,AMBITION RECRUITMENT          
62,Childrens & Education Services,Family - Other Services,CS SWD Personal support                 ,W1CF49,Third Party Payments          ,Private Contractors           ,EH01,Miscellaneous Contrct Services          ,"4,101.06",15/04/2014,REV,AMBITION RECRUITMENT          
63,Childrens & Education Services,Family - Other Services,CS SWD Personal support                 ,W1CF49,Third Party Payments          ,Private Contractors           ,EH01,Miscellaneous Contrct Services          ,"4,101.06",15/04/2014,REV,AMBITION RECRUITMENT          
64,Childrens & Education Services,Family - Other Services,CS SWD Personal support                 ,W1CF49,Third Party Payments          ,Private Contractors           ,EH01,Miscellaneous Contrct Services          ,"-2,456.75",15/04/2014,REV,AMBITION RECRUITMENT          
65,Childrens & Education Services,Statutory & Regulatory Duties,Head of Special Educatn Needs,K04017,Supplies & Services           ,Services                      ,DF03,Consultants                             ,"2,500.00",19/05/2014,REV,ANAIRO SOLUTIONS LIMITED      
66,Childrens & Education Services,Statutory & Regulatory Duties,Head of Special Educatn Needs,K04017,Supplies & Services           ,Services                      ,DF03,Consultants                             ,"2,000.00",31/03/2014,REV,ANAIRO SOLUTIONS LIMITED      
67,Childrens & Education Services,Statutory & Regulatory Duties,Head of Special Educatn Needs,K04017,Supplies & Services           ,Services                      ,DF03,Consultants                             ,"2,000.00",14/04/2014,REV,ANAIRO SOLUTIONS LIMITED      
68,Childrens & Education Services,Statutory & Regulatory Duties,Head of Special Educatn Needs,K04017,Supplies & Services           ,Services                      ,DF03,Consultants                             ,"1,333.34",28/04/2014,REV,ANAIRO SOLUTIONS LIMITED      
69,Childrens & Education Services,Statutory & Regulatory Duties,Head of Special Educatn Needs,K04017,Supplies & Services           ,Services                      ,DF03,Consultants                             ,"2,000.00",28/04/2014,REV,ANAIRO SOLUTIONS LIMITED      
70,Childrens & Education Services,Statutory & Regulatory Duties,Head of Special Educatn Needs,K04017,Supplies & Services           ,Services                      ,DF03,Consultants                             ,"1,250.00",07/04/2014,REV,ANAIRO SOLUTIONS LIMITED      
71,Childrens & Education Services,Statutory & Regulatory Duties,Head of Special Educatn Needs,K04017,Supplies & Services           ,Services                      ,DF03,Consultants                             ,"1,500.00",21/04/2014,REV,ANAIRO SOLUTIONS LIMITED      
73,,,8 Wilton Road                           ,CC017AA,New Construction Conversion and Renovation,,B1,Consultants Fees D&S Structure          ,665,13/02/2014,CAP,ANDREW GODDARD ASSOCIATES LTD 
74,Housing Services,Bed / breakfast accommodation,Homelessness Prevention,N47171,Transfer Payments             ,Housing Benefits              ,FA12,Rent Deposits                           ,"2,300.00",07/05/2014,REV,AOB ESTATES                   
75,Cultural Env Reg&Plan Services,Mgt & Support (Env),Waste Management,G00900,Supplies & Services           ,Grants and Subscriptions      ,DJ04,Subscriptions                           ,"3,274.00",09/04/2014,REV,APSE                          
78,,,Dundonald expansion                     ,CS031AC,New Construction Conversion and Renovation,,B1,Consultants Fees D&S Structure          ,"3,780.00",27/05/2014,CAP,AREA LANDSCAPE ARCHITECTS     
79,Adult Social Care,OP 65 & Over Home Care,OP West - Home Care External,W2LG49,Third Party Payments          ,Private Contractors           ,EH01,Miscellaneous Agency Services           ,650,23/05/2014,REV,ARK HOME HEALTHCARE LIMITED   
80,Adult Social Care,OP 65 & Over Home Care,OP West - Home Care External,W2LG49,Third Party Payments          ,Private Contractors           ,EH01,Miscellaneous Agency Services           ,650,23/05/2014,REV,ARK HOME HEALTHCARE LIMITED   
81,Adult Social Care,OP 65 & Over Home Care,OP West - Home Care External,W2LG49,Third Party Payments          ,Private Contractors           ,EH01,Miscellaneous Agency Services           ,650,23/05/2014,REV,ARK HOME HEALTHCARE LIMITED   
82,Adult Social Care,OP 65 & Over Home Care,OP West - Home Care External,W2LG49,Third Party Payments          ,Private Contractors           ,EH01,Miscellaneous Agency Services           ,650,23/05/2014,REV,ARK HOME HEALTHCARE LIMITED   
83,Childrens & Education Services,Leaving Care Services,CL Setting Up Home Allowance,W1DF41,Third Party Payments          ,Private Contractors           ,EH01,Miscellaneous Agency Services           ,"1,090.64",16/05/2014,REV,THE ARTEMIS TEAM LIMITED      
84,Adult Social Care,Asylum Unacc Children,AS Child Res Care  (No Grant),W4TB58,Third Party Payments          ,Private Contractors           ,EH01,Miscellaneous Agency Services           ,"10,925.00",10/12/2013,REV,THE ARTEMIS TEAM LIMITED      
85,Adult Social Care,OP 65 & Over Direct Payments,OP R/Park-Direct PaymentScheme,W2LR36,Third Party Payments          ,Private Contractors           ,EH73,Direct Payments                         ,525.95,12/05/2014,REV,REDACTED
86,Adult Social Care,OP 65 & Over Direct Payments,OP R/Park-Direct PaymentScheme,W2LR36,Third Party Payments          ,Private Contractors           ,EH73,Direct Payments                         ,525.95,12/05/2014,REV,REDACTED
87,Adult Social Care,OP 65 & Over Direct Payments,OP R/Park-Direct PaymentScheme,W2LR36,Third Party Payments          ,Private Contractors           ,EH73,Direct Payments                         ,525.95,12/05/2014,REV,REDACTED
88,Adult Social Care,OP 65 & Over Direct Payments,OP R/Park-Direct PaymentScheme,W2LR36,Third Party Payments          ,Private Contractors           ,EH73,Direct Payments                         ,525.95,12/05/2014,REV,REDACTED
89,Childrens & Education Services,Fostering Services,ART Independent Agency Foster,W1DE46,Supplies & Services           ,Services                      ,DF53,Task Based Fostering                    ,-964.29,10/04/2014,REV,ASCENT FOSTERING AGENCY LTD   
90,Childrens & Education Services,Fostering Services,ART Independent Agency Foster,W1DE46,Supplies & Services           ,Services                      ,DF53,Task Based Fostering                    ,964.28,10/04/2014,REV,ASCENT FOSTERING AGENCY LTD   
91,Childrens & Education Services,Fostering Services,ART Independent Agency Foster,W1DE46,Supplies & Services           ,Services                      ,DF53,Task Based Fostering                    ,964.29,10/04/2014,REV,ASCENT FOSTERING AGENCY LTD   
92,Childrens & Education Services,Fostering Services,ART Independent Agency Foster,W1DE46,Supplies & Services           ,Services                      ,DF53,Task Based Fostering                    ,"1,125.00",10/04/2014,REV,ASCENT FOSTERING AGENCY LTD   
93,Childrens & Education Services,Fostering Services,ART Independent Agency Foster,W1DE46,Supplies & Services           ,Services                      ,DF53,Task Based Fostering                    ,-642.85,10/04/2014,REV,ASCENT FOSTERING AGENCY LTD   
94,Childrens & Education Services,Fostering Services,ART Independent Agency Foster,W1DE46,Supplies & Services           ,Services                      ,DF53,Task Based Fostering                    ,"1,125.00",10/04/2014,REV,ASCENT FOSTERING AGENCY LTD   
95,Childrens & Education Services,Fostering Services,ART Independent Agency Foster,W1DE46,Supplies & Services           ,Services                      ,DF53,Task Based Fostering                    ,"1,125.00",10/04/2014,REV,ASCENT FOSTERING AGENCY LTD   
96,Childrens & Education Services,Fostering Services,ART Independent Agency Foster,W1DE46,Supplies & Services           ,Services                      ,DF53,Task Based Fostering                    ,"1,125.00",10/04/2014,REV,ASCENT FOSTERING AGENCY LTD   
97,Adult Social Care,LD u65 Residentl Care Placemnt,LD Residential Care External,W2KB55,Third Party Payments          ,Private Contractors           ,EH01,Miscellaneous Agency Services           ,"1,343.73",01/05/2014,REV,ASHCROFT CARE SERVICES        
98,Adult Social Care,LD u65 Residentl Care Placemnt,LD Residential Care External,W2KB55,Third Party Payments          ,Private Contractors           ,EH01,Miscellaneous Agency Services           ,"1,343.73",01/05/2014,REV,ASHCROFT CARE SERVICES        
99,Adult Social Care,LD u65 Residentl Care Placemnt,LD Residential Care External,W2KB55,Third Party Payments          ,Private Contractors           ,EH01,Miscellaneous Agency Services           ,"1,343.73",01/05/2014,REV,ASHCROFT CARE SERVICES        
100,Adult Social Care,LD u65 Residentl Care Placemnt,LD Residential Care External,W2KB55,Third Party Payments          ,Private Contractors           ,EH01,Miscellaneous Agency Services           ,"1,343.73",01/05/2014,REV,ASHCROFT CARE SERVICES        
101,Adult Social Care,LD u65 Residentl Care Placemnt,LD Residential Care External,W2KB55,Third Party Payments          ,Private Contractors           ,EH01,Miscellaneous Agency Services           ,"1,248.13",26/04/2014,REV,ASHBROOK HOUSE                
102,Adult Social Care,LD u65 Residentl Care Placemnt,LD Residential Care External,W2KB55,Third Party Payments          ,Private Contractors           ,EH01,Miscellaneous Agency Services           ,"1,248.13",26/04/2014,REV,ASHBROOK HOUSE                
103,Adult Social Care,LD u65 Residentl Care Placemnt,LD Residential Care External,W2KB55,Third Party Payments          ,Private Contractors           ,EH01,Miscellaneous Agency Services           ,"1,248.13",26/04/2014,REV,ASHBROOK HOUSE                
104,Adult Social Care,LD u65 Residentl Care Placemnt,LD Residential Care External,W2KB55,Third Party Payments          ,Private Contractors           ,EH01,Miscellaneous Agency Services           ,"1,248.13",26/04/2014,REV,ASHBROOK HOUSE                
105,Adult Social Care,LD u65 Residentl Care Placemnt,LD Residential Care External,W2KB55,Third Party Payments          ,Private Contractors           ,EH01,Miscellaneous Agency Services           ,"1,016.47",26/04/2014,REV,ASHINGTON HOUSE               
106,Adult Social Care,LD u65 Residentl Care Placemnt,LD Residential Care External,W2KB55,Third Party Payments          ,Private Contractors           ,EH01,Miscellaneous Agency Services           ,"1,016.47",26/04/2014,REV,ASHINGTON HOUSE               
107,Adult Social Care,LD u65 Residentl Care Placemnt,LD Residential Care External,W2KB55,Third Party Payments          ,Private Contractors           ,EH01,Miscellaneous Agency Services           ,"1,016.47",26/04/2014,REV,ASHINGTON HOUSE               
108,Adult Social Care,LD u65 Residentl Care Placemnt,LD Residential Care External,W2KB55,Third Party Payments          ,Private Contractors           ,EH01,Miscellaneous Agency Services           ,"1,016.47",26/04/2014,REV,ASHINGTON HOUSE               
109,Adult Social Care,OP 65&Over NursingCarePlacemts,OP Hosp - Nursing Care,W2LF53,Third Party Payments          ,Private Contractors           ,EH01,Miscellaneous Agency Services           ,610.9,08/05/2014,REV,ASHTON LODGE CARE HOME        
110,Adult Social Care,OP 65&Over NursingCarePlacemts,OP Hosp - Nursing Care,W2LF53,Third Party Payments          ,Private Contractors           ,EH01,Miscellaneous Agency Services           ,610.9,08/05/2014,REV,ASHTON LODGE CARE HOME        
111,Adult Social Care,OP 65&Over NursingCarePlacemts,OP Hosp - Nursing Care,W2LF53,Third Party Payments          ,Private Contractors           ,EH01,Miscellaneous Agency Services           ,610.9,08/05/2014,REV,ASHTON LODGE CARE HOME        
112,Adult Social Care,OP 65&Over NursingCarePlacemts,OP Hosp - Nursing Care,W2LF53,Third Party Payments          ,Private Contractors           ,EH01,Miscellaneous Agency Services           ,610.9,08/05/2014,REV,ASHTON LODGE CARE HOME        
113,Central Services,SupS IT,Systems & Projects,E14366,Employees                     ,Direct Employee Expenses      ,AA17,Agency Staff & Casual Paymts            ,"1,375.00",16/05/2014,REV,REDACTED
114,Central Services,SupS IT,Systems & Projects,E14366,Employees                     ,Direct Employee Expenses      ,AA17,Agency Staff & Casual Paymts            ,"1,100.00",18/04/2014,REV,REDACTED
115,Central Services,SupS IT,Systems & Projects,E14366,Employees                     ,Direct Employee Expenses      ,AA17,Agency Staff & Casual Paymts            ,"1,237.50",09/04/2014,REV,REDACTED
116,Central Services,SupS IT,Systems & Projects,E14366,Employees                     ,Direct Employee Expenses      ,AA17,Agency Staff & Casual Paymts            ,"1,100.00",25/04/2014,REV,REDACTED
117,Central Services,SupS IT,Systems & Projects,E14366,Employees                     ,Direct Employee Expenses      ,AA17,Agency Staff & Casual Paymts            ,"1,375.00",02/05/2014,REV,REDACTED
118,Adult Social Care,Other - Other Adult Services,Fixed & Variable Client Paymen,W6AA65,Third Party Payments          ,Private Contractors           ,EH01,Miscellaneous Agency Services           ,"1,522.50",29/04/2014,REV,ASIAN ELDERLY GROUP OF MERTON 
119,Adult Social Care,OP 65 & Over Direct Payments,OP West -Direct Payment Scheme,W2LG36,Third Party Payments          ,Private Contractors           ,EH73,Direct Payments                         ,507.95,13/05/2014,REV,REDACTED
120,Adult Social Care,OP 65 & Over Direct Payments,OP West -Direct Payment Scheme,W2LG36,Third Party Payments          ,Private Contractors           ,EH73,Direct Payments                         ,507.95,13/05/2014,REV,REDACTED
121,Adult Social Care,OP 65 & Over Direct Payments,OP West -Direct Payment Scheme,W2LG36,Third Party Payments          ,Private Contractors           ,EH73,Direct Payments                         ,507.95,13/05/2014,REV,REDACTED
122,Adult Social Care,OP 65 & Over Direct Payments,OP West -Direct Payment Scheme,W2LG36,Third Party Payments          ,Private Contractors           ,EH73,Direct Payments                         ,507.95,13/05/2014,REV,REDACTED
123,Adult Social Care,MH u65 Residentl Care Placemnt,MH ResidentialCare Ext - Wim,W2HC55,Third Party Payments          ,Private Contractors           ,EH01,Miscellaneous Agency Services           ,689.09,19/05/2014,REV,SANCTUARY CARE LTD            
124,Adult Social Care,MH u65 Residentl Care Placemnt,MH ResidentialCare Ext - Wim,W2HC55,Third Party Payments          ,Private Contractors           ,EH01,Miscellaneous Agency Services           ,689.09,19/05/2014,REV,SANCTUARY CARE LTD            
125,Adult Social Care,MH u65 Residentl Care Placemnt,MH ResidentialCare Ext - Wim,W2HC55,Third Party Payments          ,Private Contractors           ,EH01,Miscellaneous Agency Services           ,689.09,19/05/2014,REV,SANCTUARY CARE LTD            
126,Adult Social Care,MH u65 Residentl Care Placemnt,MH ResidentialCare Ext - Wim,W2HC55,Third Party Payments          ,Private Contractors           ,EH01,Miscellaneous Agency Services           ,689.09,19/05/2014,REV,SANCTUARY CARE LTD            
127,Childrens & Education Services,Vocational - Adult Education,AE-Adult Education Main,K06049,Supplies & Services           ,Services                      ,DF27,Examination Fees                        ,"1,044.75",03/03/2014,REV,ASSMNT & QUALIFICATIONS ALL.  
128,Central Services,Registration of electors,Electoral Registration,E10285,Employees                     ,Direct Employee Expenses      ,AA17,Agency Staff & Casual Paymts            ,"11,272.00",17/03/2014,REV,ASS.OF ELECTORAL ADMINISTRATOR
129,Central Services,Registration of electors,Electoral Registration,E10285,Employees                     ,Direct Employee Expenses      ,AA17,Agency Staff & Casual Paymts            ,"1,686.00",17/03/2014,REV,ASS.OF ELECTORAL ADMINISTRATOR
130,Housing Services,Bed / breakfast accommodation,TEMPORARY ACCOMMODATION,N47160,Third Party Payments          ,Private Contractors           ,EH01,Miscellaneous Agency Services           ,"2,400.00",30/04/2014,REV,ASSETGROVE LETTINGS LTD       
131,CS -Oth Operating Inc & Expend,T/A Vehicle Maintenance etc,Transport-Contract Hire,J01374,Transport Related Expenditure ,Contract Hire and Op Leasing  ,CC64,HIRING TRANSPORT SEN CABS               ,602,30/04/2014,REV,A STAR TRANSPORT LIMITED      
132,CS -Oth Operating Inc & Expend,T/A Vehicle Maintenance etc,Transport-Contract Hire,J01374,Transport Related Expenditure ,Contract Hire and Op Leasing  ,CC64,HIRING TRANSPORT SEN CABS               ,820,30/04/2014,REV,A STAR TRANSPORT LIMITED      
133,CS -Oth Operating Inc & Expend,T/A Vehicle Maintenance etc,Transport-Contract Hire,J01374,Transport Related Expenditure ,Contract Hire and Op Leasing  ,CC67,HIRING TRANSPORT H&SS CAB ADULTS        ,896,30/04/2014,REV,A STAR TRANSPORT LIMITED      
134,Adult Social Care,MH u65 Residentl Care Placemnt,MH Res Care Ext- Mitcham West,W2HD55,Third Party Payments          ,Private Contractors           ,EH01,Miscellaneous Agency Services           ,518.68,12/05/2014,REV,ASTRA HOMES                   
135,Adult Social Care,MH u65 Residentl Care Placemnt,MH Res Care Ext- Mitcham West,W2HD55,Third Party Payments          ,Private Contractors           ,EH01,Miscellaneous Agency Services           ,518.68,12/05/2014,REV,ASTRA HOMES                   
136,Adult Social Care,MH u65 Residentl Care Placemnt,MH Res Care Ext- Mitcham West,W2HD55,Third Party Payments          ,Private Contractors           ,EH01,Miscellaneous Agency Services           ,518.68,12/05/2014,REV,ASTRA HOMES                   
137,Adult Social Care,MH u65 Residentl Care Placemnt,MH Res Care Ext- Mitcham West,W2HD55,Third Party Payments          ,Private Contractors           ,EH01,Miscellaneous Agency Services           ,518.68,12/05/2014,REV,ASTRA HOMES                   
138,Childrens & Education Services,Asset Management,S106 Bid,K08077,Supplies & Services           ,Services                      ,DF09,Miscellaneous Fees                      ,"3,040.00",25/04/2014,REV,ATKINS LIMITED                
139,Childrens & Education Services,Adoption Services,CL Permanency,W1DC00,Supplies & Services           ,Services                      ,DF11,Counsel's Fees                          ,"1,872.70",03/03/2014,REV,ATKINS HOPE SOLICITORS        
140,Childrens & Education Services,Statutory & Regulatory Duties,Schools IT Support,K02008,Supplies & Services           ,Comms and Computing           ,DG50,Other IT Expenditure                    ,550,01/04/2014,REV,ATOMWIDE LTD                  
141,Childrens & Education Services,Statutory & Regulatory Duties,Schools IT Support,K02008,Supplies & Services           ,Comms and Computing           ,DG50,Other IT Expenditure                    ,800,24/04/2014,REV,ATOMWIDE LTD                  
142,Childrens & Education Services,Statutory & Regulatory Duties,Schools IT Support,K02008,Supplies & Services           ,Comms and Computing           ,DG50,Other IT Expenditure                    ,"2,100.00",24/04/2014,REV,ATOMWIDE LTD                  
143,Cultural Env Reg&Plan Services,Theatre & Entertainment,Attic Theatre,P18301,Supplies & Services           ,Grants and Subscriptions      ,DJ01,Grants                                  ,"16,250.00",01/05/2014,REV,ATTIC THEATRE COMPANY         
144,Adult Social Care,OP 65&Over NursingCarePlacemts,OP West - Nursing Care,W2LG53,Third Party Payments          ,Private Contractors           ,EH01,Miscellaneous Agency Services           ,585.46,12/05/2014,REV,ST AUBYNS NURSING HOME        
145,Adult Social Care,OP 65&Over NursingCarePlacemts,OP West - Nursing Care,W2LG53,Third Party Payments          ,Private Contractors           ,EH01,Miscellaneous Agency Services           ,585.46,12/05/2014,REV,ST AUBYNS NURSING HOME        
146,Adult Social Care,OP 65&Over NursingCarePlacemts,OP West - Nursing Care,W2LG53,Third Party Payments          ,Private Contractors           ,EH01,Miscellaneous Agency Services           ,585.46,12/05/2014,REV,ST AUBYNS NURSING HOME        
147,Adult Social Care,OP 65&Over NursingCarePlacemts,OP West - Nursing Care,W2LG53,Third Party Payments          ,Private Contractors           ,EH01,Miscellaneous Agency Services           ,585.46,12/05/2014,REV,ST AUBYNS NURSING HOME        
148,Adult Social Care,OP 65&Over NursingCarePlacemts,OP Hosp - Nursing Care,W2LF53,Third Party Payments          ,Private Contractors           ,EH01,Miscellaneous Agency Services           ,-585.46,01/05/2014,REV,THE AVENUE NURSING HOME       
149,Adult Social Care,OP 65&Over NursingCarePlacemts,OP Hosp - Nursing Care,W2LF53,Third Party Payments          ,Private Contractors           ,EH01,Miscellaneous Agency Services           ,-585.46,01/05/2014,REV,THE AVENUE NURSING HOME       
150,Adult Social Care,OP 65&Over NursingCarePlacemts,OP Hosp - Nursing Care,W2LF53,Third Party Payments          ,Private Contractors           ,EH01,Miscellaneous Agency Services           ,-585.46,01/05/2014,REV,THE AVENUE NURSING HOME       
151,Adult Social Care,OP 65&Over NursingCarePlacemts,OP Hosp - Nursing Care,W2LF53,Third Party Payments          ,Private Contractors           ,EH01,Miscellaneous Agency Services           ,585.46,01/05/2014,REV,THE AVENUE NURSING HOME       
152,Adult Social Care,OP 65&Over NursingCarePlacemts,OP Hosp - Nursing Care,W2LF53,Third Party Payments          ,Private Contractors           ,EH01,Miscellaneous Agency Services           ,-585.46,01/05/2014,REV,THE AVENUE NURSING HOME       
153,Adult Social Care,OP 65&Over NursingCarePlacemts,OP Hosp - Nursing Care,W2LF53,Third Party Payments          ,Private Contractors           ,EH01,Miscellaneous Agency Services           ,585.46,01/05/2014,REV,THE AVENUE NURSING HOME       
154,Adult Social Care,OP 65&Over NursingCarePlacemts,OP Hosp - Nursing Care,W2LF53,Third Party Payments          ,Private Contractors           ,EH01,Miscellaneous Agency Services           ,585.46,01/05/2014,REV,THE AVENUE NURSING HOME       
155,Adult Social Care,OP 65&Over NursingCarePlacemts,OP Hosp - Nursing Care,W2LF53,Third Party Payments          ,Private Contractors           ,EH01,Miscellaneous Agency Services           ,585.46,01/05/2014,REV,THE AVENUE NURSING HOME       
156,Adult Social Care,OP 65&Over NursingCarePlacemts,OP R/Park - Nursing Care,W2LR53,Third Party Payments          ,Private Contractors           ,EH01,Miscellaneous Agency Services           ,585.46,01/05/2014,REV,THE AVENUE NURSING HOME       
157,Adult Social Care,OP 65&Over NursingCarePlacemts,OP R/Park - Nursing Care,W2LR53,Third Party Payments          ,Private Contractors           ,EH01,Miscellaneous Agency Services           ,585.46,01/05/2014,REV,THE AVENUE NURSING HOME       
158,Adult Social Care,OP 65&Over NursingCarePlacemts,OP R/Park - Nursing Care,W2LR53,Third Party Payments          ,Private Contractors           ,EH01,Miscellaneous Agency Services           ,585.46,01/05/2014,REV,THE AVENUE NURSING HOME       
159,Adult Social Care,OP 65&Over NursingCarePlacemts,OP R/Park - Nursing Care,W2LR53,Third Party Payments          ,Private Contractors           ,EH01,Miscellaneous Agency Services           ,585.46,01/05/2014,REV,THE AVENUE NURSING HOME       
160,Adult Social Care,OP 65 & Over Direct Payments,OP R/Park-Direct PaymentScheme,W2LR36,Third Party Payments          ,Private Contractors           ,EH73,Direct Payments                         ,552.48,27/05/2014,REV,REDACTED
166,Adult Social Care,OP 65 & Over Direct Payments,OP R/Park-Direct PaymentScheme,W2LR36,Third Party Payments          ,Private Contractors           ,EH73,Direct Payments                         ,680.28,13/05/2014,REV,REDACTED
167,Adult Social Care,OP 65 & Over Direct Payments,OP R/Park-Direct PaymentScheme,W2LR36,Third Party Payments          ,Private Contractors           ,EH73,Direct Payments                         ,680.28,13/05/2014,REV,REDACTED
168,Adult Social Care,OP 65 & Over Direct Payments,OP R/Park-Direct PaymentScheme,W2LR36,Third Party Payments          ,Private Contractors           ,EH73,Direct Payments                         ,680.28,13/05/2014,REV,REDACTED
169,Adult Social Care,OP 65 & Over Direct Payments,OP R/Park-Direct PaymentScheme,W2LR36,Third Party Payments          ,Private Contractors           ,EH73,Direct Payments                         ,680.28,13/05/2014,REV,REDACTED
170,Central Services,GENERATED ACCOUNT,Parking Cash Collect'n Contrct,E06225,Third Party Payments          ,Private Contractors           ,EH02,Miscellaneous Hired Services            ,"1,015.40",30/04/2014,REV,BANKING AUTOMATION LTD        
171,Central Services,GENERATED ACCOUNT,Parking Cash Collect'n Contrct,E06225,Third Party Payments          ,Private Contractors           ,EH02,Miscellaneous Hired Services            ,"1,066.17",31/03/2014,REV,BANKING AUTOMATION LTD        
172,Central Services,GENERATED ACCOUNT,Parking Cash Collect'n Contrct,E06225,Third Party Payments          ,Private Contractors           ,EH02,Miscellaneous Hired Services            ,"10,973.90",30/04/2014,REV,BANKING AUTOMATION LTD        
173,Central Services,GENERATED ACCOUNT,Parking Cash Collect'n Contrct,E06225,Third Party Payments          ,Private Contractors           ,EH02,Miscellaneous Hired Services            ,"10,797.00",31/03/2014,REV,BANKING AUTOMATION LTD        
174,,,Street Tree Programme                   ,CE067FA,New Construction Conversion and Renovation,,B5,Suppliers - Site works                  ,620.4,15/04/2014,CAP,BARCHAM TREES P.L.C.          
175,,,Street Tree Programme                   ,CE067FA,New Construction Conversion and Renovation,,B5,Suppliers - Site works                  ,"1,200.00",15/04/2014,CAP,BARCHAM TREES P.L.C.          
176,CS -Oth Operating Inc & Expend,T/A Vehicle Maintenance etc,Transport-Contract Hire,J01374,Transport Related Expenditure ,Contract Hire and Op Leasing  ,CC64,HIRING TRANSPORT SEN CABS               ,518,30/04/2014,REV,BARCLAYS ASSET & SALES FINANCE
177,CS -Oth Operating Inc & Expend,T/A Vehicle Maintenance etc,Transport-Contract Hire,J01374,Transport Related Expenditure ,Contract Hire and Op Leasing  ,CC64,HIRING TRANSPORT SEN CABS               ,"1,615.00",30/04/2014,REV,BARCLAYS ASSET & SALES FINANCE
178,CS -Oth Operating Inc & Expend,T/A Vehicle Maintenance etc,Transport-Contract Hire,J01374,Transport Related Expenditure ,Contract Hire and Op Leasing  ,CC64,HIRING TRANSPORT SEN CABS               ,"1,500.00",30/04/2014,REV,BARCLAYS ASSET & SALES FINANCE
179,CS -Oth Operating Inc & Expend,T/A Vehicle Maintenance etc,Transport-Contract Hire,J01374,Transport Related Expenditure ,Contract Hire and Op Leasing  ,CC64,HIRING TRANSPORT SEN CABS               ,"1,368.00",30/04/2014,REV,BARCLAYS ASSET & SALES FINANCE
180,CS -Oth Operating Inc & Expend,T/A Vehicle Maintenance etc,Transport-Contract Hire,J01374,Transport Related Expenditure ,Contract Hire and Op Leasing  ,CC64,HIRING TRANSPORT SEN CABS               ,"1,045.00",30/04/2014,REV,BARCLAYS ASSET & SALES FINANCE
181,CS -Oth Operating Inc & Expend,T/A Vehicle Maintenance etc,Transport-Contract Hire,J01374,Transport Related Expenditure ,Contract Hire and Op Leasing  ,CC64,HIRING TRANSPORT SEN CABS               ,"1,160.00",30/04/2014,REV,BARCLAYS ASSET & SALES FINANCE
182,CS -Oth Operating Inc & Expend,T/A Vehicle Maintenance etc,Transport-Contract Hire,J01374,Transport Related Expenditure ,Contract Hire and Op Leasing  ,CC64,HIRING TRANSPORT SEN CABS               ,"1,048.00",30/04/2014,REV,BARCLAYS ASSET & SALES FINANCE
183,CS -Oth Operating Inc & Expend,T/A Vehicle Maintenance etc,Transport-Contract Hire,J01374,Transport Related Expenditure ,Contract Hire and Op Leasing  ,CC64,HIRING TRANSPORT SEN CABS               ,"1,300.00",30/04/2014,REV,BARCLAYS ASSET & SALES FINANCE
184,CS -Oth Operating Inc & Expend,T/A Vehicle Maintenance etc,Transport-Contract Hire,J01374,Transport Related Expenditure ,Contract Hire and Op Leasing  ,CC64,HIRING TRANSPORT SEN CABS               ,"1,400.00",30/04/2014,REV,BARCLAYS ASSET & SALES FINANCE
185,CS -Oth Operating Inc & Expend,T/A Vehicle Maintenance etc,Transport-Contract Hire,J01374,Transport Related Expenditure ,Contract Hire and Op Leasing  ,CC64,HIRING TRANSPORT SEN CABS               ,"1,144.00",30/04/2014,REV,BARCLAYS ASSET & SALES FINANCE
186,CS -Oth Operating Inc & Expend,T/A Vehicle Maintenance etc,Transport-Contract Hire,J01374,Transport Related Expenditure ,Contract Hire and Op Leasing  ,CC64,HIRING TRANSPORT SEN CABS               ,"1,640.00",30/04/2014,REV,BARCLAYS ASSET & SALES FINANCE
187,CS -Oth Operating Inc & Expend,T/A Vehicle Maintenance etc,Transport-Contract Hire,J01374,Transport Related Expenditure ,Contract Hire and Op Leasing  ,CC64,HIRING TRANSPORT SEN CABS               ,"1,330.00",30/04/2014,REV,BARCLAYS ASSET & SALES FINANCE
188,CS -Oth Operating Inc & Expend,T/A Vehicle Maintenance etc,Transport-Contract Hire,J01374,Transport Related Expenditure ,Contract Hire and Op Leasing  ,CC64,HIRING TRANSPORT SEN CABS               ,960,30/04/2014,REV,BARCLAYS ASSET & SALES FINANCE
189,CS -Oth Operating Inc & Expend,T/A Vehicle Maintenance etc,Transport-Contract Hire,J01374,Transport Related Expenditure ,Contract Hire and Op Leasing  ,CC67,HIRING TRANSPORT H&SS CAB ADULTS        ,672,30/04/2014,REV,BARCLAYS ASSET & SALES FINANCE
190,CS -Oth Operating Inc & Expend,T/A Vehicle Maintenance etc,Transport-Contract Hire,J01374,Transport Related Expenditure ,Contract Hire and Op Leasing  ,CC67,HIRING TRANSPORT H&SS CAB ADULTS        ,656.34,30/04/2014,REV,BARCLAYS ASSET & SALES FINANCE
191,CS -Oth Operating Inc & Expend,T/A Vehicle Maintenance etc,Transport-Contract Hire,J01374,Transport Related Expenditure ,Contract Hire and Op Leasing  ,CC67,HIRING TRANSPORT H&SS CAB ADULTS        ,720,30/04/2014,REV,BARCLAYS ASSET & SALES FINANCE
192,CS -Oth Operating Inc & Expend,T/A Vehicle Maintenance etc,Transport-Contract Hire,J01374,Transport Related Expenditure ,Contract Hire and Op Leasing  ,CC67,HIRING TRANSPORT H&SS CAB ADULTS        ,689.15,30/04/2014,REV,BARCLAYS ASSET & SALES FINANCE
193,CS -Oth Operating Inc & Expend,T/A Vehicle Maintenance etc,Transport-Contract Hire,J01374,Transport Related Expenditure ,Contract Hire and Op Leasing  ,CC67,HIRING TRANSPORT H&SS CAB ADULTS        ,"1,218.00",30/04/2014,REV,BARCLAYS ASSET & SALES FINANCE
194,CS -Oth Operating Inc & Expend,T/A Vehicle Maintenance etc,Transport-Contract Hire,J01374,Transport Related Expenditure ,Contract Hire and Op Leasing  ,CC68,HIRING TRANSPORT SEN COLLEGES CABS      ,"1,312.66",30/04/2014,REV,BARCLAYS ASSET & SALES FINANCE
195,CS -Oth Operating Inc & Expend,T/A Vehicle Maintenance etc,Transport-Workshop,J01376,Transport Related Expenditure ,Contract Hire and Op Leasing  ,CC60,Vehicle Hire for LB Sutton              ,"3,720.00",30/04/2014,REV,BARCLAYS ASSET & SALES FINANCE
196,CS -Oth Operating Inc & Expend,T/A Vehicle Maintenance etc,Transport-Workshop,J01376,Transport Related Expenditure ,Contract Hire and Op Leasing  ,CC60,Vehicle Hire for LB Sutton              ,"1,240.00",30/04/2014,REV,BARCLAYS ASSET & SALES FINANCE
197,CS -Oth Operating Inc & Expend,T/A Vehicle Maintenance etc,Transport-Workshop,J01376,Transport Related Expenditure ,Contract Hire and Op Leasing  ,CC65,Vehicle Hire for Education              ,"1,120.00",30/04/2014,REV,BARCLAYS ASSET & SALES FINANCE
198,Adult Social Care,LD u65 Nursing Care Placements,LD Nursing Care,W2KB53,Third Party Payments          ,Private Contractors           ,EH01,Miscellaneous Agency Services           ,924.08,30/04/2014,REV,BARONS LODGE NURSING HOME     
199,Adult Social Care,LD u65 Nursing Care Placements,LD Nursing Care,W2KB53,Third Party Payments          ,Private Contractors           ,EH01,Miscellaneous Agency Services           ,924.08,30/04/2014,REV,BARONS LODGE NURSING HOME     
200,Adult Social Care,LD u65 Nursing Care Placements,LD Nursing Care,W2KB53,Third Party Payments          ,Private Contractors           ,EH01,Miscellaneous Agency Services           ,924.08,30/04/2014,REV,BARONS LODGE NURSING HOME     
201,Adult Social Care,LD u65 Nursing Care Placements,LD Nursing Care,W2KB53,Third Party Payments          ,Private Contractors           ,EH01,Miscellaneous Agency Services           ,924.08,30/04/2014,REV,BARONS LODGE NURSING HOME     
202,Adult Social Care,LD u65 Residentl Care Placemnt,LD Residential Care External,W2KB55,Third Party Payments          ,Private Contractors           ,EH01,Miscellaneous Agency Services           ,650,30/04/2014,REV,BARONS LODGE NURSING HOME     
203,Adult Social Care,LD u65 Residentl Care Placemnt,LD Residential Care External,W2KB55,Third Party Payments          ,Private Contractors           ,EH01,Miscellaneous Agency Services           ,650,30/04/2014,REV,BARONS LODGE NURSING HOME     
204,Adult Social Care,LD u65 Residentl Care Placemnt,LD Residential Care External,W2KB55,Third Party Payments          ,Private Contractors           ,EH01,Miscellaneous Agency Services           ,650,30/04/2014,REV,BARONS LODGE NURSING HOME     
205,Adult Social Care,LD u65 Residentl Care Placemnt,LD Residential Care External,W2KB55,Third Party Payments          ,Private Contractors           ,EH01,Miscellaneous Agency Services           ,650,30/04/2014,REV,BARONS LODGE NURSING HOME     
206,Adult Social Care,OP 65&Over NursingCarePlacemts,OP East - Nursing Care,W2LH53,Third Party Payments          ,Private Contractors           ,EH01,Miscellaneous Agency Services           ,585.46,01/05/2014,REV,LONDON RESIDENTIAL H/CARE LTD 
207,Adult Social Care,OP 65&Over NursingCarePlacemts,OP East - Nursing Care,W2LH53,Third Party Payments          ,Private Contractors           ,EH01,Miscellaneous Agency Services           ,585.46,01/05/2014,REV,LONDON RESIDENTIAL H/CARE LTD 
208,Adult Social Care,OP 65&Over NursingCarePlacemts,OP East - Nursing Care,W2LH53,Third Party Payments          ,Private Contractors           ,EH01,Miscellaneous Agency Services           ,585.46,01/05/2014,REV,LONDON RESIDENTIAL H/CARE LTD 
209,Adult Social Care,OP 65&Over NursingCarePlacemts,OP East - Nursing Care,W2LH53,Third Party Payments          ,Private Contractors           ,EH01,Miscellaneous Agency Services           ,585.46,01/05/2014,REV,LONDON RESIDENTIAL H/CARE LTD 
210,Childrens & Education Services,Support for SEN Pupils,Non-Delegated Statements,K90024,Third Party Payments          ,Other Establishments          ,EG01,Alternative SEN Provision               ,"2,293.35",15/04/2014,REV,REDACTED
211,Childrens & Education Services,Asset Management,S106 Bid,K08077,Supplies & Services           ,Services                      ,DF09,Miscellaneous Fees                      ,"4,800.00",30/08/2013,REV,BATES WELLS & BRAITHWAITE     
212,Childrens & Education Services,Youth Centres (Residential),Detached Projects,K06066,Transport Related Expenditure ,Direct Transport Costs        ,CA04,R & M of Veh - General                  ,700,12/05/2014,REV,BCSS CAR SOUNDS LIMITED       
213,Adult Social Care,OP 65&Over Resi Care Placement,OP East - Residential Care Ext,W2LH55,Third Party Payments          ,Private Contractors           ,EH01,Miscellaneous Agency Services           ,542,09/05/2014,REV,THE BEECHES                   
214,Adult Social Care,OP 65&Over Resi Care Placement,OP East - Residential Care Ext,W2LH55,Third Party Payments          ,Private Contractors           ,EH01,Miscellaneous Agency Services           ,542,09/05/2014,REV,THE BEECHES                   
215,Adult Social Care,OP 65&Over Resi Care Placement,OP East - Residential Care Ext,W2LH55,Third Party Payments          ,Private Contractors           ,EH01,Miscellaneous Agency Services           ,542,09/05/2014,REV,THE BEECHES                   
216,Adult Social Care,OP 65&Over Resi Care Placement,OP East - Residential Care Ext,W2LH55,Third Party Payments          ,Private Contractors           ,EH01,Miscellaneous Agency Services           ,542,09/05/2014,REV,THE BEECHES                   
217,Childrens & Education Services,Chidren's Homes,ART Residential Placements,W1DE57,Third Party Payments          ,Private Contractors           ,EH01,Miscellaneous Agency Services           ,"3,718.90",01/05/2014,REV,REDACTED
218,Childrens & Education Services,Chidren's Homes,ART Residential Placements,W1DE57,Third Party Payments          ,Private Contractors           ,EH01,Miscellaneous Agency Services           ,"-3,187.63",01/05/2014,REV,REDACTED
219,Childrens & Education Services,Chidren's Homes,ART Residential Placements,W1DE57,Third Party Payments          ,Private Contractors           ,EH01,Miscellaneous Agency Services           ,"3,187.63",01/05/2014,REV,REDACTED
220,Childrens & Education Services,Chidren's Homes,ART Residential Placements,W1DE57,Third Party Payments          ,Private Contractors           ,EH01,Miscellaneous Agency Services           ,"3,187.63",01/05/2014,REV,REDACTED
221,Childrens & Education Services,Chidren's Homes,ART Residential Placements,W1DE57,Third Party Payments          ,Private Contractors           ,EH01,Miscellaneous Agency Services           ,"3,718.90",01/05/2014,REV,REDACTED
222,Childrens & Education Services,Chidren's Homes,ART Residential Placements,W1DE57,Third Party Payments          ,Private Contractors           ,EH01,Miscellaneous Agency Services           ,"3,718.90",01/05/2014,REV,REDACTED
223,Childrens & Education Services,Chidren's Homes,ART Residential Placements,W1DE57,Third Party Payments          ,Private Contractors           ,EH01,Miscellaneous Agency Services           ,"3,718.90",01/05/2014,REV,REDACTED
224,Adult Social Care,LD u65 Home Care,LD Home Care External,W2KB49,Third Party Payments          ,Private Contractors           ,EH01,Miscellaneous Agency Services           ,656.39,02/05/2014,REV,BEECH HOME CARE SERVICES      
225,Adult Social Care,LD u65 Home Care,LD Home Care External,W2KB49,Third Party Payments          ,Private Contractors           ,EH01,Miscellaneous Agency Services           ,-571.76,06/04/2014,REV,BEECH HOME CARE SERVICES      
226,Adult Social Care,LD u65 Home Care,LD Home Care External,W2KB49,Third Party Payments          ,Private Contractors           ,EH01,Miscellaneous Agency Services           ,571.76,17/04/2014,REV,BEECH HOME CARE SERVICES      
227,Adult Social Care,LD u65 Home Care,LD Home Care External,W2KB49,Third Party Payments          ,Private Contractors           ,EH01,Miscellaneous Agency Services           ,656.39,06/04/2014,REV,BEECH HOME CARE SERVICES      
228,Adult Social Care,LD u65 Home Care,LD Home Care External,W2KB49,Third Party Payments          ,Private Contractors           ,EH01,Miscellaneous Agency Services           ,656.39,29/04/2014,REV,BEECH HOME CARE SERVICES      
229,Adult Social Care,LD u65 Home Care,LD Home Care External,W2KB49,Third Party Payments          ,Private Contractors           ,EH01,Miscellaneous Agency Services           ,656.39,02/05/2014,REV,BEECH HOME CARE SERVICES      
230,Adult Social Care,OP 65&Over Resi Care Placement,OP R/Park-Residential Care Ext,W2LR55,Third Party Payments          ,Private Contractors           ,EH01,Miscellaneous Agency Services           ,500,25/05/2014,REV,BEECHWOOD HOUSE               
231,Adult Social Care,OP 65&Over Resi Care Placement,OP R/Park-Residential Care Ext,W2LR55,Third Party Payments          ,Private Contractors           ,EH01,Miscellaneous Agency Services           ,500,25/05/2014,REV,BEECHWOOD HOUSE               
232,Adult Social Care,OP 65&Over Resi Care Placement,OP R/Park-Residential Care Ext,W2LR55,Third Party Payments          ,Private Contractors           ,EH01,Miscellaneous Agency Services           ,500,25/05/2014,REV,BEECHWOOD HOUSE               
233,Adult Social Care,OP 65&Over Resi Care Placement,OP R/Park-Residential Care Ext,W2LR55,Third Party Payments          ,Private Contractors           ,EH01,Miscellaneous Agency Services           ,500,25/05/2014,REV,BEECHWOOD HOUSE               
234,Cultural Env Reg&Plan Services,Street Clean - Not highways,Street Cleansing (Inc. Gully),G00492,Supplies & Services           ,Equip Furniture/Materials     ,DA08,Tools-Purchase                          ,"1,324.20",14/05/2014,REV,BELL BRUSH                    
236,Adult Social Care,LD u65 Direct Payments,LD Direct Payment Scheme,W2KB36,Third Party Payments          ,Private Contractors           ,EH73,Direct Payments                         ,694.96,13/05/2014,REV,REDACTED
237,Adult Social Care,LD u65 Direct Payments,LD Direct Payment Scheme,W2KB36,Third Party Payments          ,Private Contractors           ,EH73,Direct Payments                         ,694.96,13/05/2014,REV,REDACTED
238,Adult Social Care,LD u65 Direct Payments,LD Direct Payment Scheme,W2KB36,Third Party Payments          ,Private Contractors           ,EH73,Direct Payments                         ,694.96,13/05/2014,REV,REDACTED
239,Adult Social Care,LD u65 Direct Payments,LD Direct Payment Scheme,W2KB36,Third Party Payments          ,Private Contractors           ,EH73,Direct Payments                         ,694.96,13/05/2014,REV,REDACTED
240,Central Services,SupS Facilities,Facilities,E02231,Premises Related Expenditure  ,RepairsAlterations&MtceOfBldgs,BA02,ENERGY CONSERVATION                     ,667,30/04/2014,REV,BERGEN ENERGI                 
241,Central Services,SupS Facilities,Facilities,E02231,Premises Related Expenditure  ,RepairsAlterations&MtceOfBldgs,BA02,ENERGY CONSERVATION                     ,"1,917.00",09/05/2014,REV,BERGEN ENERGI                 
242,Central Services,SupS Facilities,Facilities,E02231,Premises Related Expenditure  ,RepairsAlterations&MtceOfBldgs,BA02,ENERGY CONSERVATION                     ,"1,916.46",01/04/2014,REV,BERGEN ENERGI                 
243,Central Services,SupS Facilities,Facilities,E02231,Premises Related Expenditure  ,RepairsAlterations&MtceOfBldgs,BA02,ENERGY CONSERVATION                     ,"1,250.00",14/04/2014,REV,BERGEN ENERGI                 
244,Cultural Env Reg&Plan Services,Library DoS not split,Media Fund,L83081,Supplies & Services           ,Equip Furniture/Materials     ,DA60,Lending                                 ,734.97,16/05/2014,REV,BERTRAM LIBRARY SERVICES      
245,Cultural Env Reg&Plan Services,Library DoS not split,Media Fund,L83081,Supplies & Services           ,Equip Furniture/Materials     ,DA60,Lending                                 ,511.58,15/05/2014,REV,BERTRAM LIBRARY SERVICES      
246,Childrens & Education Services,Chidren's Homes,ART Residential Placements,W1DE57,Third Party Payments          ,Private Contractors           ,EH01,Miscellaneous Agency Services           ,"2,600.00",01/02/2014,REV,REDACTED
247,Childrens & Education Services,Chidren's Homes,ART Residential Placements,W1DE57,Third Party Payments          ,Private Contractors           ,EH01,Miscellaneous Agency Services           ,"2,600.00",01/02/2014,REV,REDACTED
248,Childrens & Education Services,Chidren's Homes,ART Residential Placements,W1DE57,Third Party Payments          ,Private Contractors           ,EH01,Miscellaneous Agency Services           ,742.85,01/02/2014,REV,REDACTED
249,Childrens & Education Services,Chidren's Homes,ART Residential Placements,W1DE57,Third Party Payments          ,Private Contractors           ,EH01,Miscellaneous Agency Services           ,"2,600.00",01/02/2014,REV,REDACTED
250,Central Services,SupS Legal,Richmond Legal,E10289,Supplies & Services           ,Services                      ,DF95,Services from Provider                  ,"2,944.50",01/05/2014,REV,REDACTED
251,Central Services,SupS Legal,Richmond Legal,E10289,Supplies & Services           ,Services                      ,DF95,Services from Provider                  ,"2,037.00",19/05/2014,REV,REDACTED
252,Central Services,SupS Legal,Richmond Legal,E10289,Supplies & Services           ,Services                      ,DF95,Services from Provider                  ,"13,866.00",07/04/2014,REV,REDACTED
253,Childrens & Education Services,Support for SEN Pupils,Non-Delegated Statements,K90024,Third Party Payments          ,Other Establishments          ,EG50,Ind Day Schs Payments                   ,"15,972.95",13/05/2014,REV,BEYOND AUTISM                 
254,Adult Social Care,OP 65&Over Resi Care Placement,OP East - Residential Care Ext,W2LH55,Third Party Payments          ,Private Contractors           ,EH01,Miscellaneous Agency Services           ,524.22,01/05/2014,REV,BHAKTI SHYAMA CARE CENTRE     
255,Adult Social Care,OP 65&Over Resi Care Placement,OP East - Residential Care Ext,W2LH55,Third Party Payments          ,Private Contractors           ,EH01,Miscellaneous Agency Services           ,524.22,01/05/2014,REV,BHAKTI SHYAMA CARE CENTRE     
256,Adult Social Care,OP 65&Over Resi Care Placement,OP East - Residential Care Ext,W2LH55,Third Party Payments          ,Private Contractors           ,EH01,Miscellaneous Agency Services           ,524.22,01/05/2014,REV,BHAKTI SHYAMA CARE CENTRE     
257,Adult Social Care,OP 65&Over Resi Care Placement,OP East - Residential Care Ext,W2LH55,Third Party Payments          ,Private Contractors           ,EH01,Miscellaneous Agency Services           ,524.22,01/05/2014,REV,BHAKTI SHYAMA CARE CENTRE     
258,Adult Social Care,PS u65 Direct Payments,PD WEST TEAM-Direct Payment,W2JK36,Third Party Payments          ,Private Contractors           ,EH73,Direct Payments                         ,680.28,13/05/2014,REV,REDACTED
259,Adult Social Care,PS u65 Direct Payments,PD WEST TEAM-Direct Payment,W2JK36,Third Party Payments          ,Private Contractors           ,EH73,Direct Payments                         ,680.28,13/05/2014,REV,REDACTED
260,Adult Social Care,PS u65 Direct Payments,PD WEST TEAM-Direct Payment,W2JK36,Third Party Payments          ,Private Contractors           ,EH73,Direct Payments                         ,680.28,13/05/2014,REV,REDACTED
261,Adult Social Care,PS u65 Direct Payments,PD WEST TEAM-Direct Payment,W2JK36,Third Party Payments          ,Private Contractors           ,EH73,Direct Payments                         ,680.28,13/05/2014,REV,REDACTED
262,Central Services,SupS Legal,Sutton Legal                            ,E10293,Supplies & Services           ,Services                      ,DF11,Counsel's Fees                          ,"2,785.00",24/04/2014,REV,REDACTED
263,Cultural Env Reg&Plan Services,Waste Disposal (not separated),Waste Disposal .,G00550,Third Party Payments          ,Private Contractors           ,EH01,Dog Bin Disposal - Biffa                ,662.71,11/04/2014,REV,BIFFA WASTE SERVICES LTD      
264,Central Services,SupS Chief Execs,NON-STATUTORY MARKETING & COMM,A02019,Supplies & Services           ,Services                      ,DF35,Graphic Design                          ,"4,225.00",12/05/2014,REV,THE BIG IDEA 
265,Adult Social Care,OP 65 & Over Day Care,Pollards Hill Day Centre,E02270,Premises Related Expenditure  ,Cleaning and Domestic Supplies,BH03,Cleaning Services                       ,"1,239.08",17/04/2014,REV,BIRKIN CLEANING SERVICES LTD  
266,Adult Social Care,OP 65 & Over Day Care,Pollards Hill Day Centre,E02270,Premises Related Expenditure  ,Cleaning and Domestic Supplies,BH03,Cleaning Services                       ,"1,421.80",17/04/2014,REV,BIRKIN CLEANING SERVICES LTD  
267,Adult Social Care,OP 65 & Over Day Care,Pollards Hill Day Centre,E02270,Premises Related Expenditure  ,Cleaning and Domestic Supplies,BH03,Cleaning Services                       ,"1,673.61",17/04/2014,REV,BIRKIN CLEANING SERVICES LTD  
268,Adult Social Care,OP 65 & Over Day Care,Pollards Hill Day Centre,E02270,Premises Related Expenditure  ,Cleaning and Domestic Supplies,BH03,Cleaning Services                       ,"6,596.17",17/04/2014,REV,BIRKIN CLEANING SERVICES LTD  
269,Adult Social Care,OP 65 & Over Day Care,Pollards Hill Day Centre,E02270,Premises Related Expenditure  ,Cleaning and Domestic Supplies,BH03,Cleaning Services                       ,"1,492.52",17/04/2014,REV,BIRKIN CLEANING SERVICES LTD  
270,Adult Social Care,OP 65 & Over Day Care,Pollards Hill Day Centre,E02270,Premises Related Expenditure  ,Cleaning and Domestic Supplies,BH03,Cleaning Services                       ,835.04,17/04/2014,REV,BIRKIN CLEANING SERVICES LTD  
271,Adult Social Care,OP 65 & Over Day Care,Pollards Hill Day Centre,E02270,Premises Related Expenditure  ,Cleaning and Domestic Supplies,BH03,Cleaning Services                       ,"1,222.20",17/04/2014,REV,BIRKIN CLEANING SERVICES LTD  
272,Adult Social Care,OP 65 & Over Day Care,Pollards Hill Day Centre,E02270,Premises Related Expenditure  ,Cleaning and Domestic Supplies,BH03,Cleaning Services                       ,"1,540.02",17/04/2014,REV,BIRKIN CLEANING SERVICES LTD  
273,Adult Social Care,OP 65 & Over Day Care,Pollards Hill Day Centre,E02270,Premises Related Expenditure  ,Cleaning and Domestic Supplies,BH03,Cleaning Services                       ,"3,093.61",17/04/2014,REV,BIRKIN CLEANING SERVICES LTD  
274,Central Services,Grants - Voluntary Groups,Vestry Hall,G19290,Premises Related Expenditure  ,Cleaning and Domestic Supplies,BH03,Cleaning Services                       ,"1,383.56",17/04/2014,REV,BIRKIN CLEANING SERVICES LTD  
275,Childrens & Education Services,GENERATED ACCOUNT,Mitcham MAT (Premises),K05412,Premises Related Expenditure  ,Cleaning and Domestic Supplies,BH03,Cleaning Services                       ,"1,208.78",17/04/2014,REV,BIRKIN CLEANING SERVICES LTD  
276,Childrens & Education Services,Nursery schools,Lavender CC Non Childcare,K05415,Premises Related Expenditure  ,Cleaning and Domestic Supplies,BH03,Cleaning Services                       ,"1,212.14",17/04/2014,REV,BIRKIN CLEANING SERVICES LTD  
277,Childrens & Education Services,Nursery schools,E.Years-Intergenerational Cntr,K05416,Premises Related Expenditure  ,Cleaning and Domestic Supplies,BH03,Cleaning Services                       ,811.96,17/04/2014,REV,BIRKIN CLEANING SERVICES LTD  
278,Childrens & Education Services,Youth Centres (Residential),Youth Service,K06053,Premises Related Expenditure  ,Cleaning and Domestic Supplies,BH03,Cleaning Services                       ,506.69,17/04/2014,REV,BIRKIN CLEANING SERVICES LTD  
279,Cultural Env Reg&Plan Services,Library DoS not split,MITCHAM LIBRARY,L83071,Premises Related Expenditure  ,Cleaning and Domestic Supplies,BH03,Cleaning Services                       ,992.31,17/04/2014,REV,BIRKIN CLEANING SERVICES LTD  
280,Cultural Env Reg&Plan Services,Library DoS not split,Pollards Hill Library,L83073,Premises Related Expenditure  ,Cleaning and Domestic Supplies,BH03,Cleaning Services                       ,961.84,17/04/2014,REV,BIRKIN CLEANING SERVICES LTD  
281,Cultural Env Reg&Plan Services,Library DoS not split,Morden Library,L84081,Premises Related Expenditure  ,Cleaning and Domestic Supplies,BH03,Cleaning Services                       ,982.67,17/04/2014,REV,BIRKIN CLEANING SERVICES LTD  
282,Cultural Env Reg&Plan Services,Library DoS not split,Raynes Park Library,L84083,Premises Related Expenditure  ,Cleaning and Domestic Supplies,BH03,Cleaning Services                       ,585.74,17/04/2014,REV,BIRKIN CLEANING SERVICES LTD  
283,Cultural Env Reg&Plan Services,Library DoS not split,Wimbledon Library,L85091,Premises Related Expenditure  ,Cleaning and Domestic Supplies,BH03,Cleaning Services                       ,"1,183.99",17/04/2014,REV,BIRKIN CLEANING SERVICES LTD  
284,Adult Social Care,PS u65 Day Care,PS All Saints DC,W2JC00,Premises Related Expenditure  ,Cleaning and Domestic Supplies,BH03,Cleaning Services                       ,"1,172.11",17/04/2014,REV,BIRKIN CLEANING SERVICES LTD  
285,,,LD JMC                                  ,WPKB00,Premises Related Expenditure  ,Cleaning and Domestic Supplies,BH03,Cleaning Services                       ,"1,373.72",17/04/2014,REV,BIRKIN CLEANING SERVICES LTD  
286,,,LD High Path DC                         ,WPKB02,Premises Related Expenditure  ,Cleaning and Domestic Supplies,BH03,Cleaning Services                       ,"1,036.34",17/04/2014,REV,BIRKIN CLEANING SERVICES LTD  
287,Highways & Transport Services,Safe routes inc schl x patrol,School & Road Safety TFL                ,H01083,Supplies & Services           ,Services                      ,DF30,Activities Programme                    ,550,22/04/2014,REV,BLAKES DRIVER TRAINING        
288,Childrens & Education Services,Support for SEN Pupils,Non-Delegated Statements,K90024,Third Party Payments          ,Other Establishments          ,EG50,Ind Day Schs Payments                   ,"5,287.50",21/05/2014,REV,BLOSSOM LOWER SCHOOL LTD      
289,Childrens & Education Services,Leaving Care Services,CL Setting Up Home Allowance,W1DF41,Third Party Payments          ,Private Contractors           ,EH01,Miscellaneous Agency Services           ,750,14/05/2014,REV,REDACTED
290,Childrens & Education Services,Asset Management,S106 Bid,K08077,Premises Related Expenditure  ,Rents                         ,BC01,Miscellaneous Rents                     ,"3,714.23",06/05/2014,REV,BOSHIRE LTD                   
291,Adult Social Care,OP 65 & Over Direct Payments,OP R/Park-Direct PaymentScheme,W2LR36,Third Party Payments          ,Private Contractors           ,EH73,Direct Payments                         ,531.12,13/05/2014,REV,REDACTED
292,Adult Social Care,OP 65 & Over Direct Payments,OP R/Park-Direct PaymentScheme,W2LR36,Third Party Payments          ,Private Contractors           ,EH73,Direct Payments                         ,531.12,13/05/2014,REV,REDACTED
293,Adult Social Care,OP 65 & Over Direct Payments,OP R/Park-Direct PaymentScheme,W2LR36,Third Party Payments          ,Private Contractors           ,EH73,Direct Payments                         ,531.12,13/05/2014,REV,REDACTED
294,Adult Social Care,OP 65 & Over Direct Payments,OP R/Park-Direct PaymentScheme,W2LR36,Third Party Payments          ,Private Contractors           ,EH73,Direct Payments                         ,531.12,13/05/2014,REV,REDACTED
295,Adult Social Care,LD u65 Residentl Care Placemnt,LD Residential Care External,W2KB55,Third Party Payments          ,Private Contractors           ,EH01,Miscellaneous Agency Services           ,"1,420.00",21/04/2014,REV,BROADHAM CARE LTD             
296,Adult Social Care,LD u65 Residentl Care Placemnt,LD Residential Care External,W2KB55,Third Party Payments          ,Private Contractors           ,EH01,Miscellaneous Agency Services           ,"1,681.31",21/04/2014,REV,BROADHAM CARE LTD             
297,Adult Social Care,LD u65 Residentl Care Placemnt,LD Residential Care External,W2KB55,Third Party Payments          ,Private Contractors           ,EH01,Miscellaneous Agency Services           ,"1,681.31",21/04/2014,REV,BROADHAM CARE LTD             
298,Adult Social Care,LD u65 Residentl Care Placemnt,LD Residential Care External,W2KB55,Third Party Payments          ,Private Contractors           ,EH01,Miscellaneous Agency Services           ,"1,681.31",21/04/2014,REV,BROADHAM CARE LTD             
299,Adult Social Care,LD u65 Residentl Care Placemnt,LD Residential Care External,W2KB55,Third Party Payments          ,Private Contractors           ,EH01,Miscellaneous Agency Services           ,"1,420.00",21/04/2014,REV,BROADHAM CARE LTD             
300,Adult Social Care,LD u65 Residentl Care Placemnt,LD Residential Care External,W2KB55,Third Party Payments          ,Private Contractors           ,EH01,Miscellaneous Agency Services           ,"1,420.00",21/04/2014,REV,BROADHAM CARE LTD             
301,Adult Social Care,LD u65 Residentl Care Placemnt,LD Residential Care External,W2KB55,Third Party Payments          ,Private Contractors           ,EH01,Miscellaneous Agency Services           ,"1,420.00",21/04/2014,REV,BROADHAM CARE LTD             
302,Adult Social Care,LD u65 Residentl Care Placemnt,LD Residential Care External,W2KB55,Third Party Payments          ,Private Contractors           ,EH01,Miscellaneous Agency Services           ,"1,681.31",21/04/2014,REV,BROADHAM CARE LTD             
303,Adult Social Care,PS u65 Residentl Care Placemnt,PD EAST TEAM-Residential,W2JJ55,Third Party Payments          ,Private Contractors           ,EH01,Miscellaneous Agency Services           ,"1,527.90",15/05/2014,REV,BRAMBLEDOWN CARE HOME         
304,Adult Social Care,PS u65 Residentl Care Placemnt,PD EAST TEAM-Residential,W2JJ55,Third Party Payments          ,Private Contractors           ,EH01,Miscellaneous Agency Services           ,"1,527.90",15/05/2014,REV,BRAMBLEDOWN CARE HOME         
305,Adult Social Care,PS u65 Residentl Care Placemnt,PD EAST TEAM-Residential,W2JJ55,Third Party Payments          ,Private Contractors           ,EH01,Miscellaneous Agency Services           ,"1,527.90",15/05/2014,REV,BRAMBLEDOWN CARE HOME         
306,Adult Social Care,PS u65 Residentl Care Placemnt,PD EAST TEAM-Residential,W2JJ55,Third Party Payments          ,Private Contractors           ,EH01,Miscellaneous Agency Services           ,"1,527.90",15/05/2014,REV,BRAMBLEDOWN CARE HOME         
307,Adult Social Care,OP 65&Over NursingCarePlacemts,OP R/Park - Nursing Care,W2LR53,Third Party Payments          ,Private Contractors           ,EH01,Miscellaneous Agency Services           ,585.46,01/05/2014,REV,BRIDGE HOUSE CARE CENTRE      
308,Adult Social Care,OP 65&Over NursingCarePlacemts,OP R/Park - Nursing Care,W2LR53,Third Party Payments          ,Private Contractors           ,EH01,Miscellaneous Agency Services           ,585.46,01/05/2014,REV,BRIDGE HOUSE CARE CENTRE      
309,Adult Social Care,OP 65&Over NursingCarePlacemts,OP R/Park - Nursing Care,W2LR53,Third Party Payments          ,Private Contractors           ,EH01,Miscellaneous Agency Services           ,585.46,01/05/2014,REV,BRIDGE HOUSE CARE CENTRE      
310,Adult Social Care,OP 65&Over NursingCarePlacemts,OP R/Park - Nursing Care,W2LR53,Third Party Payments          ,Private Contractors           ,EH01,Miscellaneous Agency Services           ,585.46,01/05/2014,REV,BRIDGE HOUSE CARE CENTRE      
311,Central Services,SupS Legal,Sutton Legal                            ,E10293,Supplies & Services           ,Services                      ,DF11,Counsel's Fees                          ,712.5,20/02/2014,REV,REDACTED
312,Childrens & Education Services,Fostering Services,ART Independent Agency Foster,W1DE46,Supplies & Services           ,Services                      ,DF53,Task Based Fostering                    ,760,07/04/2014,REV,BRIGHTER FUTURES FOSTER CARE  
313,Childrens & Education Services,Fostering Services,ART Independent Agency Foster,W1DE46,Supplies & Services           ,Services                      ,DF53,Task Based Fostering                    ,760,07/04/2014,REV,BRIGHTER FUTURES FOSTER CARE  
314,Childrens & Education Services,Fostering Services,ART Independent Agency Foster,W1DE46,Supplies & Services           ,Services                      ,DF53,Task Based Fostering                    ,760,07/04/2014,REV,BRIGHTER FUTURES FOSTER CARE  
315,Childrens & Education Services,Fostering Services,ART Independent Agency Foster,W1DE46,Supplies & Services           ,Services                      ,DF53,Task Based Fostering                    ,760,07/04/2014,REV,BRIGHTER FUTURES FOSTER CARE  
316,Childrens & Education Services,Fostering Services,ART Independent Agency Foster,W1DE46,Supplies & Services           ,Services                      ,DF53,Task Based Fostering                    ,-651.43,07/04/2014,REV,BRIGHTER FUTURES FOSTER CARE  
317,Childrens & Education Services,Fostering Services,ART Independent Agency Foster,W1DE46,Supplies & Services           ,Services                      ,DF53,Task Based Fostering                    ,651.43,07/04/2014,REV,BRIGHTER FUTURES FOSTER CARE  
318,Childrens & Education Services,Fostering Services,ART Independent Agency Foster,W1DE46,Supplies & Services           ,Services                      ,DF53,Task Based Fostering                    ,651.43,07/04/2014,REV,BRIGHTER FUTURES FOSTER CARE  
319,Adult Social Care,LD u65 Residentl Care Placemnt,LD Residential Care External,W2KB55,Third Party Payments          ,Private Contractors           ,EH01,Miscellaneous Agency Services           ,949.51,15/06/2014,REV,BRIGSTOCK HOUSE               
320,Adult Social Care,LD u65 Residentl Care Placemnt,LD Residential Care External,W2KB55,Third Party Payments          ,Private Contractors           ,EH01,Miscellaneous Agency Services           ,949.51,15/06/2014,REV,BRIGSTOCK HOUSE               
321,Adult Social Care,LD u65 Residentl Care Placemnt,LD Residential Care External,W2KB55,Third Party Payments          ,Private Contractors           ,EH01,Miscellaneous Agency Services           ,949.51,15/06/2014,REV,BRIGSTOCK HOUSE               
322,Adult Social Care,LD u65 Residentl Care Placemnt,LD Residential Care External,W2KB55,Third Party Payments          ,Private Contractors           ,EH01,Miscellaneous Agency Services           ,949.51,15/06/2014,REV,BRIGSTOCK HOUSE               
323,Childrens & Education Services,Support for SEN Pupils,Non-Delegated Statements,K90024,Third Party Payments          ,Other Local Authorities       ,EB48,OLA PAYMENTS-STATEMENTS                 ,"9,043.23",01/05/2014,REV,BRIT SCHOOL                   
324,Cultural Env Reg&Plan Services,Recycling (Collection),Recycling Activities,G00640,Third Party Payments          ,Private Contractors           ,EH65,PAYMENTS - SITA                         ,"1,687.24",12/04/2014,REV,BRITANNIA CREST RECYCLING LTD 
325,Cultural Env Reg&Plan Services,Recycling (Collection),Recycling Activities,G00640,Third Party Payments          ,Private Contractors           ,EH65,PAYMENTS - SITA                         ,"2,360.60",30/04/2014,REV,BRITANNIA CREST RECYCLING LTD 
326,Cultural Env Reg&Plan Services,Recycling (Collection),Recycling Activities,G00640,Third Party Payments          ,Private Contractors           ,EH65,PAYMENTS - SITA                         ,"1,593.32",26/04/2014,REV,BRITANNIA CREST RECYCLING LTD 
327,Cultural Env Reg&Plan Services,Recycling (Collection),Recycling Activities,G00640,Third Party Payments          ,Private Contractors           ,EH65,PAYMENTS - SITA                         ,752.4,19/04/2014,REV,BRITANNIA CREST RECYCLING LTD 
329,Adult Social Care,OP 65&Over Resi Care Placement,OP East - Residential Care Ext,W2LH55,Third Party Payments          ,Private Contractors           ,EH01,Miscellaneous Agency Services           ,500,30/04/2014,REV,BROOK CARE HOMES LTD          
330,Adult Social Care,OP 65&Over Resi Care Placement,OP East - Residential Care Ext,W2LH55,Third Party Payments          ,Private Contractors           ,EH01,Miscellaneous Agency Services           ,500,30/04/2014,REV,BROOK CARE HOMES LTD          
331,Adult Social Care,OP 65&Over Resi Care Placement,OP East - Residential Care Ext,W2LH55,Third Party Payments          ,Private Contractors           ,EH01,Miscellaneous Agency Services           ,500,30/04/2014,REV,BROOK CARE HOMES LTD          
332,Adult Social Care,OP 65&Over Resi Care Placement,OP East - Residential Care Ext,W2LH55,Third Party Payments          ,Private Contractors           ,EH01,Miscellaneous Agency Services           ,500,30/04/2014,REV,BROOK CARE HOMES LTD          
333,Adult Social Care,OP 65&Over Resi Care Placement,OP East - Residential Care Ext,W2LH55,Third Party Payments          ,Private Contractors           ,EH01,Miscellaneous Agency Services           ,500,30/04/2014,REV,BROOK CARE HOMES LTD          
334,Adult Social Care,OP 65&Over Resi Care Placement,OP East - Residential Care Ext,W2LH55,Third Party Payments          ,Private Contractors           ,EH01,Miscellaneous Agency Services           ,500,30/04/2014,REV,BROOK CARE HOMES LTD          
335,Adult Social Care,OP 65&Over Resi Care Placement,OP East - Residential Care Ext,W2LH55,Third Party Payments          ,Private Contractors           ,EH01,Miscellaneous Agency Services           ,500,30/04/2014,REV,BROOK CARE HOMES LTD          
336,Adult Social Care,OP 65&Over Resi Care Placement,OP East - Residential Care Ext,W2LH55,Third Party Payments          ,Private Contractors           ,EH01,Miscellaneous Agency Services           ,500,30/04/2014,REV,BROOK CARE HOMES LTD          
337,Adult Social Care,OP 65&Over Resi Care Placement,OP East - Residential Care Ext,W2LH55,Third Party Payments          ,Private Contractors           ,EH01,Miscellaneous Agency Services           ,500,30/04/2014,REV,BROOK CARE HOMES LTD          
338,Adult Social Care,MH u65 Residentl Care Placemnt,MH ResidentialCare Ext-Morden,W2HB55,Third Party Payments          ,Private Contractors           ,EH01,Miscellaneous Agency Services           ,524.28,01/05/2014,REV,BROOKDALE HEALTH CARE         
339,Adult Social Care,MH u65 Residentl Care Placemnt,MH ResidentialCare Ext-Morden,W2HB55,Third Party Payments          ,Private Contractors           ,EH01,Miscellaneous Agency Services           ,524.28,01/05/2014,REV,BROOKDALE HEALTH CARE         
340,Adult Social Care,MH u65 Residentl Care Placemnt,MH ResidentialCare Ext-Morden,W2HB55,Third Party Payments          ,Private Contractors           ,EH01,Miscellaneous Agency Services           ,524.28,01/05/2014,REV,BROOKDALE HEALTH CARE         
341,Adult Social Care,MH u65 Residentl Care Placemnt,MH ResidentialCare Ext-Morden,W2HB55,Third Party Payments          ,Private Contractors           ,EH01,Miscellaneous Agency Services           ,524.28,01/05/2014,REV,BROOKDALE HEALTH CARE         
343,CS -Oth Operating Inc & Expend,T/A Vehicle Maintenance etc,Transport-Contract Hire,J01374,Transport Related Expenditure ,Contract Hire and Op Leasing  ,CC64,HIRING TRANSPORT SEN CABS               ,680,30/04/2014,REV,BRUNSWICK CARS LTD            
344,CS -Oth Operating Inc & Expend,T/A Vehicle Maintenance etc,Transport-Contract Hire,J01374,Transport Related Expenditure ,Contract Hire and Op Leasing  ,CC64,HIRING TRANSPORT SEN CABS               ,"1,309.00",30/04/2014,REV,BRUNSWICK CARS LTD            
345,Childrens & Education Services,Chidren's Homes,CS Brightwell,W1CG00,Employees                     ,Direct Employee Expenses      ,AA17,Agency Staff & Casual Paymts            ,"3,060.90",30/04/2014,REV,REDACTED
346,Childrens & Education Services,Chidren's Homes,CS Brightwell,W1CG00,Employees                     ,Direct Employee Expenses      ,AA17,Agency Staff & Casual Paymts            ,606.1,07/05/2014,REV,REDACTED
347,Childrens & Education Services,Chidren's Homes,CS Brightwell,W1CG00,Employees                     ,Direct Employee Expenses      ,AA17,Agency Staff & Casual Paymts            ,613.46,30/04/2014,REV,REDACTED
348,Childrens & Education Services,Chidren's Homes,CS Brightwell,W1CG00,Employees                     ,Direct Employee Expenses      ,AA17,Agency Staff & Casual Paymts            ,560.96,16/04/2014,REV,REDACTED
349,Cultural Env Reg&Plan Services,Comm Safety (Crime Reduction),CCTV,A01200,Supplies & Services           ,Comms and Computing           ,DG15,Network Maintenance                     ,"2,801.94",01/04/2014,REV,BT REDCARE                    
350,Cultural Env Reg&Plan Services,Comm Safety (Crime Reduction),CCTV,A01200,Supplies & Services           ,Comms and Computing           ,DG15,Network Maintenance                     ,"6,073.79",01/04/2014,REV,BT REDCARE                    
351,CS -Oth Operating Inc & Expend,T/A Vehicle Maintenance etc,Transport-Contract Hire,J01374,Transport Related Expenditure ,Contract Hire and Op Leasing  ,CC53,Plant Hire for MRCS                     ,"1,210.00",30/04/2014,REV,B&T PLANT HIRE LTD            
352,Adult Social Care,PS u65 Direct Payments,PD EAST TEAM-Direct Payment,W2JJ36,Third Party Payments          ,Private Contractors           ,EH73,Direct Payments                         ,590.75,13/05/2014,REV,REDACTED
353,Adult Social Care,PS u65 Direct Payments,PD EAST TEAM-Direct Payment,W2JJ36,Third Party Payments          ,Private Contractors           ,EH73,Direct Payments                         ,590.75,13/05/2014,REV,REDACTED
354,Adult Social Care,PS u65 Direct Payments,PD EAST TEAM-Direct Payment,W2JJ36,Third Party Payments          ,Private Contractors           ,EH73,Direct Payments                         ,590.75,13/05/2014,REV,REDACTED
355,Adult Social Care,PS u65 Direct Payments,PD EAST TEAM-Direct Payment,W2JJ36,Third Party Payments          ,Private Contractors           ,EH73,Direct Payments                         ,590.75,13/05/2014,REV,REDACTED
356,Adult Social Care,PS u65 Nursing Care Placements,PD WEST TEAM-Nursing,W2JK53,Third Party Payments          ,Private Contractors           ,EH01,Miscellaneous Agency Services           ,680,12/05/2014,REV,BUPA CARE HOMES               
357,Adult Social Care,PS u65 Nursing Care Placements,PD WEST TEAM-Nursing,W2JK53,Third Party Payments          ,Private Contractors           ,EH01,Miscellaneous Agency Services           ,680,12/05/2014,REV,BUPA CARE HOMES               
358,Adult Social Care,PS u65 Nursing Care Placements,PD WEST TEAM-Nursing,W2JK53,Third Party Payments          ,Private Contractors           ,EH01,Miscellaneous Agency Services           ,680,12/05/2014,REV,BUPA CARE HOMES               
359,Adult Social Care,PS u65 Nursing Care Placements,PD WEST TEAM-Nursing,W2JK53,Third Party Payments          ,Private Contractors           ,EH01,Miscellaneous Agency Services           ,680,12/05/2014,REV,BUPA CARE HOMES               
360,Adult Social Care,OP 65&Over NursingCarePlacemts,OP West - Nursing Care,W2LG53,Third Party Payments          ,Private Contractors           ,EH01,Miscellaneous Agency Services           ,601.65,12/05/2014,REV,BUPA CARE HOMES               
361,Adult Social Care,OP 65&Over NursingCarePlacemts,OP West - Nursing Care,W2LG53,Third Party Payments          ,Private Contractors           ,EH01,Miscellaneous Agency Services           ,650,12/05/2014,REV,BUPA CARE HOMES               
362,Adult Social Care,OP 65&Over NursingCarePlacemts,OP West - Nursing Care,W2LG53,Third Party Payments          ,Private Contractors           ,EH01,Miscellaneous Agency Services           ,650,12/05/2014,REV,BUPA CARE HOMES               
363,Adult Social Care,OP 65&Over NursingCarePlacemts,OP West - Nursing Care,W2LG53,Third Party Payments          ,Private Contractors           ,EH01,Miscellaneous Agency Services           ,601.65,12/05/2014,REV,BUPA CARE HOMES               
364,Adult Social Care,OP 65&Over NursingCarePlacemts,OP West - Nursing Care,W2LG53,Third Party Payments          ,Private Contractors           ,EH01,Miscellaneous Agency Services           ,601.65,12/05/2014,REV,BUPA CARE HOMES               
365,Adult Social Care,OP 65&Over NursingCarePlacemts,OP West - Nursing Care,W2LG53,Third Party Payments          ,Private Contractors           ,EH01,Miscellaneous Agency Services           ,601.65,12/05/2014,REV,BUPA CARE HOMES               
366,Adult Social Care,OP 65&Over NursingCarePlacemts,OP West - Nursing Care,W2LG53,Third Party Payments          ,Private Contractors           ,EH01,Miscellaneous Agency Services           ,650,12/05/2014,REV,BUPA CARE HOMES               
367,Adult Social Care,OP 65&Over NursingCarePlacemts,OP West - Nursing Care,W2LG53,Third Party Payments          ,Private Contractors           ,EH01,Miscellaneous Agency Services           ,650,12/05/2014,REV,BUPA CARE HOMES               
368,Adult Social Care,OP 65&Over NursingCarePlacemts,OP R/Park - Nursing Care,W2LR53,Third Party Payments          ,Private Contractors           ,EH01,Miscellaneous Agency Services           ,601.65,12/05/2014,REV,BUPA CARE HOMES               
369,Adult Social Care,OP 65&Over NursingCarePlacemts,OP R/Park - Nursing Care,W2LR53,Third Party Payments          ,Private Contractors           ,EH01,Miscellaneous Agency Services           ,601.65,12/05/2014,REV,BUPA CARE HOMES               
370,Adult Social Care,OP 65&Over NursingCarePlacemts,OP R/Park - Nursing Care,W2LR53,Third Party Payments          ,Private Contractors           ,EH01,Miscellaneous Agency Services           ,601.65,12/05/2014,REV,BUPA CARE HOMES               
371,Adult Social Care,OP 65&Over NursingCarePlacemts,OP R/Park - Nursing Care,W2LR53,Third Party Payments          ,Private Contractors           ,EH01,Miscellaneous Agency Services           ,825,12/05/2014,REV,BUPA CARE HOMES               
372,Adult Social Care,OP 65&Over NursingCarePlacemts,OP R/Park - Nursing Care,W2LR53,Third Party Payments          ,Private Contractors           ,EH01,Miscellaneous Agency Services           ,908.9,12/05/2014,REV,BUPA CARE HOMES               
373,Adult Social Care,OP 65&Over NursingCarePlacemts,OP R/Park - Nursing Care,W2LR53,Third Party Payments          ,Private Contractors           ,EH01,Miscellaneous Agency Services           ,825,12/05/2014,REV,BUPA CARE HOMES               
374,Adult Social Care,OP 65&Over NursingCarePlacemts,OP R/Park - Nursing Care,W2LR53,Third Party Payments          ,Private Contractors           ,EH01,Miscellaneous Agency Services           ,825,12/05/2014,REV,BUPA CARE HOMES               
375,Adult Social Care,OP 65&Over NursingCarePlacemts,OP R/Park - Nursing Care,W2LR53,Third Party Payments          ,Private Contractors           ,EH01,Miscellaneous Agency Services           ,908.9,12/05/2014,REV,BUPA CARE HOMES               
376,Adult Social Care,OP 65&Over NursingCarePlacemts,OP R/Park - Nursing Care,W2LR53,Third Party Payments          ,Private Contractors           ,EH01,Miscellaneous Agency Services           ,908.9,12/05/2014,REV,BUPA CARE HOMES               
377,Adult Social Care,OP 65&Over NursingCarePlacemts,OP R/Park - Nursing Care,W2LR53,Third Party Payments          ,Private Contractors           ,EH01,Miscellaneous Agency Services           ,601.65,12/05/2014,REV,BUPA CARE HOMES               
378,Adult Social Care,OP 65&Over NursingCarePlacemts,OP R/Park - Nursing Care,W2LR53,Third Party Payments          ,Private Contractors           ,EH01,Miscellaneous Agency Services           ,601.65,14/05/2014,REV,BUPA CARE HOMES               
379,Adult Social Care,OP 65&Over NursingCarePlacemts,OP R/Park - Nursing Care,W2LR53,Third Party Payments          ,Private Contractors           ,EH01,Miscellaneous Agency Services           ,825,12/05/2014,REV,BUPA CARE HOMES               
380,Adult Social Care,OP 65&Over NursingCarePlacemts,OP R/Park - Nursing Care,W2LR53,Third Party Payments          ,Private Contractors           ,EH01,Miscellaneous Agency Services           ,908.9,12/05/2014,REV,BUPA CARE HOMES               
381,Adult Social Care,MH u65 Nursing Care Placements,OP Nursing Care - NRTPF,W7AE53,Third Party Payments          ,Private Contractors           ,EH01,Miscellaneous Agency Services           ,601.65,12/05/2014,REV,BUPA CARE HOMES               
382,Adult Social Care,MH u65 Nursing Care Placements,OP Nursing Care - NRTPF,W7AE53,Third Party Payments          ,Private Contractors           ,EH01,Miscellaneous Agency Services           ,601.65,12/05/2014,REV,BUPA CARE HOMES               
383,Adult Social Care,MH u65 Nursing Care Placements,OP Nursing Care - NRTPF,W7AE53,Third Party Payments          ,Private Contractors           ,EH01,Miscellaneous Agency Services           ,601.65,12/05/2014,REV,BUPA CARE HOMES               
384,Adult Social Care,MH u65 Nursing Care Placements,OP Nursing Care - NRTPF,W7AE53,Third Party Payments          ,Private Contractors           ,EH01,Miscellaneous Agency Services           ,601.65,12/05/2014,REV,BUPA CARE HOMES               
385,Adult Social Care,OP 65&Over NursingCarePlacemts,OP East - Nursing Care,W2LH53,Third Party Payments          ,Private Contractors           ,EH01,Miscellaneous Agency Services           ,518.67,06/05/2014,REV,BUPA CARE HOMES               
386,Adult Social Care,OP 65&Over NursingCarePlacemts,OP East - Nursing Care,W2LH53,Third Party Payments          ,Private Contractors           ,EH01,Miscellaneous Agency Services           ,518.67,06/05/2014,REV,BUPA CARE HOMES               
387,Adult Social Care,OP 65&Over NursingCarePlacemts,OP East - Nursing Care,W2LH53,Third Party Payments          ,Private Contractors           ,EH01,Miscellaneous Agency Services           ,518.67,06/05/2014,REV,BUPA CARE HOMES               
388,Adult Social Care,OP 65&Over NursingCarePlacemts,OP East - Nursing Care,W2LH53,Third Party Payments          ,Private Contractors           ,EH01,Miscellaneous Agency Services           ,518.67,06/05/2014,REV,BUPA CARE HOMES               
389,Adult Social Care,PS u65 Home Care,PD EAST TEAM-Homecare,W2JJ49,Third Party Payments          ,Private Contractors           ,EH01,Miscellaneous Agency Services           ,552.72,20/05/2014,REV,BUPA CARE HOMES (ANS) LTD     
390,Adult Social Care,PS u65 Home Care,PD EAST TEAM-Homecare,W2JJ49,Third Party Payments          ,Private Contractors           ,EH01,Miscellaneous Agency Services           ,552.72,20/05/2014,REV,BUPA CARE HOMES (ANS) LTD     
391,Adult Social Care,PS u65 Home Care,PD EAST TEAM-Homecare,W2JJ49,Third Party Payments          ,Private Contractors           ,EH01,Miscellaneous Agency Services           ,552.72,20/05/2014,REV,BUPA CARE HOMES (ANS) LTD     
392,Adult Social Care,PS u65 Home Care,PD EAST TEAM-Homecare,W2JJ49,Third Party Payments          ,Private Contractors           ,EH01,Miscellaneous Agency Services           ,552.72,20/05/2014,REV,BUPA CARE HOMES (ANS) LTD     
393,Adult Social Care,PS u65 Nursing Care Placements,PD EAST TEAM-Nursing,W2JJ53,Third Party Payments          ,Private Contractors           ,EH01,Miscellaneous Agency Services           ,"1,000.00",20/05/2014,REV,BUPA CARE HOMES (ANS) LTD     
394,Adult Social Care,PS u65 Nursing Care Placements,PD EAST TEAM-Nursing,W2JJ53,Third Party Payments          ,Private Contractors           ,EH01,Miscellaneous Agency Services           ,"1,000.00",20/05/2014,REV,BUPA CARE HOMES (ANS) LTD     
395,Adult Social Care,PS u65 Nursing Care Placements,PD EAST TEAM-Nursing,W2JJ53,Third Party Payments          ,Private Contractors           ,EH01,Miscellaneous Agency Services           ,"1,000.00",20/05/2014,REV,BUPA CARE HOMES (ANS) LTD     
396,Adult Social Care,PS u65 Nursing Care Placements,PD EAST TEAM-Nursing,W2JJ53,Third Party Payments          ,Private Contractors           ,EH01,Miscellaneous Agency Services           ,"1,000.00",20/05/2014,REV,BUPA CARE HOMES (ANS) LTD     
397,Adult Social Care,PS u65 Residentl Care Placemnt,PD WEST TEAM-Residential Care,W2JK55,Third Party Payments          ,Private Contractors           ,EH01,Miscellaneous Agency Services           ,504,20/05/2014,REV,BUPA CARE HOMES (ANS) LTD     
398,Adult Social Care,PS u65 Residentl Care Placemnt,PD WEST TEAM-Residential Care,W2JK55,Third Party Payments          ,Private Contractors           ,EH01,Miscellaneous Agency Services           ,504,20/05/2014,REV,BUPA CARE HOMES (ANS) LTD     
399,Adult Social Care,PS u65 Residentl Care Placemnt,PD WEST TEAM-Residential Care,W2JK55,Third Party Payments          ,Private Contractors           ,EH01,Miscellaneous Agency Services           ,504,20/05/2014,REV,BUPA CARE HOMES (ANS) LTD     
400,Adult Social Care,PS u65 Residentl Care Placemnt,PD WEST TEAM-Residential Care,W2JK55,Third Party Payments          ,Private Contractors           ,EH01,Miscellaneous Agency Services           ,504,20/05/2014,REV,BUPA CARE HOMES (ANS) LTD     
401,Adult Social Care,PS u65 Nursing Care Placements,PS Nursing Care - NRTPF,W7AD53,Third Party Payments          ,Private Contractors           ,EH01,Miscellaneous Agency Services           ,900,20/05/2014,REV,BUPA CARE HOMES (ANS) LTD     
402,Adult Social Care,PS u65 Nursing Care Placements,PS Nursing Care - NRTPF,W7AD53,Third Party Payments          ,Private Contractors           ,EH01,Miscellaneous Agency Services           ,900,20/05/2014,REV,BUPA CARE HOMES (ANS) LTD     
403,Adult Social Care,PS u65 Nursing Care Placements,PS Nursing Care - NRTPF,W7AD53,Third Party Payments          ,Private Contractors           ,EH01,Miscellaneous Agency Services           ,900,20/05/2014,REV,BUPA CARE HOMES (ANS) LTD     
404,Adult Social Care,PS u65 Nursing Care Placements,PS Nursing Care - NRTPF,W7AD53,Third Party Payments          ,Private Contractors           ,EH01,Miscellaneous Agency Services           ,900,20/05/2014,REV,BUPA CARE HOMES (ANS) LTD     
405,Adult Social Care,OP 65&Over NursingCarePlacemts,OP Hosp - Nursing Care,W2LF53,Third Party Payments          ,Private Contractors           ,EH01,Miscellaneous Agency Services           ,-602.74,16/05/2014,REV,BUPA CARE HOMES               
406,Adult Social Care,OP 65&Over NursingCarePlacemts,OP Hosp - Nursing Care,W2LF53,Third Party Payments          ,Private Contractors           ,EH01,Miscellaneous Agency Services           ,-602.74,16/05/2014,REV,BUPA CARE HOMES               
407,Adult Social Care,OP 65&Over NursingCarePlacemts,OP Hosp - Nursing Care,W2LF53,Third Party Payments          ,Private Contractors           ,EH01,Miscellaneous Agency Services           ,-602.74,16/05/2014,REV,BUPA CARE HOMES               
408,Adult Social Care,OP 65&Over NursingCarePlacemts,OP Hosp - Nursing Care,W2LF53,Third Party Payments          ,Private Contractors           ,EH01,Miscellaneous Agency Services           ,-602.74,16/05/2014,REV,BUPA CARE HOMES               
409,Adult Social Care,OP 65&Over NursingCarePlacemts,OP Hosp - Nursing Care,W2LF53,Third Party Payments          ,Private Contractors           ,EH01,Miscellaneous Agency Services           ,-602.74,16/05/2014,REV,BUPA CARE HOMES               
410,Adult Social Care,OP 65&Over NursingCarePlacemts,OP Hosp - Nursing Care,W2LF53,Third Party Payments          ,Private Contractors           ,EH01,Miscellaneous Agency Services           ,-602.74,16/05/2014,REV,BUPA CARE HOMES               
411,Adult Social Care,OP 65&Over NursingCarePlacemts,OP Hosp - Nursing Care,W2LF53,Third Party Payments          ,Private Contractors           ,EH01,Miscellaneous Agency Services           ,-602.74,16/05/2014,REV,BUPA CARE HOMES               
412,Adult Social Care,OP 65&Over NursingCarePlacemts,OP Hosp - Nursing Care,W2LF53,Third Party Payments          ,Private Contractors           ,EH01,Miscellaneous Agency Services           ,-602.74,16/05/2014,REV,BUPA CARE HOMES               
413,Adult Social Care,OP 65&Over NursingCarePlacemts,OP Hosp - Nursing Care,W2LF53,Third Party Payments          ,Private Contractors           ,EH01,Miscellaneous Agency Services           ,-602.74,16/05/2014,REV,BUPA CARE HOMES               
414,Adult Social Care,OP 65&Over NursingCarePlacemts,OP Hosp - Nursing Care,W2LF53,Third Party Payments          ,Private Contractors           ,EH01,Miscellaneous Agency Services           ,-602.74,16/05/2014,REV,BUPA CARE HOMES               
415,Adult Social Care,OP 65&Over NursingCarePlacemts,OP Hosp - Nursing Care,W2LF53,Third Party Payments          ,Private Contractors           ,EH01,Miscellaneous Agency Services           ,-602.74,16/05/2014,REV,BUPA CARE HOMES               
416,Adult Social Care,OP 65&Over NursingCarePlacemts,OP Hosp - Nursing Care,W2LF53,Third Party Payments          ,Private Contractors           ,EH01,Miscellaneous Agency Services           ,-602.74,16/05/2014,REV,BUPA CARE HOMES               
417,Adult Social Care,OP 65&Over NursingCarePlacemts,OP Hosp - Nursing Care,W2LF53,Third Party Payments          ,Private Contractors           ,EH01,Miscellaneous Agency Services           ,-602.74,16/05/2014,REV,BUPA CARE HOMES               
418,Adult Social Care,OP 65&Over NursingCarePlacemts,OP Hosp - Nursing Care,W2LF53,Third Party Payments          ,Private Contractors           ,EH01,Miscellaneous Agency Services           ,-602.74,16/05/2014,REV,BUPA CARE HOMES               
419,Adult Social Care,OP 65&Over NursingCarePlacemts,OP Hosp - Nursing Care,W2LF53,Third Party Payments          ,Private Contractors           ,EH01,Miscellaneous Agency Services           ,-516.63,16/05/2014,REV,BUPA CARE HOMES               
420,Adult Social Care,OP 65&Over NursingCarePlacemts,OP Hosp - Nursing Care,W2LF53,Third Party Payments          ,Private Contractors           ,EH01,Miscellaneous Agency Services           ,602.74,16/05/2014,REV,BUPA CARE HOMES               
421,Adult Social Care,OP 65&Over NursingCarePlacemts,OP Hosp - Nursing Care,W2LF53,Third Party Payments          ,Private Contractors           ,EH01,Miscellaneous Agency Services           ,705.55,16/05/2014,REV,BUPA CARE HOMES               
422,Adult Social Care,OP 65&Over NursingCarePlacemts,OP Hosp - Nursing Care,W2LF53,Third Party Payments          ,Private Contractors           ,EH01,Miscellaneous Agency Services           ,-602.74,16/05/2014,REV,BUPA CARE HOMES               
423,Adult Social Care,OP 65&Over NursingCarePlacemts,OP Hosp - Nursing Care,W2LF53,Third Party Payments          ,Private Contractors           ,EH01,Miscellaneous Agency Services           ,-602.74,16/05/2014,REV,BUPA CARE HOMES               
424,Adult Social Care,OP 65&Over NursingCarePlacemts,OP Hosp - Nursing Care,W2LF53,Third Party Payments          ,Private Contractors           ,EH01,Miscellaneous Agency Services           ,-602.74,16/05/2014,REV,BUPA CARE HOMES               
425,Adult Social Care,OP 65&Over NursingCarePlacemts,OP Hosp - Nursing Care,W2LF53,Third Party Payments          ,Private Contractors           ,EH01,Miscellaneous Agency Services           ,-602.74,16/05/2014,REV,BUPA CARE HOMES               
426,Adult Social Care,OP 65&Over NursingCarePlacemts,OP Hosp - Nursing Care,W2LF53,Third Party Payments          ,Private Contractors           ,EH01,Miscellaneous Agency Services           ,-602.74,16/05/2014,REV,BUPA CARE HOMES               
427,Adult Social Care,OP 65&Over NursingCarePlacemts,OP Hosp - Nursing Care,W2LF53,Third Party Payments          ,Private Contractors           ,EH01,Miscellaneous Agency Services           ,-602.74,16/05/2014,REV,BUPA CARE HOMES               
428,Adult Social Care,OP 65&Over NursingCarePlacemts,OP Hosp - Nursing Care,W2LF53,Third Party Payments          ,Private Contractors           ,EH01,Miscellaneous Agency Services           ,-602.74,16/05/2014,REV,BUPA CARE HOMES               
429,Adult Social Care,OP 65&Over NursingCarePlacemts,OP Hosp - Nursing Care,W2LF53,Third Party Payments          ,Private Contractors           ,EH01,Miscellaneous Agency Services           ,-602.74,16/05/2014,REV,BUPA CARE HOMES               
430,Adult Social Care,OP 65&Over NursingCarePlacemts,OP Hosp - Nursing Care,W2LF53,Third Party Payments          ,Private Contractors           ,EH01,Miscellaneous Agency Services           ,-602.74,16/05/2014,REV,BUPA CARE HOMES               
431,Adult Social Care,OP 65&Over NursingCarePlacemts,OP Hosp - Nursing Care,W2LF53,Third Party Payments          ,Private Contractors           ,EH01,Miscellaneous Agency Services           ,-602.74,16/05/2014,REV,BUPA CARE HOMES               
432,Adult Social Care,OP 65&Over NursingCarePlacemts,OP Hosp - Nursing Care,W2LF53,Third Party Payments          ,Private Contractors           ,EH01,Miscellaneous Agency Services           ,-602.74,16/05/2014,REV,BUPA CARE HOMES               
433,Adult Social Care,OP 65&Over NursingCarePlacemts,OP Hosp - Nursing Care,W2LF53,Third Party Payments          ,Private Contractors           ,EH01,Miscellaneous Agency Services           ,-602.74,16/05/2014,REV,BUPA CARE HOMES               
434,Adult Social Care,OP 65&Over NursingCarePlacemts,OP Hosp - Nursing Care,W2LF53,Third Party Payments          ,Private Contractors           ,EH01,Miscellaneous Agency Services           ,-602.74,16/05/2014,REV,BUPA CARE HOMES               
435,Adult Social Care,OP 65&Over NursingCarePlacemts,OP Hosp - Nursing Care,W2LF53,Third Party Payments          ,Private Contractors           ,EH01,Miscellaneous Agency Services           ,-602.74,16/05/2014,REV,BUPA CARE HOMES               
436,Adult Social Care,OP 65&Over NursingCarePlacemts,OP Hosp - Nursing Care,W2LF53,Third Party Payments          ,Private Contractors           ,EH01,Miscellaneous Agency Services           ,-602.74,16/05/2014,REV,BUPA CARE HOMES               
437,Adult Social Care,OP 65&Over NursingCarePlacemts,OP Hosp - Nursing Care,W2LF53,Third Party Payments          ,Private Contractors           ,EH01,Miscellaneous Agency Services           ,-602.74,16/05/2014,REV,BUPA CARE HOMES               
438,Adult Social Care,OP 65&Over NursingCarePlacemts,OP Hosp - Nursing Care,W2LF53,Third Party Payments          ,Private Contractors           ,EH01,Miscellaneous Agency Services           ,-602.74,16/05/2014,REV,BUPA CARE HOMES               
439,Adult Social Care,OP 65&Over NursingCarePlacemts,OP Hosp - Nursing Care,W2LF53,Third Party Payments          ,Private Contractors           ,EH01,Miscellaneous Agency Services           ,602.74,16/05/2014,REV,BUPA CARE HOMES               
440,Adult Social Care,OP 65&Over NursingCarePlacemts,OP Hosp - Nursing Care,W2LF53,Third Party Payments          ,Private Contractors           ,EH01,Miscellaneous Agency Services           ,602.74,16/05/2014,REV,BUPA CARE HOMES               
441,Adult Social Care,OP 65&Over NursingCarePlacemts,OP Hosp - Nursing Care,W2LF53,Third Party Payments          ,Private Contractors           ,EH01,Miscellaneous Agency Services           ,602.74,16/05/2014,REV,BUPA CARE HOMES               
442,Adult Social Care,OP 65&Over NursingCarePlacemts,OP Hosp - Nursing Care,W2LF53,Third Party Payments          ,Private Contractors           ,EH01,Miscellaneous Agency Services           ,705.55,16/05/2014,REV,BUPA CARE HOMES               
443,Adult Social Care,OP 65&Over NursingCarePlacemts,OP Hosp - Nursing Care,W2LF53,Third Party Payments          ,Private Contractors           ,EH01,Miscellaneous Agency Services           ,-602.74,16/05/2014,REV,BUPA CARE HOMES               
444,Adult Social Care,OP 65&Over NursingCarePlacemts,OP Hosp - Nursing Care,W2LF53,Third Party Payments          ,Private Contractors           ,EH01,Miscellaneous Agency Services           ,-602.74,16/05/2014,REV,BUPA CARE HOMES               
445,Adult Social Care,OP 65&Over NursingCarePlacemts,OP Hosp - Nursing Care,W2LF53,Third Party Payments          ,Private Contractors           ,EH01,Miscellaneous Agency Services           ,-602.74,16/05/2014,REV,BUPA CARE HOMES               
446,Adult Social Care,OP 65&Over NursingCarePlacemts,OP Hosp - Nursing Care,W2LF53,Third Party Payments          ,Private Contractors           ,EH01,Miscellaneous Agency Services           ,-602.74,16/05/2014,REV,BUPA CARE HOMES               
447,Adult Social Care,OP 65&Over NursingCarePlacemts,OP Hosp - Nursing Care,W2LF53,Third Party Payments          ,Private Contractors           ,EH01,Miscellaneous Agency Services           ,-602.74,16/05/2014,REV,BUPA CARE HOMES               
448,Adult Social Care,OP 65&Over NursingCarePlacemts,OP Hosp - Nursing Care,W2LF53,Third Party Payments          ,Private Contractors           ,EH01,Miscellaneous Agency Services           ,-602.74,16/05/2014,REV,BUPA CARE HOMES               
449,Adult Social Care,OP 65&Over NursingCarePlacemts,OP Hosp - Nursing Care,W2LF53,Third Party Payments          ,Private Contractors           ,EH01,Miscellaneous Agency Services           ,-602.74,16/05/2014,REV,BUPA CARE HOMES               
450,Adult Social Care,OP 65&Over NursingCarePlacemts,OP Hosp - Nursing Care,W2LF53,Third Party Payments          ,Private Contractors           ,EH01,Miscellaneous Agency Services           ,705.55,16/05/2014,REV,BUPA CARE HOMES               
451,Adult Social Care,OP 65&Over NursingCarePlacemts,OP Hosp - Nursing Care,W2LF53,Third Party Payments          ,Private Contractors           ,EH01,Miscellaneous Agency Services           ,705.55,16/05/2014,REV,BUPA CARE HOMES               
452,Adult Social Care,OP 65&Over NursingCarePlacemts,OP Hosp - Nursing Care,W2LF53,Third Party Payments          ,Private Contractors           ,EH01,Miscellaneous Agency Services           ,-602.74,16/05/2014,REV,BUPA CARE HOMES               
453,Adult Social Care,OP 65&Over NursingCarePlacemts,OP Hosp - Nursing Care,W2LF53,Third Party Payments          ,Private Contractors           ,EH01,Miscellaneous Agency Services           ,-602.74,16/05/2014,REV,BUPA CARE HOMES               
454,Adult Social Care,OP 65&Over NursingCarePlacemts,OP Hosp - Nursing Care,W2LF53,Third Party Payments          ,Private Contractors           ,EH01,Miscellaneous Agency Services           ,-602.74,16/05/2014,REV,BUPA CARE HOMES               
455,Adult Social Care,OP 65&Over NursingCarePlacemts,OP Hosp - Nursing Care,W2LF53,Third Party Payments          ,Private Contractors           ,EH01,Miscellaneous Agency Services           ,-602.74,16/05/2014,REV,BUPA CARE HOMES               
456,Adult Social Care,OP 65&Over NursingCarePlacemts,OP Hosp - Nursing Care,W2LF53,Third Party Payments          ,Private Contractors           ,EH01,Miscellaneous Agency Services           ,-602.74,16/05/2014,REV,BUPA CARE HOMES               
457,Adult Social Care,OP 65&Over NursingCarePlacemts,OP Hosp - Nursing Care,W2LF53,Third Party Payments          ,Private Contractors           ,EH01,Miscellaneous Agency Services           ,-602.74,16/05/2014,REV,BUPA CARE HOMES               
458,Adult Social Care,OP 65&Over NursingCarePlacemts,OP Hosp - Nursing Care,W2LF53,Third Party Payments          ,Private Contractors           ,EH01,Miscellaneous Agency Services           ,-602.74,16/05/2014,REV,BUPA CARE HOMES               
459,Adult Social Care,OP 65&Over NursingCarePlacemts,OP Hosp - Nursing Care,W2LF53,Third Party Payments          ,Private Contractors           ,EH01,Miscellaneous Agency Services           ,-602.74,16/05/2014,REV,BUPA CARE HOMES               
460,Adult Social Care,OP 65&Over NursingCarePlacemts,OP Hosp - Nursing Care,W2LF53,Third Party Payments          ,Private Contractors           ,EH01,Miscellaneous Agency Services           ,-602.74,16/05/2014,REV,BUPA CARE HOMES               
461,Adult Social Care,OP 65&Over NursingCarePlacemts,OP Hosp - Nursing Care,W2LF53,Third Party Payments          ,Private Contractors           ,EH01,Miscellaneous Agency Services           ,-602.74,16/05/2014,REV,BUPA CARE HOMES               
462,Adult Social Care,OP 65&Over NursingCarePlacemts,OP Hosp - Nursing Care,W2LF53,Third Party Payments          ,Private Contractors           ,EH01,Miscellaneous Agency Services           ,-602.74,16/05/2014,REV,BUPA CARE HOMES               
463,Adult Social Care,OP 65&Over NursingCarePlacemts,OP Hosp - Nursing Care,W2LF53,Third Party Payments          ,Private Contractors           ,EH01,Miscellaneous Agency Services           ,-602.74,16/05/2014,REV,BUPA CARE HOMES               
464,Adult Social Care,OP 65&Over NursingCarePlacemts,OP Hosp - Nursing Care,W2LF53,Third Party Payments          ,Private Contractors           ,EH01,Miscellaneous Agency Services           ,-602.74,16/05/2014,REV,BUPA CARE HOMES               
465,Adult Social Care,OP 65&Over NursingCarePlacemts,OP Hosp - Nursing Care,W2LF53,Third Party Payments          ,Private Contractors           ,EH01,Miscellaneous Agency Services           ,-602.74,16/05/2014,REV,BUPA CARE HOMES               
466,Adult Social Care,OP 65&Over NursingCarePlacemts,OP Hosp - Nursing Care,W2LF53,Third Party Payments          ,Private Contractors           ,EH01,Miscellaneous Agency Services           ,-602.74,16/05/2014,REV,BUPA CARE HOMES               
467,Adult Social Care,OP 65&Over NursingCarePlacemts,OP Hosp - Nursing Care,W2LF53,Third Party Payments          ,Private Contractors           ,EH01,Miscellaneous Agency Services           ,-602.74,16/05/2014,REV,BUPA CARE HOMES               
468,Adult Social Care,OP 65&Over Resi Care Placement,OP Hosp - Residential Care Ext,W2LF55,Third Party Payments          ,Private Contractors           ,EH01,Miscellaneous Agency Services           ,521.99,16/05/2014,REV,BUPA CARE HOMES               
469,Adult Social Care,OP 65&Over Resi Care Placement,OP Hosp - Residential Care Ext,W2LF55,Third Party Payments          ,Private Contractors           ,EH01,Miscellaneous Agency Services           ,521.99,16/05/2014,REV,BUPA CARE HOMES               
470,Adult Social Care,OP 65&Over Resi Care Placement,OP Hosp - Residential Care Ext,W2LF55,Third Party Payments          ,Private Contractors           ,EH01,Miscellaneous Agency Services           ,521.99,16/05/2014,REV,BUPA CARE HOMES               
471,Adult Social Care,OP 65&Over Resi Care Placement,OP Hosp - Residential Care Ext,W2LF55,Third Party Payments          ,Private Contractors           ,EH01,Miscellaneous Agency Services           ,521.99,16/05/2014,REV,BUPA CARE HOMES               
472,Adult Social Care,OP 65&Over Resi Care Placement,OP Hosp - Residential Care Ext,W2LF55,Third Party Payments          ,Private Contractors           ,EH01,Miscellaneous Agency Services           ,521.99,16/05/2014,REV,BUPA CARE HOMES               
473,Adult Social Care,OP 65&Over Resi Care Placement,OP Hosp - Residential Care Ext,W2LF55,Third Party Payments          ,Private Contractors           ,EH01,Miscellaneous Agency Services           ,521.99,16/05/2014,REV,BUPA CARE HOMES               
474,Adult Social Care,OP 65&Over Resi Care Placement,OP Hosp - Residential Care Ext,W2LF55,Third Party Payments          ,Private Contractors           ,EH01,Miscellaneous Agency Services           ,521.99,16/05/2014,REV,BUPA CARE HOMES               
475,Adult Social Care,OP 65&Over Resi Care Placement,OP Hosp - Residential Care Ext,W2LF55,Third Party Payments          ,Private Contractors           ,EH01,Miscellaneous Agency Services           ,521.99,16/05/2014,REV,BUPA CARE HOMES               
476,Adult Social Care,OP 65&Over Resi Care Placement,OP Hosp - Residential Care Ext,W2LF55,Third Party Payments          ,Private Contractors           ,EH01,Miscellaneous Agency Services           ,521.99,16/05/2014,REV,BUPA CARE HOMES               
477,Adult Social Care,OP 65&Over Resi Care Placement,OP Hosp - Residential Care Ext,W2LF55,Third Party Payments          ,Private Contractors           ,EH01,Miscellaneous Agency Services           ,521.99,16/05/2014,REV,BUPA CARE HOMES               
478,Adult Social Care,OP 65&Over Resi Care Placement,OP Hosp - Residential Care Ext,W2LF55,Third Party Payments          ,Private Contractors           ,EH01,Miscellaneous Agency Services           ,521.99,16/05/2014,REV,BUPA CARE HOMES               
479,Adult Social Care,OP 65&Over Resi Care Placement,OP Hosp - Residential Care Ext,W2LF55,Third Party Payments          ,Private Contractors           ,EH01,Miscellaneous Agency Services           ,521.99,16/05/2014,REV,BUPA CARE HOMES               
480,Adult Social Care,OP 65&Over Resi Care Placement,OP Hosp - Residential Care Ext,W2LF55,Third Party Payments          ,Private Contractors           ,EH01,Miscellaneous Agency Services           ,521.99,16/05/2014,REV,BUPA CARE HOMES               
481,Adult Social Care,OP 65&Over Resi Care Placement,OP Hosp - Residential Care Ext,W2LF55,Third Party Payments          ,Private Contractors           ,EH01,Miscellaneous Agency Services           ,521.99,16/05/2014,REV,BUPA CARE HOMES               
482,Adult Social Care,OP 65&Over Resi Care Placement,OP Hosp - Residential Care Ext,W2LF55,Third Party Payments          ,Private Contractors           ,EH01,Miscellaneous Agency Services           ,521.99,16/05/2014,REV,BUPA CARE HOMES               
483,Adult Social Care,OP 65&Over Resi Care Placement,OP Hosp - Residential Care Ext,W2LF55,Third Party Payments          ,Private Contractors           ,EH01,Miscellaneous Agency Services           ,521.99,16/05/2014,REV,BUPA CARE HOMES               
484,Adult Social Care,OP 65&Over Resi Care Placement,OP Hosp - Residential Care Ext,W2LF55,Third Party Payments          ,Private Contractors           ,EH01,Miscellaneous Agency Services           ,521.99,16/05/2014,REV,BUPA CARE HOMES               
485,Adult Social Care,OP 65&Over Resi Care Placement,OP Hosp - Residential Care Ext,W2LF55,Third Party Payments          ,Private Contractors           ,EH01,Miscellaneous Agency Services           ,521.99,16/05/2014,REV,BUPA CARE HOMES               
486,Adult Social Care,OP 65&Over Resi Care Placement,OP Hosp - Residential Care Ext,W2LF55,Third Party Payments          ,Private Contractors           ,EH01,Miscellaneous Agency Services           ,521.99,16/05/2014,REV,BUPA CARE HOMES               
487,Adult Social Care,OP 65&Over Resi Care Placement,OP Hosp - Residential Care Ext,W2LF55,Third Party Payments          ,Private Contractors           ,EH01,Miscellaneous Agency Services           ,521.99,16/05/2014,REV,BUPA CARE HOMES               
488,Adult Social Care,OP 65&Over NursingCarePlacemts,OP West - Nursing Care,W2LG53,Third Party Payments          ,Private Contractors           ,EH01,Miscellaneous Agency Services           ,602.74,16/05/2014,REV,BUPA CARE HOMES               
489,Adult Social Care,OP 65&Over NursingCarePlacemts,OP West - Nursing Care,W2LG53,Third Party Payments          ,Private Contractors           ,EH01,Miscellaneous Agency Services           ,602.74,16/05/2014,REV,BUPA CARE HOMES               
490,Adult Social Care,OP 65&Over NursingCarePlacemts,OP West - Nursing Care,W2LG53,Third Party Payments          ,Private Contractors           ,EH01,Miscellaneous Agency Services           ,602.74,16/05/2014,REV,BUPA CARE HOMES               
491,Adult Social Care,OP 65&Over NursingCarePlacemts,OP West - Nursing Care,W2LG53,Third Party Payments          ,Private Contractors           ,EH01,Miscellaneous Agency Services           ,602.74,16/05/2014,REV,BUPA CARE HOMES               
492,Adult Social Care,OP 65&Over NursingCarePlacemts,OP West - Nursing Care,W2LG53,Third Party Payments          ,Private Contractors           ,EH01,Miscellaneous Agency Services           ,602.74,16/05/2014,REV,BUPA CARE HOMES               
493,Adult Social Care,OP 65&Over NursingCarePlacemts,OP West - Nursing Care,W2LG53,Third Party Payments          ,Private Contractors           ,EH01,Miscellaneous Agency Services           ,602.74,16/05/2014,REV,BUPA CARE HOMES               
494,Adult Social Care,OP 65&Over NursingCarePlacemts,OP West - Nursing Care,W2LG53,Third Party Payments          ,Private Contractors           ,EH01,Miscellaneous Agency Services           ,602.74,16/05/2014,REV,BUPA CARE HOMES               
495,Adult Social Care,OP 65&Over NursingCarePlacemts,OP West - Nursing Care,W2LG53,Third Party Payments          ,Private Contractors           ,EH01,Miscellaneous Agency Services           ,602.74,16/05/2014,REV,BUPA CARE HOMES               
496,Adult Social Care,OP 65&Over Resi Care Placement,OP West - Residential Care Ext,W2LG55,Third Party Payments          ,Private Contractors           ,EH01,Miscellaneous Agency Services           ,521.99,16/05/2014,REV,BUPA CARE HOMES               
497,Adult Social Care,OP 65&Over Resi Care Placement,OP West - Residential Care Ext,W2LG55,Third Party Payments          ,Private Contractors           ,EH01,Miscellaneous Agency Services           ,521.99,16/05/2014,REV,BUPA CARE HOMES               
498,Adult Social Care,OP 65&Over Resi Care Placement,OP West - Residential Care Ext,W2LG55,Third Party Payments          ,Private Contractors           ,EH01,Miscellaneous Agency Services           ,521.99,16/05/2014,REV,BUPA CARE HOMES               
499,Adult Social Care,OP 65&Over Resi Care Placement,OP West - Residential Care Ext,W2LG55,Third Party Payments          ,Private Contractors           ,EH01,Miscellaneous Agency Services           ,521.99,16/05/2014,REV,BUPA CARE HOMES               
500,Adult Social Care,OP 65&Over Resi Care Placement,OP West - Residential Care Ext,W2LG55,Third Party Payments          ,Private Contractors           ,EH01,Miscellaneous Agency Services           ,521.99,16/05/2014,REV,BUPA CARE HOMES               
501,Adult Social Care,OP 65&Over Resi Care Placement,OP West - Residential Care Ext,W2LG55,Third Party Payments          ,Private Contractors           ,EH01,Miscellaneous Agency Services           ,521.99,16/05/2014,REV,BUPA CARE HOMES               
502,Adult Social Care,OP 65&Over Resi Care Placement,OP West - Residential Care Ext,W2LG55,Third Party Payments          ,Private Contractors           ,EH01,Miscellaneous Agency Services           ,521.99,16/05/2014,REV,BUPA CARE HOMES               
503,Adult Social Care,OP 65&Over Resi Care Placement,OP West - Residential Care Ext,W2LG55,Third Party Payments          ,Private Contractors           ,EH01,Miscellaneous Agency Services           ,521.99,16/05/2014,REV,BUPA CARE HOMES               
504,Adult Social Care,OP 65&Over NursingCarePlacemts,OP East - Nursing Care,W2LH53,Third Party Payments          ,Private Contractors           ,EH01,Miscellaneous Agency Services           ,602.74,16/05/2014,REV,BUPA CARE HOMES               
505,Adult Social Care,OP 65&Over NursingCarePlacemts,OP East - Nursing Care,W2LH53,Third Party Payments          ,Private Contractors           ,EH01,Miscellaneous Agency Services           ,602.74,16/05/2014,REV,BUPA CARE HOMES               
506,Adult Social Care,OP 65&Over NursingCarePlacemts,OP East - Nursing Care,W2LH53,Third Party Payments          ,Private Contractors           ,EH01,Miscellaneous Agency Services           ,602.74,16/05/2014,REV,BUPA CARE HOMES               
507,Adult Social Care,OP 65&Over NursingCarePlacemts,OP East - Nursing Care,W2LH53,Third Party Payments          ,Private Contractors           ,EH01,Miscellaneous Agency Services           ,602.74,16/05/2014,REV,BUPA CARE HOMES               
508,Adult Social Care,OP 65&Over NursingCarePlacemts,OP East - Nursing Care,W2LH53,Third Party Payments          ,Private Contractors           ,EH01,Miscellaneous Agency Services           ,602.74,16/05/2014,REV,BUPA CARE HOMES               
509,Adult Social Care,OP 65&Over NursingCarePlacemts,OP East - Nursing Care,W2LH53,Third Party Payments          ,Private Contractors           ,EH01,Miscellaneous Agency Services           ,602.74,16/05/2014,REV,BUPA CARE HOMES               
510,Adult Social Care,OP 65&Over NursingCarePlacemts,OP East - Nursing Care,W2LH53,Third Party Payments          ,Private Contractors           ,EH01,Miscellaneous Agency Services           ,602.74,16/05/2014,REV,BUPA CARE HOMES               
511,Adult Social Care,OP 65&Over NursingCarePlacemts,OP East - Nursing Care,W2LH53,Third Party Payments          ,Private Contractors           ,EH01,Miscellaneous Agency Services           ,602.74,16/05/2014,REV,BUPA CARE HOMES               
512,Adult Social Care,OP 65&Over NursingCarePlacemts,OP East - Nursing Care,W2LH53,Third Party Payments          ,Private Contractors           ,EH01,Miscellaneous Agency Services           ,705.55,16/05/2014,REV,BUPA CARE HOMES               
513,Adult Social Care,OP 65&Over NursingCarePlacemts,OP East - Nursing Care,W2LH53,Third Party Payments          ,Private Contractors           ,EH01,Miscellaneous Agency Services           ,705.55,16/05/2014,REV,BUPA CARE HOMES               
514,Adult Social Care,OP 65&Over NursingCarePlacemts,OP East - Nursing Care,W2LH53,Third Party Payments          ,Private Contractors           ,EH01,Miscellaneous Agency Services           ,705.55,16/05/2014,REV,BUPA CARE HOMES               
515,Adult Social Care,OP 65&Over NursingCarePlacemts,OP East - Nursing Care,W2LH53,Third Party Payments          ,Private Contractors           ,EH01,Miscellaneous Agency Services           ,602.74,16/05/2014,REV,BUPA CARE HOMES               
516,Adult Social Care,OP 65&Over NursingCarePlacemts,OP East - Nursing Care,W2LH53,Third Party Payments          ,Private Contractors           ,EH01,Miscellaneous Agency Services           ,602.74,16/05/2014,REV,BUPA CARE HOMES               
517,Adult Social Care,OP 65&Over NursingCarePlacemts,OP East - Nursing Care,W2LH53,Third Party Payments          ,Private Contractors           ,EH01,Miscellaneous Agency Services           ,602.74,16/05/2014,REV,BUPA CARE HOMES               
518,Adult Social Care,OP 65&Over NursingCarePlacemts,OP East - Nursing Care,W2LH53,Third Party Payments          ,Private Contractors           ,EH01,Miscellaneous Agency Services           ,602.74,16/05/2014,REV,BUPA CARE HOMES               
519,Adult Social Care,OP 65&Over NursingCarePlacemts,OP East - Nursing Care,W2LH53,Third Party Payments          ,Private Contractors           ,EH01,Miscellaneous Agency Services           ,602.74,16/05/2014,REV,BUPA CARE HOMES               
520,Adult Social Care,OP 65&Over NursingCarePlacemts,OP East - Nursing Care,W2LH53,Third Party Payments          ,Private Contractors           ,EH01,Miscellaneous Agency Services           ,602.74,16/05/2014,REV,BUPA CARE HOMES               
521,Adult Social Care,OP 65&Over NursingCarePlacemts,OP East - Nursing Care,W2LH53,Third Party Payments          ,Private Contractors           ,EH01,Miscellaneous Agency Services           ,705.55,16/05/2014,REV,BUPA CARE HOMES               
522,Adult Social Care,OP 65&Over NursingCarePlacemts,OP East - Nursing Care,W2LH53,Third Party Payments          ,Private Contractors           ,EH01,Miscellaneous Agency Services           ,705.55,16/05/2014,REV,BUPA CARE HOMES               
523,Adult Social Care,OP 65&Over NursingCarePlacemts,OP East - Nursing Care,W2LH53,Third Party Payments          ,Private Contractors           ,EH01,Miscellaneous Agency Services           ,602.74,16/05/2014,REV,BUPA CARE HOMES               
524,Adult Social Care,OP 65&Over NursingCarePlacemts,OP East - Nursing Care,W2LH53,Third Party Payments          ,Private Contractors           ,EH01,Miscellaneous Agency Services           ,602.74,16/05/2014,REV,BUPA CARE HOMES               
525,Adult Social Care,OP 65&Over NursingCarePlacemts,OP East - Nursing Care,W2LH53,Third Party Payments          ,Private Contractors           ,EH01,Miscellaneous Agency Services           ,602.74,16/05/2014,REV,BUPA CARE HOMES               
526,Adult Social Care,OP 65&Over NursingCarePlacemts,OP East - Nursing Care,W2LH53,Third Party Payments          ,Private Contractors           ,EH01,Miscellaneous Agency Services           ,602.74,16/05/2014,REV,BUPA CARE HOMES               
527,Adult Social Care,OP 65&Over NursingCarePlacemts,OP East - Nursing Care,W2LH53,Third Party Payments          ,Private Contractors           ,EH01,Miscellaneous Agency Services           ,602.74,16/05/2014,REV,BUPA CARE HOMES               
528,Adult Social Care,OP 65&Over NursingCarePlacemts,OP East - Nursing Care,W2LH53,Third Party Payments          ,Private Contractors           ,EH01,Miscellaneous Agency Services           ,602.74,16/05/2014,REV,BUPA CARE HOMES               
529,Adult Social Care,OP 65&Over NursingCarePlacemts,OP East - Nursing Care,W2LH53,Third Party Payments          ,Private Contractors           ,EH01,Miscellaneous Agency Services           ,602.74,16/05/2014,REV,BUPA CARE HOMES               
530,Adult Social Care,OP 65&Over NursingCarePlacemts,OP East - Nursing Care,W2LH53,Third Party Payments          ,Private Contractors           ,EH01,Miscellaneous Agency Services           ,705.55,16/05/2014,REV,BUPA CARE HOMES               
531,Adult Social Care,OP 65&Over NursingCarePlacemts,OP East - Nursing Care,W2LH53,Third Party Payments          ,Private Contractors           ,EH01,Miscellaneous Agency Services           ,602.74,16/05/2014,REV,BUPA CARE HOMES               
532,Adult Social Care,OP 65&Over NursingCarePlacemts,OP East - Nursing Care,W2LH53,Third Party Payments          ,Private Contractors           ,EH01,Miscellaneous Agency Services           ,602.74,16/05/2014,REV,BUPA CARE HOMES               
533,Adult Social Care,OP 65&Over NursingCarePlacemts,OP East - Nursing Care,W2LH53,Third Party Payments          ,Private Contractors           ,EH01,Miscellaneous Agency Services           ,602.74,16/05/2014,REV,BUPA CARE HOMES               
534,Adult Social Care,OP 65&Over NursingCarePlacemts,OP East - Nursing Care,W2LH53,Third Party Payments          ,Private Contractors           ,EH01,Miscellaneous Agency Services           ,603.84,16/05/2014,REV,BUPA CARE HOMES               
535,Adult Social Care,OP 65&Over NursingCarePlacemts,OP East - Nursing Care,W2LH53,Third Party Payments          ,Private Contractors           ,EH01,Miscellaneous Agency Services           ,705.55,16/05/2014,REV,BUPA CARE HOMES               
536,Adult Social Care,OP 65&Over NursingCarePlacemts,OP East - Nursing Care,W2LH53,Third Party Payments          ,Private Contractors           ,EH01,Miscellaneous Agency Services           ,705.55,16/05/2014,REV,BUPA CARE HOMES               
537,Adult Social Care,OP 65&Over NursingCarePlacemts,OP East - Nursing Care,W2LH53,Third Party Payments          ,Private Contractors           ,EH01,Miscellaneous Agency Services           ,705.55,16/05/2014,REV,BUPA CARE HOMES               
538,Adult Social Care,OP 65&Over NursingCarePlacemts,OP East - Nursing Care,W2LH53,Third Party Payments          ,Private Contractors           ,EH01,Miscellaneous Agency Services           ,705.55,16/05/2014,REV,BUPA CARE HOMES               
539,Adult Social Care,OP 65&Over NursingCarePlacemts,OP East - Nursing Care,W2LH53,Third Party Payments          ,Private Contractors           ,EH01,Miscellaneous Agency Services           ,705.55,16/05/2014,REV,BUPA CARE HOMES               
540,Adult Social Care,OP 65&Over NursingCarePlacemts,OP East - Nursing Care,W2LH53,Third Party Payments          ,Private Contractors           ,EH01,Miscellaneous Agency Services           ,705.55,16/05/2014,REV,BUPA CARE HOMES               
541,Adult Social Care,OP 65&Over Resi Care Placement,OP East - Residential Care Ext,W2LH55,Third Party Payments          ,Private Contractors           ,EH01,Miscellaneous Agency Services           ,521.99,16/05/2014,REV,BUPA CARE HOMES               
542,Adult Social Care,OP 65&Over Resi Care Placement,OP East - Residential Care Ext,W2LH55,Third Party Payments          ,Private Contractors           ,EH01,Miscellaneous Agency Services           ,521.99,16/05/2014,REV,BUPA CARE HOMES               
543,Adult Social Care,OP 65&Over Resi Care Placement,OP East - Residential Care Ext,W2LH55,Third Party Payments          ,Private Contractors           ,EH01,Miscellaneous Agency Services           ,521.99,16/05/2014,REV,BUPA CARE HOMES               
544,Adult Social Care,OP 65&Over Resi Care Placement,OP East - Residential Care Ext,W2LH55,Third Party Payments          ,Private Contractors           ,EH01,Miscellaneous Agency Services           ,521.99,16/05/2014,REV,BUPA CARE HOMES               
545,Adult Social Care,OP 65&Over Resi Care Placement,OP East - Residential Care Ext,W2LH55,Third Party Payments          ,Private Contractors           ,EH01,Miscellaneous Agency Services           ,521.99,16/05/2014,REV,BUPA CARE HOMES               
546,Adult Social Care,OP 65&Over Resi Care Placement,OP East - Residential Care Ext,W2LH55,Third Party Payments          ,Private Contractors           ,EH01,Miscellaneous Agency Services           ,521.99,16/05/2014,REV,BUPA CARE HOMES               
547,Adult Social Care,OP 65&Over Resi Care Placement,OP East - Residential Care Ext,W2LH55,Third Party Payments          ,Private Contractors           ,EH01,Miscellaneous Agency Services           ,521.99,16/05/2014,REV,BUPA CARE HOMES               
548,Adult Social Care,OP 65&Over Resi Care Placement,OP East - Residential Care Ext,W2LH55,Third Party Payments          ,Private Contractors           ,EH01,Miscellaneous Agency Services           ,521.99,16/05/2014,REV,BUPA CARE HOMES               
549,Adult Social Care,OP 65&Over NursingCarePlacemts,OP R/Park - Nursing Care,W2LR53,Third Party Payments          ,Private Contractors           ,EH01,Miscellaneous Agency Services           ,602.74,19/05/2014,REV,BUPA CARE HOMES               
550,Adult Social Care,OP 65&Over NursingCarePlacemts,OP R/Park - Nursing Care,W2LR53,Third Party Payments          ,Private Contractors           ,EH01,Miscellaneous Agency Services           ,602.74,16/05/2014,REV,BUPA CARE HOMES               
551,Adult Social Care,OP 65&Over NursingCarePlacemts,OP R/Park - Nursing Care,W2LR53,Third Party Payments          ,Private Contractors           ,EH01,Miscellaneous Agency Services           ,602.74,16/05/2014,REV,BUPA CARE HOMES               
552,Adult Social Care,OP 65&Over NursingCarePlacemts,OP R/Park - Nursing Care,W2LR53,Third Party Payments          ,Private Contractors           ,EH01,Miscellaneous Agency Services           ,602.74,16/05/2014,REV,BUPA CARE HOMES               
553,Adult Social Care,OP 65&Over NursingCarePlacemts,OP R/Park - Nursing Care,W2LR53,Third Party Payments          ,Private Contractors           ,EH01,Miscellaneous Agency Services           ,602.74,16/05/2014,REV,BUPA CARE HOMES               
554,Adult Social Care,OP 65&Over NursingCarePlacemts,OP R/Park - Nursing Care,W2LR53,Third Party Payments          ,Private Contractors           ,EH01,Miscellaneous Agency Services           ,602.74,16/05/2014,REV,BUPA CARE HOMES               
555,Adult Social Care,OP 65&Over NursingCarePlacemts,OP R/Park - Nursing Care,W2LR53,Third Party Payments          ,Private Contractors           ,EH01,Miscellaneous Agency Services           ,602.74,16/05/2014,REV,BUPA CARE HOMES               
556,Adult Social Care,OP 65&Over NursingCarePlacemts,OP R/Park - Nursing Care,W2LR53,Third Party Payments          ,Private Contractors           ,EH01,Miscellaneous Agency Services           ,602.74,16/05/2014,REV,BUPA CARE HOMES               
557,Adult Social Care,OP 65&Over NursingCarePlacemts,OP R/Park - Nursing Care,W2LR53,Third Party Payments          ,Private Contractors           ,EH01,Miscellaneous Agency Services           ,602.74,16/05/2014,REV,BUPA CARE HOMES               
558,Adult Social Care,OP 65&Over NursingCarePlacemts,OP R/Park - Nursing Care,W2LR53,Third Party Payments          ,Private Contractors           ,EH01,Miscellaneous Agency Services           ,602.74,16/05/2014,REV,BUPA CARE HOMES               
559,Adult Social Care,OP 65&Over NursingCarePlacemts,OP R/Park - Nursing Care,W2LR53,Third Party Payments          ,Private Contractors           ,EH01,Miscellaneous Agency Services           ,602.74,16/05/2014,REV,BUPA CARE HOMES               
560,Adult Social Care,OP 65&Over NursingCarePlacemts,OP R/Park - Nursing Care,W2LR53,Third Party Payments          ,Private Contractors           ,EH01,Miscellaneous Agency Services           ,516.63,16/05/2014,REV,BUPA CARE HOMES               
561,Adult Social Care,OP 65&Over NursingCarePlacemts,OP R/Park - Nursing Care,W2LR53,Third Party Payments          ,Private Contractors           ,EH01,Miscellaneous Agency Services           ,602.74,16/05/2014,REV,BUPA CARE HOMES               
562,Adult Social Care,OP 65&Over NursingCarePlacemts,OP R/Park - Nursing Care,W2LR53,Third Party Payments          ,Private Contractors           ,EH01,Miscellaneous Agency Services           ,602.74,16/05/2014,REV,BUPA CARE HOMES               
563,Adult Social Care,OP 65&Over NursingCarePlacemts,OP R/Park - Nursing Care,W2LR53,Third Party Payments          ,Private Contractors           ,EH01,Miscellaneous Agency Services           ,602.74,16/05/2014,REV,BUPA CARE HOMES               
564,Adult Social Care,OP 65&Over NursingCarePlacemts,OP R/Park - Nursing Care,W2LR53,Third Party Payments          ,Private Contractors           ,EH01,Miscellaneous Agency Services           ,602.74,16/05/2014,REV,BUPA CARE HOMES               
565,Adult Social Care,OP 65&Over NursingCarePlacemts,OP R/Park - Nursing Care,W2LR53,Third Party Payments          ,Private Contractors           ,EH01,Miscellaneous Agency Services           ,602.74,16/05/2014,REV,BUPA CARE HOMES               
566,Adult Social Care,OP 65&Over NursingCarePlacemts,OP R/Park - Nursing Care,W2LR53,Third Party Payments          ,Private Contractors           ,EH01,Miscellaneous Agency Services           ,602.74,16/05/2014,REV,BUPA CARE HOMES               
567,Adult Social Care,OP 65&Over NursingCarePlacemts,OP R/Park - Nursing Care,W2LR53,Third Party Payments          ,Private Contractors           ,EH01,Miscellaneous Agency Services           ,602.74,16/05/2014,REV,BUPA CARE HOMES               
568,Adult Social Care,OP 65&Over NursingCarePlacemts,OP R/Park - Nursing Care,W2LR53,Third Party Payments          ,Private Contractors           ,EH01,Miscellaneous Agency Services           ,602.74,16/05/2014,REV,BUPA CARE HOMES               
569,Adult Social Care,OP 65&Over NursingCarePlacemts,OP R/Park - Nursing Care,W2LR53,Third Party Payments          ,Private Contractors           ,EH01,Miscellaneous Agency Services           ,602.74,16/05/2014,REV,BUPA CARE HOMES               
570,Adult Social Care,OP 65&Over NursingCarePlacemts,OP R/Park - Nursing Care,W2LR53,Third Party Payments          ,Private Contractors           ,EH01,Miscellaneous Agency Services           ,602.74,16/05/2014,REV,BUPA CARE HOMES               
571,Adult Social Care,OP 65&Over NursingCarePlacemts,OP R/Park - Nursing Care,W2LR53,Third Party Payments          ,Private Contractors           ,EH01,Miscellaneous Agency Services           ,602.74,16/05/2014,REV,BUPA CARE HOMES               
572,Adult Social Care,OP 65&Over NursingCarePlacemts,OP R/Park - Nursing Care,W2LR53,Third Party Payments          ,Private Contractors           ,EH01,Miscellaneous Agency Services           ,602.74,16/05/2014,REV,BUPA CARE HOMES               
573,Adult Social Care,OP 65&Over NursingCarePlacemts,OP R/Park - Nursing Care,W2LR53,Third Party Payments          ,Private Contractors           ,EH01,Miscellaneous Agency Services           ,602.74,16/05/2014,REV,BUPA CARE HOMES               
574,Adult Social Care,OP 65&Over NursingCarePlacemts,OP R/Park - Nursing Care,W2LR53,Third Party Payments          ,Private Contractors           ,EH01,Miscellaneous Agency Services           ,602.74,16/05/2014,REV,BUPA CARE HOMES               
575,Adult Social Care,OP 65&Over NursingCarePlacemts,OP R/Park - Nursing Care,W2LR53,Third Party Payments          ,Private Contractors           ,EH01,Miscellaneous Agency Services           ,602.74,16/05/2014,REV,BUPA CARE HOMES               
576,Adult Social Care,OP 65&Over NursingCarePlacemts,OP R/Park - Nursing Care,W2LR53,Third Party Payments          ,Private Contractors           ,EH01,Miscellaneous Agency Services           ,602.74,16/05/2014,REV,BUPA CARE HOMES               
577,Adult Social Care,OP 65&Over NursingCarePlacemts,OP R/Park - Nursing Care,W2LR53,Third Party Payments          ,Private Contractors           ,EH01,Miscellaneous Agency Services           ,602.74,16/05/2014,REV,BUPA CARE HOMES               
578,Adult Social Care,OP 65&Over NursingCarePlacemts,OP R/Park - Nursing Care,W2LR53,Third Party Payments          ,Private Contractors           ,EH01,Miscellaneous Agency Services           ,602.74,16/05/2014,REV,BUPA CARE HOMES               
579,Adult Social Care,OP 65&Over NursingCarePlacemts,OP R/Park - Nursing Care,W2LR53,Third Party Payments          ,Private Contractors           ,EH01,Miscellaneous Agency Services           ,602.74,16/05/2014,REV,BUPA CARE HOMES               
580,Adult Social Care,OP 65&Over NursingCarePlacemts,OP R/Park - Nursing Care,W2LR53,Third Party Payments          ,Private Contractors           ,EH01,Miscellaneous Agency Services           ,602.74,16/05/2014,REV,BUPA CARE HOMES               
581,Adult Social Care,OP 65&Over NursingCarePlacemts,OP R/Park - Nursing Care,W2LR53,Third Party Payments          ,Private Contractors           ,EH01,Miscellaneous Agency Services           ,602.74,16/05/2014,REV,BUPA CARE HOMES               
582,Adult Social Care,OP 65&Over NursingCarePlacemts,OP R/Park - Nursing Care,W2LR53,Third Party Payments          ,Private Contractors           ,EH01,Miscellaneous Agency Services           ,602.74,16/05/2014,REV,BUPA CARE HOMES               
583,Adult Social Care,OP 65&Over NursingCarePlacemts,OP R/Park - Nursing Care,W2LR53,Third Party Payments          ,Private Contractors           ,EH01,Miscellaneous Agency Services           ,602.74,16/05/2014,REV,BUPA CARE HOMES               
584,Adult Social Care,OP 65&Over NursingCarePlacemts,OP R/Park - Nursing Care,W2LR53,Third Party Payments          ,Private Contractors           ,EH01,Miscellaneous Agency Services           ,602.74,16/05/2014,REV,BUPA CARE HOMES               
585,Adult Social Care,OP 65&Over NursingCarePlacemts,OP R/Park - Nursing Care,W2LR53,Third Party Payments          ,Private Contractors           ,EH01,Miscellaneous Agency Services           ,602.74,19/05/2014,REV,BUPA CARE HOMES               
586,Adult Social Care,OP 65&Over NursingCarePlacemts,OP R/Park - Nursing Care,W2LR53,Third Party Payments          ,Private Contractors           ,EH01,Miscellaneous Agency Services           ,602.74,19/05/2014,REV,BUPA CARE HOMES               
587,Adult Social Care,OP 65&Over NursingCarePlacemts,OP R/Park - Nursing Care,W2LR53,Third Party Payments          ,Private Contractors           ,EH01,Miscellaneous Agency Services           ,602.74,16/05/2014,REV,BUPA CARE HOMES               
588,Adult Social Care,OP 65&Over NursingCarePlacemts,OP R/Park - Nursing Care,W2LR53,Third Party Payments          ,Private Contractors           ,EH01,Miscellaneous Agency Services           ,602.74,16/05/2014,REV,BUPA CARE HOMES               
589,Adult Social Care,OP 65&Over NursingCarePlacemts,OP R/Park - Nursing Care,W2LR53,Third Party Payments          ,Private Contractors           ,EH01,Miscellaneous Agency Services           ,602.74,16/05/2014,REV,BUPA CARE HOMES               
590,Adult Social Care,OP 65&Over NursingCarePlacemts,OP R/Park - Nursing Care,W2LR53,Third Party Payments          ,Private Contractors           ,EH01,Miscellaneous Agency Services           ,602.74,16/05/2014,REV,BUPA CARE HOMES               
591,Adult Social Care,OP 65&Over NursingCarePlacemts,OP R/Park - Nursing Care,W2LR53,Third Party Payments          ,Private Contractors           ,EH01,Miscellaneous Agency Services           ,602.74,16/05/2014,REV,BUPA CARE HOMES               
592,Adult Social Care,OP 65&Over NursingCarePlacemts,OP R/Park - Nursing Care,W2LR53,Third Party Payments          ,Private Contractors           ,EH01,Miscellaneous Agency Services           ,602.74,16/05/2014,REV,BUPA CARE HOMES               
593,Adult Social Care,OP 65&Over NursingCarePlacemts,OP R/Park - Nursing Care,W2LR53,Third Party Payments          ,Private Contractors           ,EH01,Miscellaneous Agency Services           ,602.74,16/05/2014,REV,BUPA CARE HOMES               
594,Adult Social Care,OP 65&Over NursingCarePlacemts,OP R/Park - Nursing Care,W2LR53,Third Party Payments          ,Private Contractors           ,EH01,Miscellaneous Agency Services           ,602.74,16/05/2014,REV,BUPA CARE HOMES               
595,Adult Social Care,OP 65&Over NursingCarePlacemts,OP R/Park - Nursing Care,W2LR53,Third Party Payments          ,Private Contractors           ,EH01,Miscellaneous Agency Services           ,602.74,16/05/2014,REV,BUPA CARE HOMES               
596,Adult Social Care,OP 65&Over NursingCarePlacemts,OP R/Park - Nursing Care,W2LR53,Third Party Payments          ,Private Contractors           ,EH01,Miscellaneous Agency Services           ,602.74,16/05/2014,REV,BUPA CARE HOMES               
597,Adult Social Care,OP 65&Over NursingCarePlacemts,OP R/Park - Nursing Care,W2LR53,Third Party Payments          ,Private Contractors           ,EH01,Miscellaneous Agency Services           ,602.74,16/05/2014,REV,BUPA CARE HOMES               
598,Adult Social Care,OP 65&Over NursingCarePlacemts,OP R/Park - Nursing Care,W2LR53,Third Party Payments          ,Private Contractors           ,EH01,Miscellaneous Agency Services           ,602.74,16/05/2014,REV,BUPA CARE HOMES               
599,Adult Social Care,OP 65&Over NursingCarePlacemts,OP R/Park - Nursing Care,W2LR53,Third Party Payments          ,Private Contractors           ,EH01,Miscellaneous Agency Services           ,602.74,16/05/2014,REV,BUPA CARE HOMES               
600,Adult Social Care,OP 65&Over NursingCarePlacemts,OP R/Park - Nursing Care,W2LR53,Third Party Payments          ,Private Contractors           ,EH01,Miscellaneous Agency Services           ,602.74,16/05/2014,REV,BUPA CARE HOMES               
601,Adult Social Care,OP 65&Over NursingCarePlacemts,OP R/Park - Nursing Care,W2LR53,Third Party Payments          ,Private Contractors           ,EH01,Miscellaneous Agency Services           ,602.74,16/05/2014,REV,BUPA CARE HOMES               
602,Adult Social Care,OP 65&Over NursingCarePlacemts,OP R/Park - Nursing Care,W2LR53,Third Party Payments          ,Private Contractors           ,EH01,Miscellaneous Agency Services           ,602.74,16/05/2014,REV,BUPA CARE HOMES               
603,Adult Social Care,OP 65&Over NursingCarePlacemts,OP R/Park - Nursing Care,W2LR53,Third Party Payments          ,Private Contractors           ,EH01,Miscellaneous Agency Services           ,602.74,16/05/2014,REV,BUPA CARE HOMES               
604,Adult Social Care,OP 65&Over NursingCarePlacemts,OP R/Park - Nursing Care,W2LR53,Third Party Payments          ,Private Contractors           ,EH01,Miscellaneous Agency Services           ,602.74,16/05/2014,REV,BUPA CARE HOMES               
605,Adult Social Care,OP 65&Over NursingCarePlacemts,OP R/Park - Nursing Care,W2LR53,Third Party Payments          ,Private Contractors           ,EH01,Miscellaneous Agency Services           ,602.74,16/05/2014,REV,BUPA CARE HOMES               
606,Adult Social Care,OP 65&Over NursingCarePlacemts,OP R/Park - Nursing Care,W2LR53,Third Party Payments          ,Private Contractors           ,EH01,Miscellaneous Agency Services           ,602.74,16/05/2014,REV,BUPA CARE HOMES               
607,Adult Social Care,OP 65&Over NursingCarePlacemts,OP R/Park - Nursing Care,W2LR53,Third Party Payments          ,Private Contractors           ,EH01,Miscellaneous Agency Services           ,602.74,16/05/2014,REV,BUPA CARE HOMES               
608,Adult Social Care,OP 65&Over NursingCarePlacemts,OP R/Park - Nursing Care,W2LR53,Third Party Payments          ,Private Contractors           ,EH01,Miscellaneous Agency Services           ,602.74,16/05/2014,REV,BUPA CARE HOMES               
609,Adult Social Care,OP 65&Over NursingCarePlacemts,OP R/Park - Nursing Care,W2LR53,Third Party Payments          ,Private Contractors           ,EH01,Miscellaneous Agency Services           ,602.74,19/05/2014,REV,BUPA CARE HOMES               
610,Adult Social Care,OP 65&Over NursingCarePlacemts,OP R/Park - Nursing Care,W2LR53,Third Party Payments          ,Private Contractors           ,EH01,Miscellaneous Agency Services           ,602.74,16/05/2014,REV,BUPA CARE HOMES               
611,Adult Social Care,OP 65&Over NursingCarePlacemts,OP R/Park - Nursing Care,W2LR53,Third Party Payments          ,Private Contractors           ,EH01,Miscellaneous Agency Services           ,602.74,16/05/2014,REV,BUPA CARE HOMES               
612,Adult Social Care,OP 65&Over NursingCarePlacemts,OP R/Park - Nursing Care,W2LR53,Third Party Payments          ,Private Contractors           ,EH01,Miscellaneous Agency Services           ,602.74,16/05/2014,REV,BUPA CARE HOMES               
613,Adult Social Care,OP 65&Over NursingCarePlacemts,OP R/Park - Nursing Care,W2LR53,Third Party Payments          ,Private Contractors           ,EH01,Miscellaneous Agency Services           ,602.74,16/05/2014,REV,BUPA CARE HOMES               
614,Adult Social Care,OP 65&Over NursingCarePlacemts,OP R/Park - Nursing Care,W2LR53,Third Party Payments          ,Private Contractors           ,EH01,Miscellaneous Agency Services           ,602.74,16/05/2014,REV,BUPA CARE HOMES               
615,Adult Social Care,OP 65&Over NursingCarePlacemts,OP R/Park - Nursing Care,W2LR53,Third Party Payments          ,Private Contractors           ,EH01,Miscellaneous Agency Services           ,602.74,16/05/2014,REV,BUPA CARE HOMES               
616,Adult Social Care,OP 65&Over NursingCarePlacemts,OP R/Park - Nursing Care,W2LR53,Third Party Payments          ,Private Contractors           ,EH01,Miscellaneous Agency Services           ,602.74,16/05/2014,REV,BUPA CARE HOMES               
617,Adult Social Care,OP 65&Over NursingCarePlacemts,OP R/Park - Nursing Care,W2LR53,Third Party Payments          ,Private Contractors           ,EH01,Miscellaneous Agency Services           ,602.74,16/05/2014,REV,BUPA CARE HOMES               
618,Adult Social Care,OP 65&Over NursingCarePlacemts,OP R/Park - Nursing Care,W2LR53,Third Party Payments          ,Private Contractors           ,EH01,Miscellaneous Agency Services           ,602.74,16/05/2014,REV,BUPA CARE HOMES               
619,Adult Social Care,OP 65&Over NursingCarePlacemts,OP R/Park - Nursing Care,W2LR53,Third Party Payments          ,Private Contractors           ,EH01,Miscellaneous Agency Services           ,602.74,16/05/2014,REV,BUPA CARE HOMES               
620,Adult Social Care,OP 65&Over Resi Care Placement,OP R/Park-Residential Care Ext,W2LR55,Third Party Payments          ,Private Contractors           ,EH01,Miscellaneous Agency Services           ,521.99,16/05/2014,REV,BUPA CARE HOMES               
621,Adult Social Care,OP 65&Over Resi Care Placement,OP R/Park-Residential Care Ext,W2LR55,Third Party Payments          ,Private Contractors           ,EH01,Miscellaneous Agency Services           ,521.99,16/05/2014,REV,BUPA CARE HOMES               
622,Adult Social Care,OP 65&Over Resi Care Placement,OP R/Park-Residential Care Ext,W2LR55,Third Party Payments          ,Private Contractors           ,EH01,Miscellaneous Agency Services           ,521.99,16/05/2014,REV,BUPA CARE HOMES               
623,Adult Social Care,OP 65&Over Resi Care Placement,OP R/Park-Residential Care Ext,W2LR55,Third Party Payments          ,Private Contractors           ,EH01,Miscellaneous Agency Services           ,521.99,16/05/2014,REV,BUPA CARE HOMES               
624,Adult Social Care,PS u65 Nursing Care Placements,PD EAST TEAM-Nursing,W2JJ53,Third Party Payments          ,Private Contractors           ,EH01,Miscellaneous Agency Services           ,"1,450.00",16/05/2014,REV,BUPA CARE HOMES               
625,Adult Social Care,PS u65 Nursing Care Placements,PD EAST TEAM-Nursing,W2JJ53,Third Party Payments          ,Private Contractors           ,EH01,Miscellaneous Agency Services           ,"1,450.00",16/05/2014,REV,BUPA CARE HOMES               
626,Adult Social Care,PS u65 Nursing Care Placements,PD EAST TEAM-Nursing,W2JJ53,Third Party Payments          ,Private Contractors           ,EH01,Miscellaneous Agency Services           ,"1,450.00",16/05/2014,REV,BUPA CARE HOMES               
627,Adult Social Care,PS u65 Nursing Care Placements,PD EAST TEAM-Nursing,W2JJ53,Third Party Payments          ,Private Contractors           ,EH01,Miscellaneous Agency Services           ,"1,450.00",16/05/2014,REV,BUPA CARE HOMES               
628,CS -Oth Operating Inc & Expend,T/A Vehicle Maintenance etc,Transport-Contract Hire,J01374,Transport Related Expenditure ,Contract Hire and Op Leasing  ,CC59,HIRING TRANSPORT OPERATIONS             ,"1,452.00",30/04/2014,REV,BURNT TREE VEHICLE RENTAL     
629,CS -Oth Operating Inc & Expend,T/A Vehicle Maintenance etc,Transport-Contract Hire,J01374,Transport Related Expenditure ,Contract Hire and Op Leasing  ,CC59,HIRING TRANSPORT OPERATIONS             ,"1,452.00",30/04/2014,REV,BURNT TREE VEHICLE RENTAL     
630,CS -Oth Operating Inc & Expend,T/A Vehicle Maintenance etc,Transport-Contract Hire,J01374,Transport Related Expenditure ,Contract Hire and Op Leasing  ,CC59,HIRING TRANSPORT OPERATIONS             ,"1,452.00",30/04/2014,REV,BURNT TREE VEHICLE RENTAL     
631,Childrens & Education Services,Strategic Management,DS Director SSR Costs,W0AA01,Supplies & Services           ,Services                      ,DF11,Counsel's Fees                          ,"5,925.00",21/03/2014,REV,REDACTED
632,,,Mtchm Cmmon Consvtors,W0000W,Transport Related Expenditure ,Contract Hire and Op Leasing  ,CC56,Plant Hire for Leisure                  ,600,30/04/2014,REV,I & J BUSHELL LTD             
633,Childrens & Education Services,Nursery schools,2Year Old Offer                         ,K90051,Supplies & Services           ,Grants and Subscriptions      ,DJ01,Grants                                  ,972,19/05/2014,REV,REDACTED
634,Childrens & Education Services,Vocational - Adult Education,AE-Adult Education Main,K06049,Supplies & Services           ,Services                      ,DF27,Examination Fees                        ,750,23/04/2014,REV,CACHE                         
635,Childrens & Education Services,Chidren's Homes,ART Residential Placements,W1DE57,Third Party Payments          ,Private Contractors           ,EH01,Miscellaneous Agency Services           ,"1,147.50",12/03/2014,REV,REDACTED
636,Childrens & Education Services,Chidren's Homes,ART Residential Placements,W1DE57,Third Party Payments          ,Private Contractors           ,EH01,Miscellaneous Agency Services           ,"1,338.75",12/03/2014,REV,REDACTED
637,Childrens & Education Services,Chidren's Homes,ART Residential Placements,W1DE57,Third Party Payments          ,Private Contractors           ,EH01,Miscellaneous Agency Services           ,"1,338.75",12/03/2014,REV,REDACTED
638,Childrens & Education Services,Chidren's Homes,ART Residential Placements,W1DE57,Third Party Payments          ,Private Contractors           ,EH01,Miscellaneous Agency Services           ,573.75,12/03/2014,REV,REDACTED
639,Childrens & Education Services,Chidren's Homes,ART Residential Placements,W1DE57,Third Party Payments          ,Private Contractors           ,EH01,Miscellaneous Agency Services           ,"1,338.75",12/03/2014,REV,REDACTED
641,Central Services,SupS Legal,Richmond Legal,E10289,Supplies & Services           ,Services                      ,DF11,Counsel's Fees                          ,"1,000.00",01/04/2014,REV,REDACTED
642,Central Services,SupS Legal,Richmond Legal,E10289,Supplies & Services           ,Services                      ,DF11,Counsel's Fees                          ,"1,000.00",01/04/2014,REV,REDACTED
645,Central Services,SupS Health & Safety,Learning and Development,B06146,Employees                     ,Indirect Employee Expenses    ,AB56,Internal Training Costs                 ,"1,260.00",17/03/2014,REV,CAPEL MANOR COLLEGE           
646,CS -Oth Operating Inc & Expend,T/A Vehicle Maintenance etc,Transport-Contract Hire,J01374,Transport Related Expenditure ,Contract Hire and Op Leasing  ,CC64,HIRING TRANSPORT SEN CABS               ,788,30/04/2014,REV,CAPITAL CARS                  
647,CS -Oth Operating Inc & Expend,T/A Vehicle Maintenance etc,Transport-Contract Hire,J01374,Transport Related Expenditure ,Contract Hire and Op Leasing  ,CC64,HIRING TRANSPORT SEN CABS               ,798,30/04/2014,REV,CAPITAL CARS                  
648,CS -Oth Operating Inc & Expend,T/A Vehicle Maintenance etc,Transport-Contract Hire,J01374,Transport Related Expenditure ,Contract Hire and Op Leasing  ,CC64,HIRING TRANSPORT SEN CABS               ,"2,557.00",30/04/2014,REV,CAPITAL CARS                  
649,CS -Oth Operating Inc & Expend,T/A Vehicle Maintenance etc,Transport-Contract Hire,J01374,Transport Related Expenditure ,Contract Hire and Op Leasing  ,CC64,HIRING TRANSPORT SEN CABS               ,836,30/04/2014,REV,CAPITAL CARS                  
650,CS -Oth Operating Inc & Expend,T/A Vehicle Maintenance etc,Transport-Contract Hire,J01374,Transport Related Expenditure ,Contract Hire and Op Leasing  ,CC64,HIRING TRANSPORT SEN CABS               ,"1,384.00",30/04/2014,REV,CAPITAL CARS                  
651,CS -Oth Operating Inc & Expend,T/A Vehicle Maintenance etc,Transport-Contract Hire,J01374,Transport Related Expenditure ,Contract Hire and Op Leasing  ,CC64,HIRING TRANSPORT SEN CABS               ,"1,034.00",30/04/2014,REV,CAPITAL CARS                  
652,CS -Oth Operating Inc & Expend,T/A Vehicle Maintenance etc,Transport-Contract Hire,J01374,Transport Related Expenditure ,Contract Hire and Op Leasing  ,CC64,HIRING TRANSPORT SEN CABS               ,"1,008.00",30/04/2014,REV,CAPITAL CARS                  
653,CS -Oth Operating Inc & Expend,T/A Vehicle Maintenance etc,Transport-Contract Hire,J01374,Transport Related Expenditure ,Contract Hire and Op Leasing  ,CC64,HIRING TRANSPORT SEN CABS               ,"1,166.00",30/04/2014,REV,CAPITAL CARS                  
654,CS -Oth Operating Inc & Expend,T/A Vehicle Maintenance etc,Transport-Contract Hire,J01374,Transport Related Expenditure ,Contract Hire and Op Leasing  ,CC64,HIRING TRANSPORT SEN CABS               ,"1,386.00",30/04/2014,REV,CAPITAL CARS                  
655,CS -Oth Operating Inc & Expend,T/A Vehicle Maintenance etc,Transport-Contract Hire,J01374,Transport Related Expenditure ,Contract Hire and Op Leasing  ,CC64,HIRING TRANSPORT SEN CABS               ,"1,344.00",30/04/2014,REV,CAPITAL CARS                  
656,CS -Oth Operating Inc & Expend,T/A Vehicle Maintenance etc,Transport-Contract Hire,J01374,Transport Related Expenditure ,Contract Hire and Op Leasing  ,CC64,HIRING TRANSPORT SEN CABS               ,"1,034.00",30/04/2014,REV,CAPITAL CARS                  
657,CS -Oth Operating Inc & Expend,T/A Vehicle Maintenance etc,Transport-Contract Hire,J01374,Transport Related Expenditure ,Contract Hire and Op Leasing  ,CC64,HIRING TRANSPORT SEN CABS               ,542,30/04/2014,REV,CAPITAL CARS                  
658,CS -Oth Operating Inc & Expend,T/A Vehicle Maintenance etc,Transport-Contract Hire,J01374,Transport Related Expenditure ,Contract Hire and Op Leasing  ,CC64,HIRING TRANSPORT SEN CABS               ,814,30/04/2014,REV,CAPITAL CARS                  
659,CS -Oth Operating Inc & Expend,T/A Vehicle Maintenance etc,Transport-Contract Hire,J01374,Transport Related Expenditure ,Contract Hire and Op Leasing  ,CC64,HIRING TRANSPORT SEN CABS               ,"1,102.00",30/04/2014,REV,CAPITAL CARS                  
660,CS -Oth Operating Inc & Expend,T/A Vehicle Maintenance etc,Transport-Contract Hire,J01374,Transport Related Expenditure ,Contract Hire and Op Leasing  ,CC64,HIRING TRANSPORT SEN CABS               ,814,30/04/2014,REV,CAPITAL CARS                  
661,CS -Oth Operating Inc & Expend,T/A Vehicle Maintenance etc,Transport-Contract Hire,J01374,Transport Related Expenditure ,Contract Hire and Op Leasing  ,CC67,HIRING TRANSPORT H&SS CAB ADULTS        ,610,30/04/2014,REV,CAPITAL CARS                  
662,CS -Oth Operating Inc & Expend,T/A Vehicle Maintenance etc,Transport-Contract Hire,J01374,Transport Related Expenditure ,Contract Hire and Op Leasing  ,CC67,HIRING TRANSPORT H&SS CAB ADULTS        ,666,30/04/2014,REV,CAPITAL CARS                  
663,CS -Oth Operating Inc & Expend,T/A Vehicle Maintenance etc,Transport-Contract Hire,J01374,Transport Related Expenditure ,Contract Hire and Op Leasing  ,CC67,HIRING TRANSPORT H&SS CAB ADULTS        ,650,30/04/2014,REV,CAPITAL CARS                  
664,CS -Oth Operating Inc & Expend,T/A Vehicle Maintenance etc,Transport-Contract Hire,J01374,Transport Related Expenditure ,Contract Hire and Op Leasing  ,CC67,HIRING TRANSPORT H&SS CAB ADULTS        ,846,30/04/2014,REV,CAPITAL CARS                  
665,CS -Oth Operating Inc & Expend,T/A Vehicle Maintenance etc,Transport-Contract Hire,J01374,Transport Related Expenditure ,Contract Hire and Op Leasing  ,CC67,HIRING TRANSPORT H&SS CAB ADULTS        ,"1,062.00",30/04/2014,REV,CAPITAL CARS                  
666,CS -Oth Operating Inc & Expend,T/A Vehicle Maintenance etc,Transport-Contract Hire,J01374,Transport Related Expenditure ,Contract Hire and Op Leasing  ,CC68,HIRING TRANSPORT SEN COLLEGES CABS      ,588,30/04/2014,REV,CAPITAL CARS                  
667,CS -Oth Operating Inc & Expend,T/A Vehicle Maintenance etc,Transport-Workshop,J01376,Transport Related Expenditure ,Contract Hire and Op Leasing  ,CC60,Vehicle Hire for LB Sutton              ,"1,540.00",30/04/2014,REV,CAPITAL CARS                  
668,Housing Services,Bed / breakfast accommodation,Homelessness Prevention,N47171,Transfer Payments             ,Housing Benefits              ,FA12,Rent Deposits                           ,"1,900.00",21/05/2014,REV,CAPITAL LETTINGS & EST AGENTS 
669,Adult Social Care,LD u65 Residentl Care Placemnt,LD Residential Care External,W2KB55,Third Party Payments          ,Private Contractors           ,EH01,Miscellaneous Agency Services           ,"1,795.54",29/04/2014,REV,CARE ASPIRATIONS LIMITED      
670,Adult Social Care,LD u65 Residentl Care Placemnt,LD Residential Care External,W2KB55,Third Party Payments          ,Private Contractors           ,EH01,Miscellaneous Agency Services           ,"1,026.02",29/04/2014,REV,CARE ASPIRATIONS LIMITED      
671,Adult Social Care,LD u65 Residentl Care Placemnt,LD Residential Care External,W2KB55,Third Party Payments          ,Private Contractors           ,EH01,Miscellaneous Agency Services           ,"1,795.54",29/04/2014,REV,CARE ASPIRATIONS LIMITED      
672,Adult Social Care,LD u65 Residentl Care Placemnt,LD Residential Care External,W2KB55,Third Party Payments          ,Private Contractors           ,EH01,Miscellaneous Agency Services           ,"1,795.54",29/04/2014,REV,CARE ASPIRATIONS LIMITED      
673,Adult Social Care,LD u65 Residentl Care Placemnt,LD Residential Care External,W2KB55,Third Party Payments          ,Private Contractors           ,EH01,Miscellaneous Agency Services           ,"1,795.54",29/04/2014,REV,CARE ASPIRATIONS LIMITED      
674,Childrens & Education Services,Asset Management,Centre Commissioned Servs,K08078,Supplies & Services           ,Grants and Subscriptions      ,DJ01,Grants                                  ,"2,500.00",16/05/2014,REV,CARERS SUPPORT MERTON         
675,Childrens & Education Services,Asset Management,Centre Commissioned Servs,K08078,Supplies & Services           ,Grants and Subscriptions      ,DJ01,Grants                                  ,"4,500.00",16/05/2014,REV,CARERS SUPPORT MERTON         
676,Childrens & Education Services,Asset Management,Centre Commissioned Servs,K08078,Supplies & Services           ,Grants and Subscriptions      ,DJ01,Grants                                  ,"18,750.00",16/05/2014,REV,CARERS SUPPORT MERTON         
677,Childrens & Education Services,Asset Management,Centre Commissioned Servs,K08078,Supplies & Services           ,Grants and Subscriptions      ,DJ01,Grants                                  ,"2,687.50",16/05/2014,REV,CARERS SUPPORT MERTON         
678,Childrens & Education Services,Asset Management,Centre Commissioned Servs,K08078,Supplies & Services           ,Grants and Subscriptions      ,DJ01,Grants                                  ,"2,642.25",16/05/2014,REV,CARERS SUPPORT MERTON         
679,Adult Social Care,Other - Other Adult Services,Carers Service,W2GC40,Supplies & Services           ,Grants and Subscriptions      ,DJ01,Grants                                  ,"122,180.00",08/05/2014,REV,CARERS SUPPORT MERTON         
680,Adult Social Care,OP 65&Over NursingCarePlacemts,OP Hosp - Nursing Care,W2LF53,Third Party Payments          ,Private Contractors           ,EH01,Miscellaneous Agency Services           ,633.43,06/05/2014,REV,CARE UK                       
681,Adult Social Care,OP 65&Over NursingCarePlacemts,OP Hosp - Nursing Care,W2LF53,Third Party Payments          ,Private Contractors           ,EH01,Miscellaneous Agency Services           ,650,06/05/2014,REV,CARE UK                       
682,Adult Social Care,OP 65&Over NursingCarePlacemts,OP Hosp - Nursing Care,W2LF53,Third Party Payments          ,Private Contractors           ,EH01,Miscellaneous Agency Services           ,752.81,06/05/2014,REV,CARE UK                       
683,Adult Social Care,OP 65&Over NursingCarePlacemts,OP Hosp - Nursing Care,W2LF53,Third Party Payments          ,Private Contractors           ,EH01,Miscellaneous Agency Services           ,752.81,06/05/2014,REV,CARE UK                       
684,Adult Social Care,OP 65&Over NursingCarePlacemts,OP Hosp - Nursing Care,W2LF53,Third Party Payments          ,Private Contractors           ,EH01,Miscellaneous Agency Services           ,633.43,06/05/2014,REV,CARE UK                       
685,Adult Social Care,OP 65&Over NursingCarePlacemts,OP Hosp - Nursing Care,W2LF53,Third Party Payments          ,Private Contractors           ,EH01,Miscellaneous Agency Services           ,633.43,06/05/2014,REV,CARE UK                       
686,Adult Social Care,OP 65&Over NursingCarePlacemts,OP Hosp - Nursing Care,W2LF53,Third Party Payments          ,Private Contractors           ,EH01,Miscellaneous Agency Services           ,633.43,06/05/2014,REV,CARE UK                       
687,Adult Social Care,OP 65&Over NursingCarePlacemts,OP Hosp - Nursing Care,W2LF53,Third Party Payments          ,Private Contractors           ,EH01,Miscellaneous Agency Services           ,650,06/05/2014,REV,CARE UK                       
688,Adult Social Care,OP 65&Over NursingCarePlacemts,OP Hosp - Nursing Care,W2LF53,Third Party Payments          ,Private Contractors           ,EH01,Miscellaneous Agency Services           ,752.81,06/05/2014,REV,CARE UK                       
689,Adult Social Care,OP 65&Over NursingCarePlacemts,OP Hosp - Nursing Care,W2LF53,Third Party Payments          ,Private Contractors           ,EH01,Miscellaneous Agency Services           ,633.43,06/05/2014,REV,CARE UK                       
690,Adult Social Care,OP 65&Over NursingCarePlacemts,OP Hosp - Nursing Care,W2LF53,Third Party Payments          ,Private Contractors           ,EH01,Miscellaneous Agency Services           ,633.43,06/05/2014,REV,CARE UK                       
691,Adult Social Care,OP 65&Over NursingCarePlacemts,OP Hosp - Nursing Care,W2LF53,Third Party Payments          ,Private Contractors           ,EH01,Miscellaneous Agency Services           ,650,06/05/2014,REV,CARE UK                       
692,Adult Social Care,OP 65&Over NursingCarePlacemts,OP Hosp - Nursing Care,W2LF53,Third Party Payments          ,Private Contractors           ,EH01,Miscellaneous Agency Services           ,633.43,06/05/2014,REV,CARE UK                       
693,Adult Social Care,OP 65&Over NursingCarePlacemts,OP Hosp - Nursing Care,W2LF53,Third Party Payments          ,Private Contractors           ,EH01,Miscellaneous Agency Services           ,633.43,06/05/2014,REV,CARE UK                       
694,Adult Social Care,OP 65&Over NursingCarePlacemts,OP Hosp - Nursing Care,W2LF53,Third Party Payments          ,Private Contractors           ,EH01,Miscellaneous Agency Services           ,650,06/05/2014,REV,CARE UK                       
695,Adult Social Care,OP 65&Over NursingCarePlacemts,OP Hosp - Nursing Care,W2LF53,Third Party Payments          ,Private Contractors           ,EH01,Miscellaneous Agency Services           ,752.81,06/05/2014,REV,CARE UK                       
696,Adult Social Care,OP 65&Over NursingCarePlacemts,OP West - Nursing Care,W2LG53,Third Party Payments          ,Private Contractors           ,EH01,Miscellaneous Agency Services           ,633.43,06/05/2014,REV,CARE UK                       
697,Adult Social Care,OP 65&Over NursingCarePlacemts,OP West - Nursing Care,W2LG53,Third Party Payments          ,Private Contractors           ,EH01,Miscellaneous Agency Services           ,633.43,06/05/2014,REV,CARE UK                       
698,Adult Social Care,OP 65&Over NursingCarePlacemts,OP West - Nursing Care,W2LG53,Third Party Payments          ,Private Contractors           ,EH01,Miscellaneous Agency Services           ,633.43,06/05/2014,REV,CARE UK                       
699,Adult Social Care,OP 65&Over NursingCarePlacemts,OP West - Nursing Care,W2LG53,Third Party Payments          ,Private Contractors           ,EH01,Miscellaneous Agency Services           ,633.43,06/05/2014,REV,CARE UK                       
700,Adult Social Care,OP 65&Over NursingCarePlacemts,OP West - Nursing Care,W2LG53,Third Party Payments          ,Private Contractors           ,EH01,Miscellaneous Agency Services           ,650,06/05/2014,REV,CARE UK                       
701,Adult Social Care,OP 65&Over NursingCarePlacemts,OP West - Nursing Care,W2LG53,Third Party Payments          ,Private Contractors           ,EH01,Miscellaneous Agency Services           ,650,06/05/2014,REV,CARE UK                       
702,Adult Social Care,OP 65&Over NursingCarePlacemts,OP West - Nursing Care,W2LG53,Third Party Payments          ,Private Contractors           ,EH01,Miscellaneous Agency Services           ,633.43,06/05/2014,REV,CARE UK                       
703,Adult Social Care,OP 65&Over NursingCarePlacemts,OP West - Nursing Care,W2LG53,Third Party Payments          ,Private Contractors           ,EH01,Miscellaneous Agency Services           ,633.43,06/05/2014,REV,CARE UK                       
704,Adult Social Care,OP 65&Over NursingCarePlacemts,OP West - Nursing Care,W2LG53,Third Party Payments          ,Private Contractors           ,EH01,Miscellaneous Agency Services           ,633.43,06/05/2014,REV,CARE UK                       
705,Adult Social Care,OP 65&Over NursingCarePlacemts,OP West - Nursing Care,W2LG53,Third Party Payments          ,Private Contractors           ,EH01,Miscellaneous Agency Services           ,633.43,06/05/2014,REV,CARE UK                       
706,Adult Social Care,OP 65&Over NursingCarePlacemts,OP West - Nursing Care,W2LG53,Third Party Payments          ,Private Contractors           ,EH01,Miscellaneous Agency Services           ,650,06/05/2014,REV,CARE UK                       
707,Adult Social Care,OP 65&Over NursingCarePlacemts,OP West - Nursing Care,W2LG53,Third Party Payments          ,Private Contractors           ,EH01,Miscellaneous Agency Services           ,633.43,06/05/2014,REV,CARE UK                       
708,Adult Social Care,OP 65&Over NursingCarePlacemts,OP West - Nursing Care,W2LG53,Third Party Payments          ,Private Contractors           ,EH01,Miscellaneous Agency Services           ,633.43,06/05/2014,REV,CARE UK                       
709,Adult Social Care,OP 65&Over NursingCarePlacemts,OP West - Nursing Care,W2LG53,Third Party Payments          ,Private Contractors           ,EH01,Miscellaneous Agency Services           ,650,06/05/2014,REV,CARE UK                       
710,Adult Social Care,OP 65&Over NursingCarePlacemts,OP West - Nursing Care,W2LG53,Third Party Payments          ,Private Contractors           ,EH01,Miscellaneous Agency Services           ,650,06/05/2014,REV,CARE UK                       
711,Adult Social Care,OP 65&Over NursingCarePlacemts,OP West - Nursing Care,W2LG53,Third Party Payments          ,Private Contractors           ,EH01,Miscellaneous Agency Services           ,633.43,06/05/2014,REV,CARE UK                       
712,Adult Social Care,OP 65&Over NursingCarePlacemts,OP West - Nursing Care,W2LG53,Third Party Payments          ,Private Contractors           ,EH01,Miscellaneous Agency Services           ,633.43,06/05/2014,REV,CARE UK                       
713,Adult Social Care,OP 65&Over NursingCarePlacemts,OP West - Nursing Care,W2LG53,Third Party Payments          ,Private Contractors           ,EH01,Miscellaneous Agency Services           ,650,06/05/2014,REV,CARE UK                       
714,Adult Social Care,OP 65&Over NursingCarePlacemts,OP West - Nursing Care,W2LG53,Third Party Payments          ,Private Contractors           ,EH01,Miscellaneous Agency Services           ,650,06/05/2014,REV,CARE UK                       
715,Adult Social Care,OP 65&Over NursingCarePlacemts,OP West - Nursing Care,W2LG53,Third Party Payments          ,Private Contractors           ,EH01,Miscellaneous Agency Services           ,650,06/05/2014,REV,CARE UK                       
716,Adult Social Care,OP 65&Over NursingCarePlacemts,OP East - Nursing Care,W2LH53,Third Party Payments          ,Private Contractors           ,EH01,Miscellaneous Agency Services           ,633.43,06/05/2014,REV,CARE UK                       
717,Adult Social Care,OP 65&Over NursingCarePlacemts,OP East - Nursing Care,W2LH53,Third Party Payments          ,Private Contractors           ,EH01,Miscellaneous Agency Services           ,633.43,06/05/2014,REV,CARE UK                       
718,Adult Social Care,OP 65&Over NursingCarePlacemts,OP East - Nursing Care,W2LH53,Third Party Payments          ,Private Contractors           ,EH01,Miscellaneous Agency Services           ,633.43,06/05/2014,REV,CARE UK                       
719,Adult Social Care,OP 65&Over NursingCarePlacemts,OP East - Nursing Care,W2LH53,Third Party Payments          ,Private Contractors           ,EH01,Miscellaneous Agency Services           ,633.43,06/05/2014,REV,CARE UK                       
720,Adult Social Care,OP 65&Over NursingCarePlacemts,OP East - Nursing Care,W2LH53,Third Party Payments          ,Private Contractors           ,EH01,Miscellaneous Agency Services           ,633.43,06/05/2014,REV,CARE UK                       
721,Adult Social Care,OP 65&Over NursingCarePlacemts,OP East - Nursing Care,W2LH53,Third Party Payments          ,Private Contractors           ,EH01,Miscellaneous Agency Services           ,633.43,06/05/2014,REV,CARE UK                       
722,Adult Social Care,OP 65&Over NursingCarePlacemts,OP East - Nursing Care,W2LH53,Third Party Payments          ,Private Contractors           ,EH01,Miscellaneous Agency Services           ,633.43,06/05/2014,REV,CARE UK                       
723,Adult Social Care,OP 65&Over NursingCarePlacemts,OP East - Nursing Care,W2LH53,Third Party Payments          ,Private Contractors           ,EH01,Miscellaneous Agency Services           ,633.43,06/05/2014,REV,CARE UK                       
724,Adult Social Care,OP 65&Over NursingCarePlacemts,OP East - Nursing Care,W2LH53,Third Party Payments          ,Private Contractors           ,EH01,Miscellaneous Agency Services           ,633.43,06/05/2014,REV,CARE UK                       
725,Adult Social Care,OP 65&Over NursingCarePlacemts,OP East - Nursing Care,W2LH53,Third Party Payments          ,Private Contractors           ,EH01,Miscellaneous Agency Services           ,633.43,06/05/2014,REV,CARE UK                       
726,Adult Social Care,OP 65&Over NursingCarePlacemts,OP East - Nursing Care,W2LH53,Third Party Payments          ,Private Contractors           ,EH01,Miscellaneous Agency Services           ,633.43,06/05/2014,REV,CARE UK                       
727,Adult Social Care,OP 65&Over NursingCarePlacemts,OP East - Nursing Care,W2LH53,Third Party Payments          ,Private Contractors           ,EH01,Miscellaneous Agency Services           ,633.43,06/05/2014,REV,CARE UK                       
728,Adult Social Care,OP 65&Over NursingCarePlacemts,OP East - Nursing Care,W2LH53,Third Party Payments          ,Private Contractors           ,EH01,Miscellaneous Agency Services           ,633.43,06/05/2014,REV,CARE UK                       
729,Adult Social Care,OP 65&Over NursingCarePlacemts,OP East - Nursing Care,W2LH53,Third Party Payments          ,Private Contractors           ,EH01,Miscellaneous Agency Services           ,633.43,06/05/2014,REV,CARE UK                       
730,Adult Social Care,OP 65&Over NursingCarePlacemts,OP East - Nursing Care,W2LH53,Third Party Payments          ,Private Contractors           ,EH01,Miscellaneous Agency Services           ,633.43,06/05/2014,REV,CARE UK                       
731,Adult Social Care,OP 65&Over NursingCarePlacemts,OP East - Nursing Care,W2LH53,Third Party Payments          ,Private Contractors           ,EH01,Miscellaneous Agency Services           ,633.43,06/05/2014,REV,CARE UK                       
732,Adult Social Care,OP 65&Over NursingCarePlacemts,OP R/Park - Nursing Care,W2LR53,Third Party Payments          ,Private Contractors           ,EH01,Miscellaneous Agency Services           ,633.43,06/05/2014,REV,CARE UK                       
733,Adult Social Care,OP 65&Over NursingCarePlacemts,OP R/Park - Nursing Care,W2LR53,Third Party Payments          ,Private Contractors           ,EH01,Miscellaneous Agency Services           ,633.43,06/05/2014,REV,CARE UK                       
734,Adult Social Care,OP 65&Over NursingCarePlacemts,OP R/Park - Nursing Care,W2LR53,Third Party Payments          ,Private Contractors           ,EH01,Miscellaneous Agency Services           ,650,06/05/2014,REV,CARE UK                       
735,Adult Social Care,OP 65&Over NursingCarePlacemts,OP R/Park - Nursing Care,W2LR53,Third Party Payments          ,Private Contractors           ,EH01,Miscellaneous Agency Services           ,650,06/05/2014,REV,CARE UK                       
736,Adult Social Care,OP 65&Over NursingCarePlacemts,OP R/Park - Nursing Care,W2LR53,Third Party Payments          ,Private Contractors           ,EH01,Miscellaneous Agency Services           ,633.43,06/05/2014,REV,CARE UK                       
737,Adult Social Care,OP 65&Over NursingCarePlacemts,OP R/Park - Nursing Care,W2LR53,Third Party Payments          ,Private Contractors           ,EH01,Miscellaneous Agency Services           ,650,06/05/2014,REV,CARE UK                       
738,Adult Social Care,OP 65&Over NursingCarePlacemts,OP R/Park - Nursing Care,W2LR53,Third Party Payments          ,Private Contractors           ,EH01,Miscellaneous Agency Services           ,700,06/05/2014,REV,CARE UK                       
739,Adult Social Care,OP 65&Over NursingCarePlacemts,OP R/Park - Nursing Care,W2LR53,Third Party Payments          ,Private Contractors           ,EH01,Miscellaneous Agency Services           ,633.43,06/05/2014,REV,CARE UK                       
740,Adult Social Care,OP 65&Over NursingCarePlacemts,OP R/Park - Nursing Care,W2LR53,Third Party Payments          ,Private Contractors           ,EH01,Miscellaneous Agency Services           ,650,06/05/2014,REV,CARE UK                       
741,Adult Social Care,OP 65&Over NursingCarePlacemts,OP R/Park - Nursing Care,W2LR53,Third Party Payments          ,Private Contractors           ,EH01,Miscellaneous Agency Services           ,700,06/05/2014,REV,CARE UK                       
742,Adult Social Care,OP 65&Over NursingCarePlacemts,OP R/Park - Nursing Care,W2LR53,Third Party Payments          ,Private Contractors           ,EH01,Miscellaneous Agency Services           ,700,06/05/2014,REV,CARE UK                       
743,Adult Social Care,OP 65&Over NursingCarePlacemts,OP R/Park - Nursing Care,W2LR53,Third Party Payments          ,Private Contractors           ,EH01,Miscellaneous Agency Services           ,700,06/05/2014,REV,CARE UK                       
744,Adult Social Care,MH u65 Nursing Care Placements,MH Nursing Care - Morden,W2HB53,Third Party Payments          ,Private Contractors           ,EH01,Miscellaneous Agency Services           ,679.13,28/04/2014,REV,CARE UNLIMITED                
745,Adult Social Care,MH u65 Nursing Care Placements,MH Nursing Care - Morden,W2HB53,Third Party Payments          ,Private Contractors           ,EH01,Miscellaneous Agency Services           ,679.13,28/04/2014,REV,CARE UNLIMITED                
746,Adult Social Care,MH u65 Nursing Care Placements,MH Nursing Care - Morden,W2HB53,Third Party Payments          ,Private Contractors           ,EH01,Miscellaneous Agency Services           ,679.13,27/05/2014,REV,CARE UNLIMITED                
747,Adult Social Care,MH u65 Nursing Care Placements,MH Nursing Care - Morden,W2HB53,Third Party Payments          ,Private Contractors           ,EH01,Miscellaneous Agency Services           ,679.13,28/04/2014,REV,CARE UNLIMITED                
748,Adult Social Care,MH u65 Nursing Care Placements,MH Nursing Care - Morden,W2HB53,Third Party Payments          ,Private Contractors           ,EH01,Miscellaneous Agency Services           ,679.13,27/05/2014,REV,CARE UNLIMITED                
749,Adult Social Care,MH u65 Nursing Care Placements,MH Nursing Care - Morden,W2HB53,Third Party Payments          ,Private Contractors           ,EH01,Miscellaneous Agency Services           ,679.13,27/05/2014,REV,CARE UNLIMITED                
750,Adult Social Care,MH u65 Nursing Care Placements,MH Nursing Care - Morden,W2HB53,Third Party Payments          ,Private Contractors           ,EH01,Miscellaneous Agency Services           ,679.13,28/04/2014,REV,CARE UNLIMITED                
751,Adult Social Care,MH u65 Nursing Care Placements,MH Nursing Care - Morden,W2HB53,Third Party Payments          ,Private Contractors           ,EH01,Miscellaneous Agency Services           ,679.13,27/05/2014,REV,CARE UNLIMITED                
752,Childrens & Education Services,Support for SEN Pupils,Non-Maintained Post 16 SEN              ,K90052,Third Party Payments          ,Other Establishments          ,EG54,FE Colleges                             ,"7,571.97",07/04/2014,REV,CARSHALTON COLLEGE            
753,Adult Social Care,OP 65&Over NursingCarePlacemts,OP Hosp - Nursing Care,W2LF53,Third Party Payments          ,Private Contractors           ,EH01,Miscellaneous Agency Services           ,654.55,09/04/2014,REV,CARTER HOUSE                  
754,Adult Social Care,OP 65&Over NursingCarePlacemts,OP Hosp - Nursing Care,W2LF53,Third Party Payments          ,Private Contractors           ,EH01,Miscellaneous Agency Services           ,654.55,09/04/2014,REV,CARTER HOUSE                  
755,Adult Social Care,OP 65&Over NursingCarePlacemts,OP Hosp - Nursing Care,W2LF53,Third Party Payments          ,Private Contractors           ,EH01,Miscellaneous Agency Services           ,654.55,09/04/2014,REV,CARTER HOUSE                  
756,Adult Social Care,OP 65&Over NursingCarePlacemts,OP Hosp - Nursing Care,W2LF53,Third Party Payments          ,Private Contractors           ,EH01,Miscellaneous Agency Services           ,654.55,09/04/2014,REV,CARTER HOUSE                  
757,Adult Social Care,OP 65&Over NursingCarePlacemts,OP Hosp - Nursing Care,W2LF53,Third Party Payments          ,Private Contractors           ,EH01,Miscellaneous Agency Services           ,654.55,25/04/2014,REV,CARTER HOUSE                  
758,Adult Social Care,OP 65&Over NursingCarePlacemts,OP Hosp - Nursing Care,W2LF53,Third Party Payments          ,Private Contractors           ,EH01,Miscellaneous Agency Services           ,654.55,09/04/2014,REV,CARTER HOUSE                  
759,Adult Social Care,OP 65&Over NursingCarePlacemts,OP Hosp - Nursing Care,W2LF53,Third Party Payments          ,Private Contractors           ,EH01,Miscellaneous Agency Services           ,654.55,09/04/2014,REV,CARTER HOUSE                  
760,Adult Social Care,OP 65&Over NursingCarePlacemts,OP Hosp - Nursing Care,W2LF53,Third Party Payments          ,Private Contractors           ,EH01,Miscellaneous Agency Services           ,654.55,25/04/2014,REV,CARTER HOUSE                  
761,Adult Social Care,OP 65&Over NursingCarePlacemts,OP Hosp - Nursing Care,W2LF53,Third Party Payments          ,Private Contractors           ,EH01,Miscellaneous Agency Services           ,654.55,09/04/2014,REV,CARTER HOUSE                  
762,Adult Social Care,OP 65&Over NursingCarePlacemts,OP Hosp - Nursing Care,W2LF53,Third Party Payments          ,Private Contractors           ,EH01,Miscellaneous Agency Services           ,654.55,09/04/2014,REV,CARTER HOUSE                  
763,Adult Social Care,OP 65&Over NursingCarePlacemts,OP Hosp - Nursing Care,W2LF53,Third Party Payments          ,Private Contractors           ,EH01,Miscellaneous Agency Services           ,654.55,09/04/2014,REV,CARTER HOUSE                  
764,Adult Social Care,OP 65&Over NursingCarePlacemts,OP Hosp - Nursing Care,W2LF53,Third Party Payments          ,Private Contractors           ,EH01,Miscellaneous Agency Services           ,654.55,09/04/2014,REV,CARTER HOUSE                  
765,Adult Social Care,OP 65&Over NursingCarePlacemts,OP Hosp - Nursing Care,W2LF53,Third Party Payments          ,Private Contractors           ,EH01,Miscellaneous Agency Services           ,654.55,09/04/2014,REV,CARTER HOUSE                  
766,Adult Social Care,OP 65&Over NursingCarePlacemts,OP Hosp - Nursing Care,W2LF53,Third Party Payments          ,Private Contractors           ,EH01,Miscellaneous Agency Services           ,654.55,09/04/2014,REV,CARTER HOUSE                  
767,Adult Social Care,OP 65&Over NursingCarePlacemts,OP Hosp - Nursing Care,W2LF53,Third Party Payments          ,Private Contractors           ,EH01,Miscellaneous Agency Services           ,654.55,09/04/2014,REV,CARTER HOUSE                  
768,Adult Social Care,OP 65&Over NursingCarePlacemts,OP Hosp - Nursing Care,W2LF53,Third Party Payments          ,Private Contractors           ,EH01,Miscellaneous Agency Services           ,654.55,09/04/2014,REV,CARTER HOUSE                  
769,Adult Social Care,OP 65&Over NursingCarePlacemts,OP Hosp - Nursing Care,W2LF53,Third Party Payments          ,Private Contractors           ,EH01,Miscellaneous Agency Services           ,654.55,25/04/2014,REV,CARTER HOUSE                  
770,Adult Social Care,OP 65&Over NursingCarePlacemts,OP Hosp - Nursing Care,W2LF53,Third Party Payments          ,Private Contractors           ,EH01,Miscellaneous Agency Services           ,654.55,25/04/2014,REV,CARTER HOUSE                  
771,Adult Social Care,OP 65&Over Resi Care Placement,OP Hosp - Residential Care Ext,W2LF55,Third Party Payments          ,Private Contractors           ,EH01,Miscellaneous Agency Services           ,524.22,09/04/2014,REV,CARTER HOUSE                  
772,Adult Social Care,OP 65&Over Resi Care Placement,OP Hosp - Residential Care Ext,W2LF55,Third Party Payments          ,Private Contractors           ,EH01,Miscellaneous Agency Services           ,524.22,09/04/2014,REV,CARTER HOUSE                  
773,Adult Social Care,OP 65&Over Resi Care Placement,OP Hosp - Residential Care Ext,W2LF55,Third Party Payments          ,Private Contractors           ,EH01,Miscellaneous Agency Services           ,524.22,09/04/2014,REV,CARTER HOUSE                  
774,Adult Social Care,OP 65&Over Resi Care Placement,OP Hosp - Residential Care Ext,W2LF55,Third Party Payments          ,Private Contractors           ,EH01,Miscellaneous Agency Services           ,524.22,25/04/2014,REV,CARTER HOUSE                  
775,Adult Social Care,OP 65&Over Resi Care Placement,OP Hosp - Residential Care Ext,W2LF55,Third Party Payments          ,Private Contractors           ,EH01,Miscellaneous Agency Services           ,524.22,25/04/2014,REV,CARTER HOUSE                  
776,Adult Social Care,OP 65&Over Resi Care Placement,OP Hosp - Residential Care Ext,W2LF55,Third Party Payments          ,Private Contractors           ,EH01,Miscellaneous Agency Services           ,524.22,09/04/2014,REV,CARTER HOUSE                  
777,Adult Social Care,OP 65&Over Resi Care Placement,OP Hosp - Residential Care Ext,W2LF55,Third Party Payments          ,Private Contractors           ,EH01,Miscellaneous Agency Services           ,524.22,09/04/2014,REV,CARTER HOUSE                  
778,Adult Social Care,OP 65&Over Resi Care Placement,OP Hosp - Residential Care Ext,W2LF55,Third Party Payments          ,Private Contractors           ,EH01,Miscellaneous Agency Services           ,524.22,09/04/2014,REV,CARTER HOUSE                  
779,Adult Social Care,OP 65&Over Resi Care Placement,OP Hosp - Residential Care Ext,W2LF55,Third Party Payments          ,Private Contractors           ,EH01,Miscellaneous Agency Services           ,524.22,25/04/2014,REV,CARTER HOUSE                  
780,Adult Social Care,OP 65&Over Resi Care Placement,OP Hosp - Residential Care Ext,W2LF55,Third Party Payments          ,Private Contractors           ,EH01,Miscellaneous Agency Services           ,524.22,09/04/2014,REV,CARTER HOUSE                  
781,Adult Social Care,OP 65&Over Resi Care Placement,OP Hosp - Residential Care Ext,W2LF55,Third Party Payments          ,Private Contractors           ,EH01,Miscellaneous Agency Services           ,524.22,09/04/2014,REV,CARTER HOUSE                  
782,Adult Social Care,OP 65&Over Resi Care Placement,OP Hosp - Residential Care Ext,W2LF55,Third Party Payments          ,Private Contractors           ,EH01,Miscellaneous Agency Services           ,524.22,25/04/2014,REV,CARTER HOUSE                  
783,Adult Social Care,OP 65&Over Resi Care Placement,OP Hosp - Residential Care Ext,W2LF55,Third Party Payments          ,Private Contractors           ,EH01,Miscellaneous Agency Services           ,524.22,25/04/2014,REV,CARTER HOUSE                  
784,Adult Social Care,OP 65&Over Resi Care Placement,OP Hosp - Residential Care Ext,W2LF55,Third Party Payments          ,Private Contractors           ,EH01,Miscellaneous Agency Services           ,524.22,09/04/2014,REV,CARTER HOUSE                  
785,Adult Social Care,OP 65&Over Resi Care Placement,OP Hosp - Residential Care Ext,W2LF55,Third Party Payments          ,Private Contractors           ,EH01,Miscellaneous Agency Services           ,524.22,25/04/2014,REV,CARTER HOUSE                  
786,Adult Social Care,OP 65&Over Resi Care Placement,OP Hosp - Residential Care Ext,W2LF55,Third Party Payments          ,Private Contractors           ,EH01,Miscellaneous Agency Services           ,524.22,25/04/2014,REV,CARTER HOUSE                  
787,Adult Social Care,OP 65&Over Resi Care Placement,OP Hosp - Residential Care Ext,W2LF55,Third Party Payments          ,Private Contractors           ,EH01,Miscellaneous Agency Services           ,524.22,25/04/2014,REV,CARTER HOUSE                  
788,Adult Social Care,OP 65&Over NursingCarePlacemts,OP West - Nursing Care,W2LG53,Third Party Payments          ,Private Contractors           ,EH01,Miscellaneous Agency Services           ,654.55,09/04/2014,REV,CARTER HOUSE                  
789,Adult Social Care,OP 65&Over NursingCarePlacemts,OP West - Nursing Care,W2LG53,Third Party Payments          ,Private Contractors           ,EH01,Miscellaneous Agency Services           ,654.55,09/04/2014,REV,CARTER HOUSE                  
790,Adult Social Care,OP 65&Over NursingCarePlacemts,OP West - Nursing Care,W2LG53,Third Party Payments          ,Private Contractors           ,EH01,Miscellaneous Agency Services           ,654.55,09/04/2014,REV,CARTER HOUSE                  
791,Adult Social Care,OP 65&Over NursingCarePlacemts,OP West - Nursing Care,W2LG53,Third Party Payments          ,Private Contractors           ,EH01,Miscellaneous Agency Services           ,654.55,09/04/2014,REV,CARTER HOUSE                  
792,Adult Social Care,OP 65&Over NursingCarePlacemts,OP West - Nursing Care,W2LG53,Third Party Payments          ,Private Contractors           ,EH01,Miscellaneous Agency Services           ,654.55,09/04/2014,REV,CARTER HOUSE                  
793,Adult Social Care,OP 65&Over NursingCarePlacemts,OP West - Nursing Care,W2LG53,Third Party Payments          ,Private Contractors           ,EH01,Miscellaneous Agency Services           ,654.55,09/04/2014,REV,CARTER HOUSE                  
794,Adult Social Care,OP 65&Over NursingCarePlacemts,OP West - Nursing Care,W2LG53,Third Party Payments          ,Private Contractors           ,EH01,Miscellaneous Agency Services           ,654.55,09/04/2014,REV,CARTER HOUSE                  
795,Adult Social Care,OP 65&Over NursingCarePlacemts,OP West - Nursing Care,W2LG53,Third Party Payments          ,Private Contractors           ,EH01,Miscellaneous Agency Services           ,654.55,09/04/2014,REV,CARTER HOUSE                  
796,Adult Social Care,OP 65&Over Resi Care Placement,OP West - Residential Care Ext,W2LG55,Third Party Payments          ,Private Contractors           ,EH01,Miscellaneous Agency Services           ,524.22,09/04/2014,REV,CARTER HOUSE                  
797,Adult Social Care,OP 65&Over Resi Care Placement,OP West - Residential Care Ext,W2LG55,Third Party Payments          ,Private Contractors           ,EH01,Miscellaneous Agency Services           ,524.22,09/04/2014,REV,CARTER HOUSE                  
798,Adult Social Care,OP 65&Over Resi Care Placement,OP West - Residential Care Ext,W2LG55,Third Party Payments          ,Private Contractors           ,EH01,Miscellaneous Agency Services           ,524.22,09/04/2014,REV,CARTER HOUSE                  
799,Adult Social Care,OP 65&Over Resi Care Placement,OP West - Residential Care Ext,W2LG55,Third Party Payments          ,Private Contractors           ,EH01,Miscellaneous Agency Services           ,524.22,09/04/2014,REV,CARTER HOUSE                  
800,Adult Social Care,OP 65&Over Resi Care Placement,OP West - Residential Care Ext,W2LG55,Third Party Payments          ,Private Contractors           ,EH01,Miscellaneous Agency Services           ,524.22,09/04/2014,REV,CARTER HOUSE                  
801,Adult Social Care,OP 65&Over Resi Care Placement,OP West - Residential Care Ext,W2LG55,Third Party Payments          ,Private Contractors           ,EH01,Miscellaneous Agency Services           ,524.22,09/04/2014,REV,CARTER HOUSE                  
802,Adult Social Care,OP 65&Over Resi Care Placement,OP West - Residential Care Ext,W2LG55,Third Party Payments          ,Private Contractors           ,EH01,Miscellaneous Agency Services           ,524.22,09/04/2014,REV,CARTER HOUSE                  
803,Adult Social Care,OP 65&Over Resi Care Placement,OP West - Residential Care Ext,W2LG55,Third Party Payments          ,Private Contractors           ,EH01,Miscellaneous Agency Services           ,524.22,09/04/2014,REV,CARTER HOUSE                  
804,Adult Social Care,OP 65&Over Resi Care Placement,OP West - Residential Care Ext,W2LG55,Third Party Payments          ,Private Contractors           ,EH01,Miscellaneous Agency Services           ,524.22,09/04/2014,REV,CARTER HOUSE                  
805,Adult Social Care,OP 65&Over Resi Care Placement,OP West - Residential Care Ext,W2LG55,Third Party Payments          ,Private Contractors           ,EH01,Miscellaneous Agency Services           ,524.22,09/04/2014,REV,CARTER HOUSE                  
806,Adult Social Care,OP 65&Over Resi Care Placement,OP West - Residential Care Ext,W2LG55,Third Party Payments          ,Private Contractors           ,EH01,Miscellaneous Agency Services           ,524.22,09/04/2014,REV,CARTER HOUSE                  
807,Adult Social Care,OP 65&Over Resi Care Placement,OP West - Residential Care Ext,W2LG55,Third Party Payments          ,Private Contractors           ,EH01,Miscellaneous Agency Services           ,524.22,09/04/2014,REV,CARTER HOUSE                  
808,Adult Social Care,OP 65&Over Resi Care Placement,OP West - Residential Care Ext,W2LG55,Third Party Payments          ,Private Contractors           ,EH01,Miscellaneous Agency Services           ,524.22,09/04/2014,REV,CARTER HOUSE                  
809,Adult Social Care,OP 65&Over Resi Care Placement,OP West - Residential Care Ext,W2LG55,Third Party Payments          ,Private Contractors           ,EH01,Miscellaneous Agency Services           ,524.22,09/04/2014,REV,CARTER HOUSE                  
810,Adult Social Care,OP 65&Over Resi Care Placement,OP West - Residential Care Ext,W2LG55,Third Party Payments          ,Private Contractors           ,EH01,Miscellaneous Agency Services           ,524.22,09/04/2014,REV,CARTER HOUSE                  
811,Adult Social Care,OP 65&Over Resi Care Placement,OP West - Residential Care Ext,W2LG55,Third Party Payments          ,Private Contractors           ,EH01,Miscellaneous Agency Services           ,524.22,09/04/2014,REV,CARTER HOUSE                  
812,Adult Social Care,OP 65&Over NursingCarePlacemts,OP East - Nursing Care,W2LH53,Third Party Payments          ,Private Contractors           ,EH01,Miscellaneous Agency Services           ,654.55,25/04/2014,REV,CARTER HOUSE                  
813,Adult Social Care,OP 65&Over NursingCarePlacemts,OP East - Nursing Care,W2LH53,Third Party Payments          ,Private Contractors           ,EH01,Miscellaneous Agency Services           ,654.55,25/04/2014,REV,CARTER HOUSE                  
814,Adult Social Care,OP 65&Over NursingCarePlacemts,OP East - Nursing Care,W2LH53,Third Party Payments          ,Private Contractors           ,EH01,Miscellaneous Agency Services           ,654.55,25/04/2014,REV,CARTER HOUSE                  
815,Adult Social Care,OP 65&Over NursingCarePlacemts,OP East - Nursing Care,W2LH53,Third Party Payments          ,Private Contractors           ,EH01,Miscellaneous Agency Services           ,654.55,25/04/2014,REV,CARTER HOUSE                  
816,Adult Social Care,OP 65&Over Resi Care Placement,OP East - Residential Care Ext,W2LH55,Third Party Payments          ,Private Contractors           ,EH01,Miscellaneous Agency Services           ,524.22,09/04/2014,REV,CARTER HOUSE                  
817,Adult Social Care,OP 65&Over Resi Care Placement,OP East - Residential Care Ext,W2LH55,Third Party Payments          ,Private Contractors           ,EH01,Miscellaneous Agency Services           ,524.22,09/04/2014,REV,CARTER HOUSE                  
818,Adult Social Care,OP 65&Over Resi Care Placement,OP East - Residential Care Ext,W2LH55,Third Party Payments          ,Private Contractors           ,EH01,Miscellaneous Agency Services           ,524.22,09/04/2014,REV,CARTER HOUSE                  
819,Adult Social Care,OP 65&Over Resi Care Placement,OP East - Residential Care Ext,W2LH55,Third Party Payments          ,Private Contractors           ,EH01,Miscellaneous Agency Services           ,524.22,09/04/2014,REV,CARTER HOUSE                  
820,Adult Social Care,OP 65&Over Resi Care Placement,OP East - Residential Care Ext,W2LH55,Third Party Payments          ,Private Contractors           ,EH01,Miscellaneous Agency Services           ,"4,919.87",01/05/2014,REV,CARTER HOUSE                  
821,Adult Social Care,OP 65&Over NursingCarePlacemts,OP R/Park - Nursing Care,W2LR53,Third Party Payments          ,Private Contractors           ,EH01,Miscellaneous Agency Services           ,654.55,09/04/2014,REV,CARTER HOUSE                  
822,Adult Social Care,OP 65&Over NursingCarePlacemts,OP R/Park - Nursing Care,W2LR53,Third Party Payments          ,Private Contractors           ,EH01,Miscellaneous Agency Services           ,654.55,25/04/2014,REV,CARTER HOUSE                  
823,Adult Social Care,OP 65&Over NursingCarePlacemts,OP R/Park - Nursing Care,W2LR53,Third Party Payments          ,Private Contractors           ,EH01,Miscellaneous Agency Services           ,654.55,09/04/2014,REV,CARTER HOUSE                  
824,Adult Social Care,OP 65&Over NursingCarePlacemts,OP R/Park - Nursing Care,W2LR53,Third Party Payments          ,Private Contractors           ,EH01,Miscellaneous Agency Services           ,654.55,09/04/2014,REV,CARTER HOUSE                  
825,Adult Social Care,OP 65&Over NursingCarePlacemts,OP R/Park - Nursing Care,W2LR53,Third Party Payments          ,Private Contractors           ,EH01,Miscellaneous Agency Services           ,654.55,09/04/2014,REV,CARTER HOUSE                  
826,Adult Social Care,OP 65&Over NursingCarePlacemts,OP R/Park - Nursing Care,W2LR53,Third Party Payments          ,Private Contractors           ,EH01,Miscellaneous Agency Services           ,654.55,25/04/2014,REV,CARTER HOUSE                  
827,Adult Social Care,OP 65&Over NursingCarePlacemts,OP R/Park - Nursing Care,W2LR53,Third Party Payments          ,Private Contractors           ,EH01,Miscellaneous Agency Services           ,654.55,09/04/2014,REV,CARTER HOUSE                  
828,Adult Social Care,OP 65&Over NursingCarePlacemts,OP R/Park - Nursing Care,W2LR53,Third Party Payments          ,Private Contractors           ,EH01,Miscellaneous Agency Services           ,654.55,09/04/2014,REV,CARTER HOUSE                  
